{"text_format":"3","workbook":"xlsx","n_sheets":5,"sheets":["INÍCIO","DESPESAS PLANEJADAS","DESPESAS REAIS","VARIAÇÕES DE DESPESAS","ANÁLISE DE DESPESAS"],"not_rendered":{"charts":3,"images":4,"defined_names":1},"read":"whole","date_system":"1900"}

{"sheet":"INÍCIO","index":0,"n_rows":8,"n_cols":2,"rows_kept":8}
[null,"SOBRE ESTE MODELO"]
[null,"Use esta pasta de trabalho de Orçamento de despesas comerciais para acompanhar as despesas planejadas e reais e as variações."]
[null,"Preencha com o Nome da empresa e adicione o logotipo."]
[null,"Insira as informações nas tabelas das planilhas Despesas planejadas e Despesas reais."]
[null,"As tabelas são atualizadas automaticamente na planilha Variações de despesas e os gráficos na planilha Análise de despesas"]
[null,"Observação: "]
[null,"há instruções adicionais na coluna A de cada planilha. Este texto está oculto de propósito. Para removê-lo, selecione a coluna A e selecione Excluir. Para reexibir o texto, selecione a coluna A e altere a cor da fonte."]
[null,"Saiba mais sobre tabelas pressionando Shift e F10 em uma tabela, selecione a opção TABELA e selecione TEXTO ALTERNATIVO"]

{"sheet":"DESPESAS PLANEJADAS","index":1,"n_rows":37,"n_cols":18,"rows_kept":37,"merged":[[1,1,2,3],[1,9,1,12],[1,13,2,14],[2,9,2,12],[3,17,12,19],[8,1,8,2],[19,1,19,2],[28,1,28,2],[33,1,33,2]]}
["Insira os Custos com funcionários, os Custos do escritório, os Custos de marketing e os Custos com viagens ou treinamentos nas respectivas tabelas nesta planilha. Os totais são calculados automaticamente. Instruções úteis sobre como usar esta planilha estão nas células desta coluna. Pressione Seta para baixo para começar.",{"$nulls":14}," "]
["Insira o Nome da empresa na célula à direita e o logotipo na célula N2. O título desta planilha está na célula K2.","Nome da empresa",{"$nulls":7},"Estimativas detalhadas de despesas",{"$nulls":3},"O espaço reservado para o logotipo está nesta célula."]
["As dicas estão na célula K3.",{"$nulls":8},"As células sombreadas são cálculos."]
["O rótulo Despesas planejadas está na célula à direita, os meses nas células C4 a N4, o rótulo Ano na célula O4 e as instruções de Como usar este modelo na célula R4.","DESPESAS PLANEJADAS","JAN","FEV","MAR","ABR","MAI","JUN","JUL","AGO","SET","OUT","NOV","DEZ","ANO",null,null,"Dica: COMO USAR ESTE MODELO\nInsira os dados nas células em branco das planilhas DESPESAS PLANEJADAS e DESPESAS REAIS e as VARIAÇÕES DE DESPESAS e ANÁLISES DE DESPESAS serão calculadas para você. Caso você adicione uma linha em uma planilha, precisa haver correspondência com as outras planilhas."]
["Insira os Custos com funcionários na tabela Planejamento de funcionários, que começa na célula à direita. A próxima instrução está na célula A10.","Custos com funcionários","Jan","Fev","Mar","Abr","Mai","Jun","Jul","Ago","Set","Out","Nov","Dez","ANO"]
[null,"Salários",{"v":85000,"d":"R$ 85,000.00"},{"v":85000,"d":"R$ 85,000.00"},{"v":85000,"d":"R$ 85,000.00"},{"v":87500,"d":"R$ 87,500.00"},{"v":87500,"d":"R$ 87,500.00"},{"v":87500,"d":"R$ 87,500.00"},{"v":87500,"d":"R$ 87,500.00"},{"v":92400,"d":"R$ 92,400.00"},{"v":92400,"d":"R$ 92,400.00"},{"v":92400,"d":"R$ 92,400.00"},{"v":92400,"d":"R$ 92,400.00"},{"v":92400,"d":"R$ 92,400.00"},{"$f":"SUM(C6:N6)","v":{"v":1067000,"d":"R$ 1,067,000.00"}}]
[null,"Benefícios",{"$f":"C6*0.27","v":{"v":22950,"d":"R$ 22,950.00"}},{"v":22950,"d":"R$ 22,950.00"},{"v":22950,"d":"R$ 22,950.00"},{"v":23625,"d":"R$ 23,625.00"},{"v":23625,"d":"R$ 23,625.00"},{"v":23625,"d":"R$ 23,625.00"},{"v":23625,"d":"R$ 23,625.00"},{"v":24948,"d":"R$ 24,948.00"},{"v":24948,"d":"R$ 24,948.00"},{"v":24948,"d":"R$ 24,948.00"},{"v":24948,"d":"R$ 24,948.00"},{"v":24948,"d":"R$ 24,948.00"},{"$f":"SUM(C7:N7)","v":{"v":288090,"d":"R$ 288,090.00"}}]
[null,"Subtotal",{"$f":"SUBTOTAL(109,PlanejamentoDeFuncionários[Jan])","v":{"v":107950,"d":"R$ 107,950.00"}},{"$f":"SUBTOTAL(109,PlanejamentoDeFuncionários[Fev])","v":{"v":107950,"d":"R$ 107,950.00"}},{"$f":"SUBTOTAL(109,PlanejamentoDeFuncionários[Mar])","v":{"v":107950,"d":"R$ 107,950.00"}},{"$f":"SUBTOTAL(109,PlanejamentoDeFuncionários[Abr])","v":{"v":111125,"d":"R$ 111,125.00"}},{"$f":"SUBTOTAL(109,PlanejamentoDeFuncionários[Mai])","v":{"v":111125,"d":"R$ 111,125.00"}},{"$f":"SUBTOTAL(109,PlanejamentoDeFuncionários[Jun])","v":{"v":111125,"d":"R$ 111,125.00"}},{"$f":"SUBTOTAL(109,PlanejamentoDeFuncionários[Jul])","v":{"v":111125,"d":"R$ 111,125.00"}},{"$f":"SUBTOTAL(109,PlanejamentoDeFuncionários[Ago])","v":{"v":117348,"d":"R$ 117,348.00"}},{"$f":"SUBTOTAL(109,PlanejamentoDeFuncionários[Set])","v":{"v":117348,"d":"R$ 117,348.00"}},{"$f":"SUBTOTAL(109,PlanejamentoDeFuncionários[Out])","v":{"v":117348,"d":"R$ 117,348.00"}},{"$f":"SUBTOTAL(109,PlanejamentoDeFuncionários[Nov])","v":{"v":117348,"d":"R$ 117,348.00"}},{"$f":"SUBTOTAL(109,PlanejamentoDeFuncionários[Dez])","v":{"v":117348,"d":"R$ 117,348.00"}},{"$f":"SUBTOTAL(109,PlanejamentoDeFuncionários[ANO])","v":{"v":1355090,"d":"R$ 1,355,090.00"}}]
[]
["Insira os Custos com escritório na tabela Planejamento do escritório, que começa na célula à direita. A próxima instrução está na célula A21.","Custos do escritório","Jan","Fev","Mar","Abr","Mai","Jun","Jul","Ago","Set","Out","Nov","Dez","ANO"]
[null,"Aluguel do escritório",{"v":9800,"d":"R$ 9,800.00"},{"v":9800,"d":"R$ 9,800.00"},{"v":9800,"d":"R$ 9,800.00"},{"v":9800,"d":"R$ 9,800.00"},{"v":9800,"d":"R$ 9,800.00"},{"v":9800,"d":"R$ 9,800.00"},{"v":9800,"d":"R$ 9,800.00"},{"v":9800,"d":"R$ 9,800.00"},{"v":9800,"d":"R$ 9,800.00"},{"v":9800,"d":"R$ 9,800.00"},{"v":9800,"d":"R$ 9,800.00"},{"v":9800,"d":"R$ 9,800.00"},{"$f":"SUM(C11:N11)","v":{"v":117600,"d":"R$ 117,600.00"}}]
[null,"Gás",null,{"v":400,"d":"R$ 400.00"},{"v":400,"d":"R$ 400.00"},{"v":100,"d":"R$ 100.00"},{"v":100,"d":"R$ 100.00"},{"v":100,"d":"R$ 100.00"},{"v":100,"d":"R$ 100.00"},{"v":100,"d":"R$ 100.00"},{"v":100,"d":"R$ 100.00"},{"v":100,"d":"R$ 100.00"},{"v":400,"d":"R$ 400.00"},{"v":400,"d":"R$ 400.00"},{"v":2300,"d":"R$ 2,300.00"}]
[null,"Eletricidade",{"v":300,"d":"R$ 300.00"},{"v":300,"d":"R$ 300.00"},{"v":300,"d":"R$ 300.00"},{"v":300,"d":"R$ 300.00"},{"v":300,"d":"R$ 300.00"},{"v":300,"d":"R$ 300.00"},{"v":300,"d":"R$ 300.00"},{"v":300,"d":"R$ 300.00"},{"v":300,"d":"R$ 300.00"},{"v":300,"d":"R$ 300.00"},{"v":300,"d":"R$ 300.00"},{"v":300,"d":"R$ 300.00"},{"v":3600,"d":"R$ 3,600.00"}]
[null,"Água",{"v":40,"d":"R$ 40.00"},{"v":40,"d":"R$ 40.00"},{"v":40,"d":"R$ 40.00"},{"v":40,"d":"R$ 40.00"},{"v":40,"d":"R$ 40.00"},{"v":40,"d":"R$ 40.00"},{"v":40,"d":"R$ 40.00"},{"v":40,"d":"R$ 40.00"},{"v":40,"d":"R$ 40.00"},{"v":40,"d":"R$ 40.00"},{"v":40,"d":"R$ 40.00"},{"v":40,"d":"R$ 40.00"},{"v":480,"d":"R$ 480.00"}]
[null,"Telefone",{"v":250,"d":"R$ 250.00"},{"v":250,"d":"R$ 250.00"},{"v":250,"d":"R$ 250.00"},{"v":250,"d":"R$ 250.00"},{"v":250,"d":"R$ 250.00"},{"v":250,"d":"R$ 250.00"},{"v":250,"d":"R$ 250.00"},{"v":250,"d":"R$ 250.00"},{"v":250,"d":"R$ 250.00"},{"v":250,"d":"R$ 250.00"},{"v":250,"d":"R$ 250.00"},{"v":250,"d":"R$ 250.00"},{"v":3000,"d":"R$ 3,000.00"}]
[null,"Acesso à Internet",{"v":180,"d":"R$ 180.00"},{"v":180,"d":"R$ 180.00"},{"v":180,"d":"R$ 180.00"},{"v":180,"d":"R$ 180.00"},{"v":180,"d":"R$ 180.00"},{"v":180,"d":"R$ 180.00"},{"v":180,"d":"R$ 180.00"},{"v":180,"d":"R$ 180.00"},{"v":180,"d":"R$ 180.00"},{"v":180,"d":"R$ 180.00"},{"v":180,"d":"R$ 180.00"},{"v":180,"d":"R$ 180.00"},{"v":2160,"d":"R$ 2,160.00"}]
[null,"Material de escritório",{"v":200,"d":"R$ 200.00"},{"v":200,"d":"R$ 200.00"},{"v":200,"d":"R$ 200.00"},{"v":200,"d":"R$ 200.00"},{"v":200,"d":"R$ 200.00"},{"v":200,"d":"R$ 200.00"},{"v":200,"d":"R$ 200.00"},{"v":200,"d":"R$ 200.00"},{"v":200,"d":"R$ 200.00"},{"v":200,"d":"R$ 200.00"},{"v":200,"d":"R$ 200.00"},{"v":200,"d":"R$ 200.00"},{"v":2400,"d":"R$ 2,400.00"}]
[null,"Segurança",{"v":600,"d":"R$ 600.00"},{"v":600,"d":"R$ 600.00"},{"v":600,"d":"R$ 600.00"},{"v":600,"d":"R$ 600.00"},{"v":600,"d":"R$ 600.00"},{"v":600,"d":"R$ 600.00"},{"v":600,"d":"R$ 600.00"},{"v":600,"d":"R$ 600.00"},{"v":600,"d":"R$ 600.00"},{"v":600,"d":"R$ 600.00"},{"v":600,"d":"R$ 600.00"},{"v":600,"d":"R$ 600.00"},{"v":7200,"d":"R$ 7,200.00"}]
[null,"Subtotal",{"$f":"SUBTOTAL(109,PlanejamentoDoEscritório[Jan])","v":{"v":11370,"d":"R$ 11,370.00"}},{"$f":"SUBTOTAL(109,PlanejamentoDoEscritório[Fev])","v":{"v":11770,"d":"R$ 11,770.00"}},{"$f":"SUBTOTAL(109,PlanejamentoDoEscritório[Mar])","v":{"v":11770,"d":"R$ 11,770.00"}},{"$f":"SUBTOTAL(109,PlanejamentoDoEscritório[Abr])","v":{"v":11470,"d":"R$ 11,470.00"}},{"$f":"SUBTOTAL(109,PlanejamentoDoEscritório[Mai])","v":{"v":11470,"d":"R$ 11,470.00"}},{"$f":"SUBTOTAL(109,PlanejamentoDoEscritório[Jun])","v":{"v":11470,"d":"R$ 11,470.00"}},{"$f":"SUBTOTAL(109,PlanejamentoDoEscritório[Jul])","v":{"v":11470,"d":"R$ 11,470.00"}},{"$f":"SUBTOTAL(109,PlanejamentoDoEscritório[Ago])","v":{"v":11470,"d":"R$ 11,470.00"}},{"$f":"SUBTOTAL(109,PlanejamentoDoEscritório[Set])","v":{"v":11470,"d":"R$ 11,470.00"}},{"$f":"SUBTOTAL(109,PlanejamentoDoEscritório[Out])","v":{"v":11470,"d":"R$ 11,470.00"}},{"$f":"SUBTOTAL(109,PlanejamentoDoEscritório[Nov])","v":{"v":11770,"d":"R$ 11,770.00"}},{"$f":"SUBTOTAL(109,PlanejamentoDoEscritório[Dez])","v":{"v":11770,"d":"R$ 11,770.00"}},{"$f":"SUBTOTAL(109,PlanejamentoDoEscritório[ANO])","v":{"v":138740,"d":"R$ 138,740.00"}}]
[]
["Insira os Custos de marketing na tabela Planejamento de marketing, que começa na célula à direita. A próxima instrução está na célula A30.","Custos de marketing","Jan","Fev","Mar","Abr","Mai","Jun","Jul","Ago","Set","Out","Nov","Dez","ANO"]
[null,"Hospedagem de site",{"v":500,"d":"R$ 500.00"},{"v":500,"d":"R$ 500.00"},{"v":500,"d":"R$ 500.00"},{"v":500,"d":"R$ 500.00"},{"v":500,"d":"R$ 500.00"},{"v":500,"d":"R$ 500.00"},{"v":500,"d":"R$ 500.00"},{"v":500,"d":"R$ 500.00"},{"v":500,"d":"R$ 500.00"},{"v":500,"d":"R$ 500.00"},{"v":500,"d":"R$ 500.00"},{"v":500,"d":"R$ 500.00"},{"$f":"SUM(C22:N22)","v":{"v":6000,"d":"R$ 6,000.00"}}]
[null,"Atualizações do site",{"v":200,"d":"R$ 200.00"},{"v":200,"d":"R$ 200.00"},{"v":200,"d":"R$ 200.00"},{"v":200,"d":"R$ 200.00"},{"v":200,"d":"R$ 200.00"},{"v":1000,"d":"R$ 1,000.00"},{"v":200,"d":"R$ 200.00"},{"v":200,"d":"R$ 200.00"},{"v":200,"d":"R$ 200.00"},{"v":200,"d":"R$ 200.00"},{"v":200,"d":"R$ 200.00"},{"v":1000,"d":"R$ 1,000.00"},{"v":4000,"d":"R$ 4,000.00"}]
[null,"Preparação de materiais de referência",{"v":5000,"d":"R$ 5,000.00"},{"v":0,"d":"R$ 0.00"},{"v":0,"d":"R$ 0.00"},{"v":5000,"d":"R$ 5,000.00"},{"v":0,"d":"R$ 0.00"},{"v":0,"d":"R$ 0.00"},{"v":5000,"d":"R$ 5,000.00"},{"v":0,"d":"R$ 0.00"},{"v":0,"d":"R$ 0.00"},{"v":5000,"d":"R$ 5,000.00"},{"v":0,"d":"R$ 0.00"},{"v":0,"d":"R$ 0.00"},{"v":20000,"d":"R$ 20,000.00"}]
[null,"Impressão de materiais de referência",{"v":200,"d":"R$ 200.00"},{"v":200,"d":"R$ 200.00"},{"v":200,"d":"R$ 200.00"},{"v":200,"d":"R$ 200.00"},{"v":200,"d":"R$ 200.00"},{"v":200,"d":"R$ 200.00"},{"v":200,"d":"R$ 200.00"},{"v":200,"d":"R$ 200.00"},{"v":200,"d":"R$ 200.00"},{"v":200,"d":"R$ 200.00"},{"v":200,"d":"R$ 200.00"},{"v":200,"d":"R$ 200.00"},{"v":2400,"d":"R$ 2,400.00"}]
[null,"Eventos de marketing",{"v":2000,"d":"R$ 2,000.00"},{"v":2000,"d":"R$ 2,000.00"},{"v":2000,"d":"R$ 2,000.00"},{"v":5000,"d":"R$ 5,000.00"},{"v":2000,"d":"R$ 2,000.00"},{"v":2000,"d":"R$ 2,000.00"},{"v":2000,"d":"R$ 2,000.00"},{"v":5000,"d":"R$ 5,000.00"},{"v":2000,"d":"R$ 2,000.00"},{"v":2000,"d":"R$ 2,000.00"},{"v":2000,"d":"R$ 2,000.00"},{"v":5000,"d":"R$ 5,000.00"},{"v":33000,"d":"R$ 33,000.00"}]
[null,"Despesas diversas",{"v":200,"d":"R$ 200.00"},{"v":200,"d":"R$ 200.00"},{"v":200,"d":"R$ 200.00"},{"v":200,"d":"R$ 200.00"},{"v":200,"d":"R$ 200.00"},{"v":200,"d":"R$ 200.00"},{"v":200,"d":"R$ 200.00"},{"v":200,"d":"R$ 200.00"},{"v":200,"d":"R$ 200.00"},{"v":200,"d":"R$ 200.00"},{"v":200,"d":"R$ 200.00"},{"v":200,"d":"R$ 200.00"},{"v":2400,"d":"R$ 2,400.00"}]
[null,"Subtotal",{"$f":"SUBTOTAL(109,PlanejamentoDeMarketing[Jan])","v":{"v":8100,"d":"R$ 8,100.00"}},{"$f":"SUBTOTAL(109,PlanejamentoDeMarketing[Fev])","v":{"v":3100,"d":"R$ 3,100.00"}},{"$f":"SUBTOTAL(109,PlanejamentoDeMarketing[Mar])","v":{"v":3100,"d":"R$ 3,100.00"}},{"$f":"SUBTOTAL(109,PlanejamentoDeMarketing[Abr])","v":{"v":11100,"d":"R$ 11,100.00"}},{"$f":"SUBTOTAL(109,PlanejamentoDeMarketing[Mai])","v":{"v":3100,"d":"R$ 3,100.00"}},{"$f":"SUBTOTAL(109,PlanejamentoDeMarketing[Jun])","v":{"v":3900,"d":"R$ 3,900.00"}},{"$f":"SUBTOTAL(109,PlanejamentoDeMarketing[Jul])","v":{"v":8100,"d":"R$ 8,100.00"}},{"$f":"SUBTOTAL(109,PlanejamentoDeMarketing[Ago])","v":{"v":6100,"d":"R$ 6,100.00"}},{"$f":"SUBTOTAL(109,PlanejamentoDeMarketing[Set])","v":{"v":3100,"d":"R$ 3,100.00"}},{"$f":"SUBTOTAL(109,PlanejamentoDeMarketing[Out])","v":{"v":8100,"d":"R$ 8,100.00"}},{"$f":"SUBTOTAL(109,PlanejamentoDeMarketing[Nov])","v":{"v":3100,"d":"R$ 3,100.00"}},{"$f":"SUBTOTAL(109,PlanejamentoDeMarketing[Dez])","v":{"v":6900,"d":"R$ 6,900.00"}},{"$f":"SUBTOTAL(109,PlanejamentoDeMarketing[ANO])","v":{"v":67800,"d":"R$ 67,800.00"}}]
[]
["Insira os Custos com viagens e treinamentos na tabela Planejamento viagem e treinamento, que começa na célula à direita. A próxima instrução está na célula A35.","Viagem/Treinamento","Jan","Fev","Mar","Abr","Mai","Jun","Jul","Ago","Set","Out","Nov","Dez","ANO"]
[null,"Sessões de treinamento",{"v":2000,"d":"R$ 2,000.00"},{"v":2000,"d":"R$ 2,000.00"},{"v":2000,"d":"R$ 2,000.00"},{"v":2000,"d":"R$ 2,000.00"},{"v":2000,"d":"R$ 2,000.00"},{"v":2000,"d":"R$ 2,000.00"},{"v":2000,"d":"R$ 2,000.00"},{"v":2000,"d":"R$ 2,000.00"},{"v":2000,"d":"R$ 2,000.00"},{"v":2000,"d":"R$ 2,000.00"},{"v":2000,"d":"R$ 2,000.00"},{"v":2000,"d":"R$ 2,000.00"},{"$f":"SUM(C31:N31)","v":{"v":24000,"d":"R$ 24,000.00"}}]
[null,"Custos com viagens para treinamento",{"v":2000,"d":"R$ 2,000.00"},{"v":2000,"d":"R$ 2,000.00"},{"v":2000,"d":"R$ 2,000.00"},{"v":2000,"d":"R$ 2,000.00"},{"v":2000,"d":"R$ 2,000.00"},{"v":2000,"d":"R$ 2,000.00"},{"v":2000,"d":"R$ 2,000.00"},{"v":2000,"d":"R$ 2,000.00"},{"v":2000,"d":"R$ 2,000.00"},{"v":2000,"d":"R$ 2,000.00"},{"v":2000,"d":"R$ 2,000.00"},{"v":2000,"d":"R$ 2,000.00"},{"$f":"SUM(C32:N32)","v":{"v":24000,"d":"R$ 24,000.00"}}]
[null,"Subtotal",{"$f":"SUBTOTAL(109,PlanejamentoViagemETreinamento[Jan])","v":{"v":4000,"d":"R$ 4,000.00"}},{"$f":"SUBTOTAL(109,PlanejamentoViagemETreinamento[Fev])","v":{"v":4000,"d":"R$ 4,000.00"}},{"$f":"SUBTOTAL(109,PlanejamentoViagemETreinamento[Mar])","v":{"v":4000,"d":"R$ 4,000.00"}},{"$f":"SUBTOTAL(109,PlanejamentoViagemETreinamento[Abr])","v":{"v":4000,"d":"R$ 4,000.00"}},{"$f":"SUBTOTAL(109,PlanejamentoViagemETreinamento[Mai])","v":{"v":4000,"d":"R$ 4,000.00"}},{"$f":"SUBTOTAL(109,PlanejamentoViagemETreinamento[Jun])","v":{"v":4000,"d":"R$ 4,000.00"}},{"$f":"SUBTOTAL(109,PlanejamentoViagemETreinamento[Jul])","v":{"v":4000,"d":"R$ 4,000.00"}},{"$f":"SUBTOTAL(109,PlanejamentoViagemETreinamento[Ago])","v":{"v":4000,"d":"R$ 4,000.00"}},{"$f":"SUBTOTAL(109,PlanejamentoViagemETreinamento[Set])","v":{"v":4000,"d":"R$ 4,000.00"}},{"$f":"SUBTOTAL(109,PlanejamentoViagemETreinamento[Out])","v":{"v":4000,"d":"R$ 4,000.00"}},{"$f":"SUBTOTAL(109,PlanejamentoViagemETreinamento[Nov])","v":{"v":4000,"d":"R$ 4,000.00"}},{"$f":"SUBTOTAL(109,PlanejamentoViagemETreinamento[Dez])","v":{"v":4000,"d":"R$ 4,000.00"}},{"$f":"SUBTOTAL(109,PlanejamentoViagemETreinamento[ANO])","v":{"v":48000,"d":"R$ 48,000.00"}}]
[]
["Os totais são calculados automaticamente na tabela Total planejado, que começa na célula à direita.","TOTAIS","Jan","Fev","Mar","Abr","Mai","Jun","Jul","Ago","Set","Out","Nov","Dez","Ano"]
[null,"Despesas mensais planejadas",{"$f":"PlanejamentoViagemETreinamento[[#Totals],[Jan]]+PlanejamentoDeMarketing[[#Totals],[Jan]]+PlanejamentoDoEscritório[[#Totals],[Jan]]+PlanejamentoDeFuncionários[[#Totals],[Jan]]","v":{"v":131420,"d":"R$ 131,420.00"}},{"$f":"PlanejamentoViagemETreinamento[[#Totals],[Fev]]+PlanejamentoDeMarketing[[#Totals],[Fev]]+PlanejamentoDoEscritório[[#Totals],[Fev]]+PlanejamentoDeFuncionários[[#Totals],[Fev]]","v":{"v":126820,"d":"R$ 126,820.00"}},{"$f":"PlanejamentoViagemETreinamento[[#Totals],[Mar]]+PlanejamentoDeMarketing[[#Totals],[Mar]]+PlanejamentoDoEscritório[[#Totals],[Mar]]+PlanejamentoDeFuncionários[[#Totals],[Mar]]","v":{"v":126820,"d":"R$ 126,820.00"}},{"$f":"PlanejamentoViagemETreinamento[[#Totals],[Abr]]+PlanejamentoDeMarketing[[#Totals],[Abr]]+PlanejamentoDoEscritório[[#Totals],[Abr]]+PlanejamentoDeFuncionários[[#Totals],[Abr]]","v":{"v":137695,"d":"R$ 137,695.00"}},{"$f":"PlanejamentoViagemETreinamento[[#Totals],[Mai]]+PlanejamentoDeMarketing[[#Totals],[Mai]]+PlanejamentoDoEscritório[[#Totals],[Mai]]+PlanejamentoDeFuncionários[[#Totals],[Mai]]","v":{"v":129695,"d":"R$ 129,695.00"}},{"$f":"PlanejamentoViagemETreinamento[[#Totals],[Jun]]+PlanejamentoDeMarketing[[#Totals],[Jun]]+PlanejamentoDoEscritório[[#Totals],[Jun]]+PlanejamentoDeFuncionários[[#Totals],[Jun]]","v":{"v":130495,"d":"R$ 130,495.00"}},{"$f":"PlanejamentoViagemETreinamento[[#Totals],[Jul]]+PlanejamentoDeMarketing[[#Totals],[Jul]]+PlanejamentoDoEscritório[[#Totals],[Jul]]+PlanejamentoDeFuncionários[[#Totals],[Jul]]","v":{"v":134695,"d":"R$ 134,695.00"}},{"$f":"PlanejamentoViagemETreinamento[[#Totals],[Ago]]+PlanejamentoDeMarketing[[#Totals],[Ago]]+PlanejamentoDoEscritório[[#Totals],[Ago]]+PlanejamentoDeFuncionários[[#Totals],[Ago]]","v":{"v":138918,"d":"R$ 138,918.00"}},{"$f":"PlanejamentoViagemETreinamento[[#Totals],[Set]]+PlanejamentoDeMarketing[[#Totals],[Set]]+PlanejamentoDoEscritório[[#Totals],[Set]]+PlanejamentoDeFuncionários[[#Totals],[Set]]","v":{"v":135918,"d":"R$ 135,918.00"}},{"$f":"PlanejamentoViagemETreinamento[[#Totals],[Out]]+PlanejamentoDeMarketing[[#Totals],[Out]]+PlanejamentoDoEscritório[[#Totals],[Out]]+PlanejamentoDeFuncionários[[#Totals],[Out]]","v":{"v":140918,"d":"R$ 140,918.00"}},{"$f":"PlanejamentoViagemETreinamento[[#Totals],[Nov]]+PlanejamentoDeMarketing[[#Totals],[Nov]]+PlanejamentoDoEscritório[[#Totals],[Nov]]+PlanejamentoDeFuncionários[[#Totals],[Nov]]","v":{"v":136218,"d":"R$ 136,218.00"}},{"$f":"PlanejamentoViagemETreinamento[[#Totals],[Dez]]+PlanejamentoDeMarketing[[#Totals],[Dez]]+PlanejamentoDoEscritório[[#Totals],[Dez]]+PlanejamentoDeFuncionários[[#Totals],[Dez]]","v":{"v":140018,"d":"R$ 140,018.00"}},{"$f":"PlanejamentoViagemETreinamento[[#Totals],[ANO]]+PlanejamentoDeMarketing[[#Totals],[ANO]]+PlanejamentoDoEscritório[[#Totals],[ANO]]+PlanejamentoDeFuncionários[[#Totals],[ANO]]","v":{"v":1609630,"d":"R$ 1,609,630.00"}}]
[null,"TOTAL Despesas planejadas",{"$f":"SUM($C$36:C36)","v":{"v":131420,"d":"R$ 131,420.00"}},{"$f":"SUM($C$36:D36)","v":{"v":258240,"d":"R$ 258,240.00"}},{"$f":"SUM($C$36:E36)","v":{"v":385060,"d":"R$ 385,060.00"}},{"$f":"SUM($C$36:F36)","v":{"v":522755,"d":"R$ 522,755.00"}},{"$f":"SUM($C$36:G36)","v":{"v":652450,"d":"R$ 652,450.00"}},{"$f":"SUM($C$36:H36)","v":{"v":782945,"d":"R$ 782,945.00"}},{"$f":"SUM($C$36:I36)","v":{"v":917640,"d":"R$ 917,640.00"}},{"$f":"SUM($C$36:J36)","v":{"v":1056558,"d":"R$ 1,056,558.00"}},{"$f":"SUM($C$36:K36)","v":{"v":1192476,"d":"R$ 1,192,476.00"}},{"$f":"SUM($C$36:L36)","v":{"v":1333394,"d":"R$ 1,333,394.00"}},{"$f":"SUM($C$36:M36)","v":{"v":1469612,"d":"R$ 1,469,612.00"}},{"$f":"SUM($C$36:N36)","v":{"v":1609630,"d":"R$ 1,609,630.00"}}]

{"sheet":"DESPESAS REAIS","index":2,"n_rows":37,"n_cols":16,"rows_kept":37,"merged":[[1,1,2,3],[1,9,1,12],[1,13,2,14],[2,9,2,12],[8,1,8,2],[19,1,19,2],[28,1,28,2],[33,1,33,2]]}
["Insira os Custos com funcionários, os Custos do escritório, os Custos de marketing e os Custos com viagens ou treinamentos nas respectivas tabelas nesta planilha. Os totais são calculados automaticamente. Instruções úteis sobre como usar esta planilha estão nas células desta coluna. Pressione Seta para baixo para começar.",{"$nulls":14}," "]
["O Nome da empresa é atualizado automaticamente na célula à direita. O título desta planilha está na célula K2. Insira o logotipo na célula N2.",{"$f":"'DESPESAS PLANEJADAS'!B2:D3","v":"Nome da empresa"},{"$nulls":7},{"$f":"título_da_planilha","v":"Estimativas detalhadas de despesas"},{"$nulls":3},"O espaço reservado para o logotipo está nesta célula."]
["As dicas estão na célula K3.",{"$nulls":8},"As células sombreadas são cálculos."]
["O rótulo Despesas reais está na célula à direita, os meses nas células C4 a N4 e o rótulo Ano na célula O4.","DESPESAS REAIS","JAN","FEV","MAR","ABR","MAI","JUN","JUL","AGO","SET","OUT","NOV","DEZ","ANO"]
["Insira os Custos com funcionários na tabela Real funcionários, que começa na célula à direita. A próxima instrução está na célula A10.","Custos com funcionários","Jan","Fev","Mar","Abr","Mai","Jun","Jul","Ago","Set","Out","Nov","Dez","ANO"]
[null,"Salários",{"v":85000,"d":"R$ 85,000.00"},{"v":85000,"d":"R$ 85,000.00"},{"v":85000,"d":"R$ 85,000.00"},{"v":88000,"d":"R$ 88,000.00"},{"v":88000,"d":"R$ 88,000.00"},{"v":88000,"d":"R$ 88,000.00"},{"$nulls":6},{"$f":"SUM(C6:N6)","v":{"v":519000,"d":"R$ 519,000.00"}}]
[null,"Benefícios",{"$f":"C6*0.27","v":{"v":22950,"d":"R$ 22,950.00"}},{"v":22950,"d":"R$ 22,950.00"},{"v":22950,"d":"R$ 22,950.00"},{"v":23760,"d":"R$ 23,760.00"},{"v":23760,"d":"R$ 23,760.00"},{"v":23760,"d":"R$ 23,760.00"},{"v":0,"d":"R$ 0.00"},{"v":0,"d":"R$ 0.00"},{"v":0,"d":"R$ 0.00"},{"v":0,"d":"R$ 0.00"},{"v":0,"d":"R$ 0.00"},{"v":0,"d":"R$ 0.00"},{"$f":"SUM(C7:N7)","v":{"v":140130,"d":"R$ 140,130.00"}}]
[null,"Subtotal",{"$f":"SUBTOTAL(109,RealFuncionários[Jan])","v":{"v":107950,"d":"R$ 107,950.00"}},{"$f":"SUBTOTAL(109,RealFuncionários[Fev])","v":{"v":107950,"d":"R$ 107,950.00"}},{"$f":"SUBTOTAL(109,RealFuncionários[Mar])","v":{"v":107950,"d":"R$ 107,950.00"}},{"$f":"SUBTOTAL(109,RealFuncionários[Abr])","v":{"v":111760,"d":"R$ 111,760.00"}},{"$f":"SUBTOTAL(109,RealFuncionários[Mai])","v":{"v":111760,"d":"R$ 111,760.00"}},{"$f":"SUBTOTAL(109,RealFuncionários[Jun])","v":{"v":111760,"d":"R$ 111,760.00"}},{"$f":"SUBTOTAL(109,RealFuncionários[Jul])","v":{"v":0,"d":"R$ 0.00"}},{"$f":"SUBTOTAL(109,RealFuncionários[Ago])","v":{"v":0,"d":"R$ 0.00"}},{"$f":"SUBTOTAL(109,RealFuncionários[Set])","v":{"v":0,"d":"R$ 0.00"}},{"$f":"SUBTOTAL(109,RealFuncionários[Out])","v":{"v":0,"d":"R$ 0.00"}},{"$f":"SUBTOTAL(109,RealFuncionários[Nov])","v":{"v":0,"d":"R$ 0.00"}},{"$f":"SUBTOTAL(109,RealFuncionários[Dez])","v":{"v":0,"d":"R$ 0.00"}},{"$f":"SUBTOTAL(109,RealFuncionários[ANO])","v":{"v":659130,"d":"R$ 659,130.00"}}]
[]
["Insira os custos do escritório na tabela Real escritório, que começa na célula à direita. A próxima instrução está na célula A21.","Custos do escritório","Jan","Fev","Mar","Abr","Mai","Jun","Jul","Ago","Set","Out","Nov","Dez","ANO"]
[null,"Aluguel do escritório",{"v":9800,"d":"R$ 9,800.00"},{"v":9800,"d":"R$ 9,800.00"},{"v":9800,"d":"R$ 9,800.00"},{"v":9800,"d":"R$ 9,800.00"},{"v":9800,"d":"R$ 9,800.00"},{"v":9800,"d":"R$ 9,800.00"},{"$nulls":6},{"$f":"SUM(C11:N11)","v":{"v":58800,"d":"R$ 58,800.00"}}]
[null,"Gás",{"v":4,"d":"R$ 4.00"},{"v":430,"d":"R$ 430.00"},{"v":385,"d":"R$ 385.00"},{"v":230,"d":"R$ 230.00"},{"v":87,"d":"R$ 87.00"},{"v":88,"d":"R$ 88.00"},{"$nulls":6},{"v":1224,"d":"R$ 1,224.00"}]
[null,"Eletricidade",{"v":288,"d":"R$ 288.00"},{"v":278,"d":"R$ 278.00"},{"v":268,"d":"R$ 268.00"},{"v":299,"d":"R$ 299.00"},{"v":306,"d":"R$ 306.00"},{"v":290,"d":"R$ 290.00"},{"$nulls":6},{"v":1729,"d":"R$ 1,729.00"}]
[null,"Água",{"v":35,"d":"R$ 35.00"},{"v":33,"d":"R$ 33.00"},{"v":34,"d":"R$ 34.00"},{"v":36,"d":"R$ 36.00"},{"v":34,"d":"R$ 34.00"},{"v":36,"d":"R$ 36.00"},{"$nulls":6},{"v":208,"d":"R$ 208.00"}]
[null,"Telefone",{"v":224,"d":"R$ 224.00"},{"v":235,"d":"R$ 235.00"},{"v":265,"d":"R$ 265.00"},{"v":245,"d":"R$ 245.00"},{"v":245,"d":"R$ 245.00"},{"v":220,"d":"R$ 220.00"},{"$nulls":6},{"v":1434,"d":"R$ 1,434.00"}]
[null,"Acesso à Internet",{"v":180,"d":"R$ 180.00"},{"v":180,"d":"R$ 180.00"},{"v":180,"d":"R$ 180.00"},{"v":180,"d":"R$ 180.00"},{"v":180,"d":"R$ 180.00"},{"v":180,"d":"R$ 180.00"},{"$nulls":6},{"v":1080,"d":"R$ 1,080.00"}]
[null,"Material de escritório",{"v":256,"d":"R$ 256.00"},{"v":142,"d":"R$ 142.00"},{"v":160,"d":"R$ 160.00"},{"v":221,"d":"R$ 221.00"},{"v":256,"d":"R$ 256.00"},{"v":240,"d":"R$ 240.00"},{"$nulls":6},{"v":1275,"d":"R$ 1,275.00"}]
[null,"Segurança",{"v":600,"d":"R$ 600.00"},{"v":600,"d":"R$ 600.00"},{"v":600,"d":"R$ 600.00"},{"v":600,"d":"R$ 600.00"},{"v":600,"d":"R$ 600.00"},{"v":600,"d":"R$ 600.00"},{"$nulls":6},{"v":3600,"d":"R$ 3,600.00"}]
[null,"Subtotal",{"$f":"SUBTOTAL(109,RealEscritório[Jan])","v":{"v":11387,"d":"R$ 11,387.00"}},{"$f":"SUBTOTAL(109,RealEscritório[Fev])","v":{"v":11698,"d":"R$ 11,698.00"}},{"$f":"SUBTOTAL(109,RealEscritório[Mar])","v":{"v":11692,"d":"R$ 11,692.00"}},{"$f":"SUBTOTAL(109,RealEscritório[Abr])","v":{"v":11611,"d":"R$ 11,611.00"}},{"$f":"SUBTOTAL(109,RealEscritório[Mai])","v":{"v":11508,"d":"R$ 11,508.00"}},{"$f":"SUBTOTAL(109,RealEscritório[Jun])","v":{"v":11454,"d":"R$ 11,454.00"}},{"$f":"SUBTOTAL(109,RealEscritório[Jul])","v":{"v":0,"d":"R$ 0.00"}},{"$f":"SUBTOTAL(109,RealEscritório[Ago])","v":{"v":0,"d":"R$ 0.00"}},{"$f":"SUBTOTAL(109,RealEscritório[Set])","v":{"v":0,"d":"R$ 0.00"}},{"$f":"SUBTOTAL(109,RealEscritório[Out])","v":{"v":0,"d":"R$ 0.00"}},{"$f":"SUBTOTAL(109,RealEscritório[Nov])","v":{"v":0,"d":"R$ 0.00"}},{"$f":"SUBTOTAL(109,RealEscritório[Dez])","v":{"v":0,"d":"R$ 0.00"}},{"$f":"SUBTOTAL(109,RealEscritório[ANO])","v":{"v":69350,"d":"R$ 69,350.00"}}]
[]
["Insira os custos de marketing na tabela Real marketing, que começa na célula à direita. A próxima instrução está na célula A30.","Custos de marketing","Jan","Fev","Mar","Abr","Mai","Jun","Jul","Ago","Set","Out","Nov","Dez","ANO"]
[null,"Hospedagem de site",{"v":500,"d":"R$ 500.00"},{"v":500,"d":"R$ 500.00"},{"v":500,"d":"R$ 500.00"},{"v":500,"d":"R$ 500.00"},{"v":500,"d":"R$ 500.00"},{"v":500,"d":"R$ 500.00"},{"$nulls":6},{"$f":"SUM(C22:N22)","v":{"v":3000,"d":"R$ 3,000.00"}}]
[null,"Atualizações do site",{"v":200,"d":"R$ 200.00"},{"v":200,"d":"R$ 200.00"},{"v":200,"d":"R$ 200.00"},{"v":200,"d":"R$ 200.00"},{"v":200,"d":"R$ 200.00"},{"v":1500,"d":"R$ 1,500.00"},{"$nulls":6},{"v":2500,"d":"R$ 2,500.00"}]
[null,"Preparação de materiais de referência",{"v":4800,"d":"R$ 4,800.00"},{"v":0,"d":"R$ 0.00"},{"v":0,"d":"R$ 0.00"},{"v":5500,"d":"R$ 5,500.00"},{"v":0,"d":"R$ 0.00"},{"v":0,"d":"R$ 0.00"},{"$nulls":6},{"v":10300,"d":"R$ 10,300.00"}]
[null,"Impressão de materiais de referência",{"v":100,"d":"R$ 100.00"},{"v":500,"d":"R$ 500.00"},{"v":100,"d":"R$ 100.00"},{"v":100,"d":"R$ 100.00"},{"v":600,"d":"R$ 600.00"},{"v":180,"d":"R$ 180.00"},{"$nulls":6},{"v":1580,"d":"R$ 1,580.00"}]
[null,"Eventos de marketing",{"v":1800,"d":"R$ 1,800.00"},{"v":2200,"d":"R$ 2,200.00"},{"v":2200,"d":"R$ 2,200.00"},{"v":4700,"d":"R$ 4,700.00"},{"v":1500,"d":"R$ 1,500.00"},{"v":2300,"d":"R$ 2,300.00"},{"$nulls":6},{"v":14700,"d":"R$ 14,700.00"}]
[null,"Despesas diversas",{"v":145,"d":"R$ 145.00"},{"v":156,"d":"R$ 156.00"},{"v":123,"d":"R$ 123.00"},{"v":223,"d":"R$ 223.00"},{"v":187,"d":"R$ 187.00"},{"v":245,"d":"R$ 245.00"},{"$nulls":6},{"v":1079,"d":"R$ 1,079.00"}]
[null,"Subtotal",{"$f":"SUBTOTAL(109,RealMarketing[Jan])","v":{"v":7545,"d":"R$ 7,545.00"}},{"$f":"SUBTOTAL(109,RealMarketing[Fev])","v":{"v":3556,"d":"R$ 3,556.00"}},{"$f":"SUBTOTAL(109,RealMarketing[Mar])","v":{"v":3123,"d":"R$ 3,123.00"}},{"$f":"SUBTOTAL(109,RealMarketing[Abr])","v":{"v":11223,"d":"R$ 11,223.00"}},{"$f":"SUBTOTAL(109,RealMarketing[Mai])","v":{"v":2987,"d":"R$ 2,987.00"}},{"$f":"SUBTOTAL(109,RealMarketing[Jun])","v":{"v":4725,"d":"R$ 4,725.00"}},{"$f":"SUBTOTAL(109,RealMarketing[Jul])","v":{"v":0,"d":"R$ 0.00"}},{"$f":"SUBTOTAL(109,RealMarketing[Ago])","v":{"v":0,"d":"R$ 0.00"}},{"$f":"SUBTOTAL(109,RealMarketing[Set])","v":{"v":0,"d":"R$ 0.00"}},{"$f":"SUBTOTAL(109,RealMarketing[Out])","v":{"v":0,"d":"R$ 0.00"}},{"$f":"SUBTOTAL(109,RealMarketing[Nov])","v":{"v":0,"d":"R$ 0.00"}},{"$f":"SUBTOTAL(109,RealMarketing[Dez])","v":{"v":0,"d":"R$ 0.00"}},{"$f":"SUBTOTAL(109,RealMarketing[ANO])","v":{"v":33159,"d":"R$ 33,159.00"}}]
[]
["Insira os custos com viagens ou treinamentos na tabela Real viagem e treinamento, que começa na célula à direita. A próxima instrução está na célula A35.","Viagem/Treinamento","Jan","Fev","Mar","Abr","Mai","Jun","Jul","Ago","Set","Out","Nov","Dez","ANO"]
[null,"Sessões de treinamento",{"v":1600,"d":"R$ 1,600.00"},{"v":2400,"d":"R$ 2,400.00"},{"v":1400,"d":"R$ 1,400.00"},{"v":1600,"d":"R$ 1,600.00"},{"v":1200,"d":"R$ 1,200.00"},{"v":2800,"d":"R$ 2,800.00"},{"$nulls":6},{"$f":"SUM(C31:N31)","v":{"v":11000,"d":"R$ 11,000.00"}}]
[null,"Custos com viagens para treinamento",{"v":1200,"d":"R$ 1,200.00"},{"v":2200,"d":"R$ 2,200.00"},{"v":1400,"d":"R$ 1,400.00"},{"v":1200,"d":"R$ 1,200.00"},{"v":800,"d":"R$ 800.00"},{"v":3500,"d":"R$ 3,500.00"},{"$nulls":6},{"$f":"SUM(C32:N32)","v":{"v":10300,"d":"R$ 10,300.00"}}]
[null,"Subtotal",{"$f":"SUBTOTAL(109,RealViagemETreinamento[Jan])","v":{"v":2800,"d":"R$ 2,800.00"}},{"$f":"SUBTOTAL(109,RealViagemETreinamento[Fev])","v":{"v":4600,"d":"R$ 4,600.00"}},{"$f":"SUBTOTAL(109,RealViagemETreinamento[Mar])","v":{"v":2800,"d":"R$ 2,800.00"}},{"$f":"SUBTOTAL(109,RealViagemETreinamento[Abr])","v":{"v":2800,"d":"R$ 2,800.00"}},{"$f":"SUBTOTAL(109,RealViagemETreinamento[Mai])","v":{"v":2000,"d":"R$ 2,000.00"}},{"$f":"SUBTOTAL(109,RealViagemETreinamento[Jun])","v":{"v":6300,"d":"R$ 6,300.00"}},{"$f":"SUBTOTAL(109,RealViagemETreinamento[Jul])","v":{"v":0,"d":"R$ 0.00"}},{"$f":"SUBTOTAL(109,RealViagemETreinamento[Ago])","v":{"v":0,"d":"R$ 0.00"}},{"$f":"SUBTOTAL(109,RealViagemETreinamento[Set])","v":{"v":0,"d":"R$ 0.00"}},{"$f":"SUBTOTAL(109,RealViagemETreinamento[Out])","v":{"v":0,"d":"R$ 0.00"}},{"$f":"SUBTOTAL(109,RealViagemETreinamento[Nov])","v":{"v":0,"d":"R$ 0.00"}},{"$f":"SUBTOTAL(109,RealViagemETreinamento[Dez])","v":{"v":0,"d":"R$ 0.00"}},{"$f":"SUBTOTAL(109,RealViagemETreinamento[ANO])","v":{"v":21300,"d":"R$ 21,300.00"}}]
[]
["As despesas reais totais são calculadas automaticamente na tabela Total real que começa na célula à direita.","TOTAL Despesas planejadas","Jan","Fev","Mar","Abr","Mai","Jun","Jul","Ago","Set","Out","Nov","Dez","Ano"]
[null,"Despesas mensais reais",{"$f":"RealViagemETreinamento[[#Totals],[Jan]]+RealMarketing[[#Totals],[Jan]]+RealEscritório[[#Totals],[Jan]]+RealFuncionários[[#Totals],[Jan]]","v":{"v":129682,"d":"R$ 129,682.00"}},{"$f":"RealViagemETreinamento[[#Totals],[Fev]]+RealMarketing[[#Totals],[Fev]]+RealEscritório[[#Totals],[Fev]]+RealFuncionários[[#Totals],[Fev]]","v":{"v":127804,"d":"R$ 127,804.00"}},{"$f":"RealViagemETreinamento[[#Totals],[Mar]]+RealMarketing[[#Totals],[Mar]]+RealEscritório[[#Totals],[Mar]]+RealFuncionários[[#Totals],[Mar]]","v":{"v":125565,"d":"R$ 125,565.00"}},{"$f":"RealViagemETreinamento[[#Totals],[Abr]]+RealMarketing[[#Totals],[Abr]]+RealEscritório[[#Totals],[Abr]]+RealFuncionários[[#Totals],[Abr]]","v":{"v":137394,"d":"R$ 137,394.00"}},{"$f":"RealViagemETreinamento[[#Totals],[Mai]]+RealMarketing[[#Totals],[Mai]]+RealEscritório[[#Totals],[Mai]]+RealFuncionários[[#Totals],[Mai]]","v":{"v":128255,"d":"R$ 128,255.00"}},{"$f":"RealViagemETreinamento[[#Totals],[Jun]]+RealMarketing[[#Totals],[Jun]]+RealEscritório[[#Totals],[Jun]]+RealFuncionários[[#Totals],[Jun]]","v":{"v":134239,"d":"R$ 134,239.00"}},{"$f":"RealViagemETreinamento[[#Totals],[Jul]]+RealMarketing[[#Totals],[Jul]]+RealEscritório[[#Totals],[Jul]]+RealFuncionários[[#Totals],[Jul]]","v":{"v":0,"d":"R$ 0.00"}},{"$f":"RealViagemETreinamento[[#Totals],[Ago]]+RealMarketing[[#Totals],[Ago]]+RealEscritório[[#Totals],[Ago]]+RealFuncionários[[#Totals],[Ago]]","v":{"v":0,"d":"R$ 0.00"}},{"$f":"RealViagemETreinamento[[#Totals],[Set]]+RealMarketing[[#Totals],[Set]]+RealEscritório[[#Totals],[Set]]+RealFuncionários[[#Totals],[Set]]","v":{"v":0,"d":"R$ 0.00"}},{"$f":"RealViagemETreinamento[[#Totals],[Out]]+RealMarketing[[#Totals],[Out]]+RealEscritório[[#Totals],[Out]]+RealFuncionários[[#Totals],[Out]]","v":{"v":0,"d":"R$ 0.00"}},{"$f":"RealViagemETreinamento[[#Totals],[Nov]]+RealMarketing[[#Totals],[Nov]]+RealEscritório[[#Totals],[Nov]]+RealFuncionários[[#Totals],[Nov]]","v":{"v":0,"d":"R$ 0.00"}},{"$f":"RealViagemETreinamento[[#Totals],[Dez]]+RealMarketing[[#Totals],[Dez]]+RealEscritório[[#Totals],[Dez]]+RealFuncionários[[#Totals],[Dez]]","v":{"v":0,"d":"R$ 0.00"}},{"$f":"RealViagemETreinamento[[#Totals],[ANO]]+RealMarketing[[#Totals],[ANO]]+RealEscritório[[#Totals],[ANO]]+RealFuncionários[[#Totals],[ANO]]","v":{"v":782939,"d":"R$ 782,939.00"}}]
[null,"TOTAL Despesas reais",{"$f":"SUM($C$36:C36)","v":{"v":129682,"d":"R$ 129,682.00"}},{"$f":"SUM($C$36:D36)","v":{"v":257486,"d":"R$ 257,486.00"}},{"$f":"SUM($C$36:E36)","v":{"v":383051,"d":"R$ 383,051.00"}},{"$f":"SUM($C$36:F36)","v":{"v":520445,"d":"R$ 520,445.00"}},{"$f":"SUM($C$36:G36)","v":{"v":648700,"d":"R$ 648,700.00"}},{"$f":"SUM($C$36:H36)","v":{"v":782939,"d":"R$ 782,939.00"}},{"$f":"SUM($C$36:I36)","v":{"v":782939,"d":"R$ 782,939.00"}},{"$f":"SUM($C$36:J36)","v":{"v":782939,"d":"R$ 782,939.00"}},{"$f":"SUM($C$36:K36)","v":{"v":782939,"d":"R$ 782,939.00"}},{"$f":"SUM($C$36:L36)","v":{"v":782939,"d":"R$ 782,939.00"}},{"$f":"SUM($C$36:M36)","v":{"v":782939,"d":"R$ 782,939.00"}},{"$f":"SUM($C$36:N36)","v":{"v":782939,"d":"R$ 782,939.00"}}]

{"sheet":"VARIAÇÕES DE DESPESAS","index":3,"n_rows":37,"n_cols":16,"rows_kept":37,"merged":[[1,1,2,3],[1,9,1,12],[1,13,2,14],[2,9,2,12],[8,1,8,2],[19,1,19,2],[28,1,28,2],[33,1,33,2]]}
["As Variações de despesas são calculadas automaticamente nesta planilha para Custos com funcionários, Custos do escritório, Custos de marketing e Custos com viagens ou treinamento nas respectivas tabelas desta planilha. Instruções úteis sobre como usar esta planilha estão nas células desta coluna. Pressione Seta para baixo para começar.",{"$nulls":14}," "]
["O Nome da empresa é atualizado automaticamente na célula à direita. O título desta planilha está na célula K2. Insira o logotipo na célula N2.",{"$f":"'DESPESAS PLANEJADAS'!B2:D3","v":"Nome da empresa"},{"$nulls":7},{"$f":"título_da_planilha","v":"Estimativas detalhadas de despesas"},{"$nulls":3},"O espaço reservado para o logotipo está nesta célula."]
["As dicas estão na célula K3.",{"$nulls":8},"As células sombreadas são cálculos."]
["O rótulo Variações de despesas está na célula à direita, os meses nas células C4 a N4 e o rótulo Ano na célula O4.","VARIAÇÕES DE DESPESAS","JAN","FEV","MAR","ABR","MAI","JUN","JUL","AGO","SET","OUT","NOV","DEZ","ANO"]
["A variação nos Custos com funcionários é calculada automaticamente na tabela Variações de funcionários que começa na célula à direita. A próxima instrução está na célula A10.","Custos com funcionários","Jan","Fev","Mar","Abr","Mai","Jun","Jul","Ago","Set","Out","Nov","Dez","ANO"]
[null,"Salários",{"$f":"INDEX(PlanejamentoDeFuncionários[],MATCH(INDEX(VariaçõesDeFuncionários[],ROW()-ROW(VariaçõesDeFuncionários[[#Headers],[Jan]]),1),INDEX(PlanejamentoDeFuncionários[],,1),0),MATCH(VariaçõesDeFuncionários[[#Headers],[Jan]],PlanejamentoDeFuncionários[#Headers],0))-INDEX(RealFuncionários[],MATCH(INDEX(VariaçõesDeFuncionários[],ROW()-ROW(VariaçõesDeFuncionários[[#Headers],[Jan]]),1),INDEX(PlanejamentoDeFuncionários[],,1),0),MATCH(VariaçõesDeFuncionários[[#Headers],[Jan]],RealFuncionários[#Headers],0))","v":{"v":0,"d":"R$ 0.00"}},{"$f":"INDEX(PlanejamentoDeFuncionários[],MATCH(INDEX(VariaçõesDeFuncionários[],ROW()-ROW(VariaçõesDeFuncionários[[#Headers],[Fev]]),1),INDEX(PlanejamentoDeFuncionários[],,1),0),MATCH(VariaçõesDeFuncionários[[#Headers],[Fev]],PlanejamentoDeFuncionários[#Headers],0))-INDEX(RealFuncionários[],MATCH(INDEX(VariaçõesDeFuncionários[],ROW()-ROW(VariaçõesDeFuncionários[[#Headers],[Fev]]),1),INDEX(PlanejamentoDeFuncionários[],,1),0),MATCH(VariaçõesDeFuncionários[[#Headers],[Fev]],RealFuncionários[#Headers],0))","v":{"v":0,"d":"R$ 0.00"}},{"$f":"INDEX(PlanejamentoDeFuncionários[],MATCH(INDEX(VariaçõesDeFuncionários[],ROW()-ROW(VariaçõesDeFuncionários[[#Headers],[Mar]]),1),INDEX(PlanejamentoDeFuncionários[],,1),0),MATCH(VariaçõesDeFuncionários[[#Headers],[Mar]],PlanejamentoDeFuncionários[#Headers],0))-INDEX(RealFuncionários[],MATCH(INDEX(VariaçõesDeFuncionários[],ROW()-ROW(VariaçõesDeFuncionários[[#Headers],[Mar]]),1),INDEX(PlanejamentoDeFuncionários[],,1),0),MATCH(VariaçõesDeFuncionários[[#Headers],[Mar]],RealFuncionários[#Headers],0))","v":{"v":0,"d":"R$ 0.00"}},{"$f":"INDEX(PlanejamentoDeFuncionários[],MATCH(INDEX(VariaçõesDeFuncionários[],ROW()-ROW(VariaçõesDeFuncionários[[#Headers],[Abr]]),1),INDEX(PlanejamentoDeFuncionários[],,1),0),MATCH(VariaçõesDeFuncionários[[#Headers],[Abr]],PlanejamentoDeFuncionários[#Headers],0))-INDEX(RealFuncionários[],MATCH(INDEX(VariaçõesDeFuncionários[],ROW()-ROW(VariaçõesDeFuncionários[[#Headers],[Abr]]),1),INDEX(PlanejamentoDeFuncionários[],,1),0),MATCH(VariaçõesDeFuncionários[[#Headers],[Abr]],RealFuncionários[#Headers],0))","v":{"v":-500,"d":"-R$ 500.00"}},{"$f":"INDEX(PlanejamentoDeFuncionários[],MATCH(INDEX(VariaçõesDeFuncionários[],ROW()-ROW(VariaçõesDeFuncionários[[#Headers],[Mai]]),1),INDEX(PlanejamentoDeFuncionários[],,1),0),MATCH(VariaçõesDeFuncionários[[#Headers],[Mai]],PlanejamentoDeFuncionários[#Headers],0))-INDEX(RealFuncionários[],MATCH(INDEX(VariaçõesDeFuncionários[],ROW()-ROW(VariaçõesDeFuncionários[[#Headers],[Mai]]),1),INDEX(PlanejamentoDeFuncionários[],,1),0),MATCH(VariaçõesDeFuncionários[[#Headers],[Mai]],RealFuncionários[#Headers],0))","v":{"v":-500,"d":"-R$ 500.00"}},{"$f":"INDEX(PlanejamentoDeFuncionários[],MATCH(INDEX(VariaçõesDeFuncionários[],ROW()-ROW(VariaçõesDeFuncionários[[#Headers],[Jun]]),1),INDEX(PlanejamentoDeFuncionários[],,1),0),MATCH(VariaçõesDeFuncionários[[#Headers],[Jun]],PlanejamentoDeFuncionários[#Headers],0))-INDEX(RealFuncionários[],MATCH(INDEX(VariaçõesDeFuncionários[],ROW()-ROW(VariaçõesDeFuncionários[[#Headers],[Jun]]),1),INDEX(PlanejamentoDeFuncionários[],,1),0),MATCH(VariaçõesDeFuncionários[[#Headers],[Jun]],RealFuncionários[#Headers],0))","v":{"v":-500,"d":"-R$ 500.00"}},{"$f":"INDEX(PlanejamentoDeFuncionários[],MATCH(INDEX(VariaçõesDeFuncionários[],ROW()-ROW(VariaçõesDeFuncionários[[#Headers],[Jul]]),1),INDEX(PlanejamentoDeFuncionários[],,1),0),MATCH(VariaçõesDeFuncionários[[#Headers],[Jul]],PlanejamentoDeFuncionários[#Headers],0))-INDEX(RealFuncionários[],MATCH(INDEX(VariaçõesDeFuncionários[],ROW()-ROW(VariaçõesDeFuncionários[[#Headers],[Jul]]),1),INDEX(PlanejamentoDeFuncionários[],,1),0),MATCH(VariaçõesDeFuncionários[[#Headers],[Jul]],RealFuncionários[#Headers],0))","v":{"v":87500,"d":"R$ 87,500.00"}},{"$f":"INDEX(PlanejamentoDeFuncionários[],MATCH(INDEX(VariaçõesDeFuncionários[],ROW()-ROW(VariaçõesDeFuncionários[[#Headers],[Ago]]),1),INDEX(PlanejamentoDeFuncionários[],,1),0),MATCH(VariaçõesDeFuncionários[[#Headers],[Ago]],PlanejamentoDeFuncionários[#Headers],0))-INDEX(RealFuncionários[],MATCH(INDEX(VariaçõesDeFuncionários[],ROW()-ROW(VariaçõesDeFuncionários[[#Headers],[Ago]]),1),INDEX(PlanejamentoDeFuncionários[],,1),0),MATCH(VariaçõesDeFuncionários[[#Headers],[Ago]],RealFuncionários[#Headers],0))","v":{"v":92400,"d":"R$ 92,400.00"}},{"$f":"INDEX(PlanejamentoDeFuncionários[],MATCH(INDEX(VariaçõesDeFuncionários[],ROW()-ROW(VariaçõesDeFuncionários[[#Headers],[Set]]),1),INDEX(PlanejamentoDeFuncionários[],,1),0),MATCH(VariaçõesDeFuncionários[[#Headers],[Set]],PlanejamentoDeFuncionários[#Headers],0))-INDEX(RealFuncionários[],MATCH(INDEX(VariaçõesDeFuncionários[],ROW()-ROW(VariaçõesDeFuncionários[[#Headers],[Set]]),1),INDEX(PlanejamentoDeFuncionários[],,1),0),MATCH(VariaçõesDeFuncionários[[#Headers],[Set]],RealFuncionários[#Headers],0))","v":{"v":92400,"d":"R$ 92,400.00"}},{"$f":"INDEX(PlanejamentoDeFuncionários[],MATCH(INDEX(VariaçõesDeFuncionários[],ROW()-ROW(VariaçõesDeFuncionários[[#Headers],[Out]]),1),INDEX(PlanejamentoDeFuncionários[],,1),0),MATCH(VariaçõesDeFuncionários[[#Headers],[Out]],PlanejamentoDeFuncionários[#Headers],0))-INDEX(RealFuncionários[],MATCH(INDEX(VariaçõesDeFuncionários[],ROW()-ROW(VariaçõesDeFuncionários[[#Headers],[Out]]),1),INDEX(PlanejamentoDeFuncionários[],,1),0),MATCH(VariaçõesDeFuncionários[[#Headers],[Out]],RealFuncionários[#Headers],0))","v":{"v":92400,"d":"R$ 92,400.00"}},{"$f":"INDEX(PlanejamentoDeFuncionários[],MATCH(INDEX(VariaçõesDeFuncionários[],ROW()-ROW(VariaçõesDeFuncionários[[#Headers],[Nov]]),1),INDEX(PlanejamentoDeFuncionários[],,1),0),MATCH(VariaçõesDeFuncionários[[#Headers],[Nov]],PlanejamentoDeFuncionários[#Headers],0))-INDEX(RealFuncionários[],MATCH(INDEX(VariaçõesDeFuncionários[],ROW()-ROW(VariaçõesDeFuncionários[[#Headers],[Nov]]),1),INDEX(PlanejamentoDeFuncionários[],,1),0),MATCH(VariaçõesDeFuncionários[[#Headers],[Nov]],RealFuncionários[#Headers],0))","v":{"v":92400,"d":"R$ 92,400.00"}},{"$f":"INDEX(PlanejamentoDeFuncionários[],MATCH(INDEX(VariaçõesDeFuncionários[],ROW()-ROW(VariaçõesDeFuncionários[[#Headers],[Dez]]),1),INDEX(PlanejamentoDeFuncionários[],,1),0),MATCH(VariaçõesDeFuncionários[[#Headers],[Dez]],PlanejamentoDeFuncionários[#Headers],0))-INDEX(RealFuncionários[],MATCH(INDEX(VariaçõesDeFuncionários[],ROW()-ROW(VariaçõesDeFuncionários[[#Headers],[Dez]]),1),INDEX(PlanejamentoDeFuncionários[],,1),0),MATCH(VariaçõesDeFuncionários[[#Headers],[Dez]],RealFuncionários[#Headers],0))","v":{"v":92400,"d":"R$ 92,400.00"}},{"$f":"SUM(VariaçõesDeFuncionários[[#This Row],[Jan]:[Dez]])","v":{"v":548000,"d":"R$ 548,000.00"}}]
[null,"Benefícios",{"$f":"INDEX(PlanejamentoDeFuncionários[],MATCH(INDEX(VariaçõesDeFuncionários[],ROW()-ROW(VariaçõesDeFuncionários[[#Headers],[Jan]]),1),INDEX(PlanejamentoDeFuncionários[],,1),0),MATCH(VariaçõesDeFuncionários[[#Headers],[Jan]],PlanejamentoDeFuncionários[#Headers],0))-INDEX(RealFuncionários[],MATCH(INDEX(VariaçõesDeFuncionários[],ROW()-ROW(VariaçõesDeFuncionários[[#Headers],[Jan]]),1),INDEX(PlanejamentoDeFuncionários[],,1),0),MATCH(VariaçõesDeFuncionários[[#Headers],[Jan]],RealFuncionários[#Headers],0))","v":{"v":0,"d":"R$ 0.00"}},{"$f":"INDEX(PlanejamentoDeFuncionários[],MATCH(INDEX(VariaçõesDeFuncionários[],ROW()-ROW(VariaçõesDeFuncionários[[#Headers],[Fev]]),1),INDEX(PlanejamentoDeFuncionários[],,1),0),MATCH(VariaçõesDeFuncionários[[#Headers],[Fev]],PlanejamentoDeFuncionários[#Headers],0))-INDEX(RealFuncionários[],MATCH(INDEX(VariaçõesDeFuncionários[],ROW()-ROW(VariaçõesDeFuncionários[[#Headers],[Fev]]),1),INDEX(PlanejamentoDeFuncionários[],,1),0),MATCH(VariaçõesDeFuncionários[[#Headers],[Fev]],RealFuncionários[#Headers],0))","v":{"v":0,"d":"R$ 0.00"}},{"$f":"INDEX(PlanejamentoDeFuncionários[],MATCH(INDEX(VariaçõesDeFuncionários[],ROW()-ROW(VariaçõesDeFuncionários[[#Headers],[Mar]]),1),INDEX(PlanejamentoDeFuncionários[],,1),0),MATCH(VariaçõesDeFuncionários[[#Headers],[Mar]],PlanejamentoDeFuncionários[#Headers],0))-INDEX(RealFuncionários[],MATCH(INDEX(VariaçõesDeFuncionários[],ROW()-ROW(VariaçõesDeFuncionários[[#Headers],[Mar]]),1),INDEX(PlanejamentoDeFuncionários[],,1),0),MATCH(VariaçõesDeFuncionários[[#Headers],[Mar]],RealFuncionários[#Headers],0))","v":{"v":0,"d":"R$ 0.00"}},{"$f":"INDEX(PlanejamentoDeFuncionários[],MATCH(INDEX(VariaçõesDeFuncionários[],ROW()-ROW(VariaçõesDeFuncionários[[#Headers],[Abr]]),1),INDEX(PlanejamentoDeFuncionários[],,1),0),MATCH(VariaçõesDeFuncionários[[#Headers],[Abr]],PlanejamentoDeFuncionários[#Headers],0))-INDEX(RealFuncionários[],MATCH(INDEX(VariaçõesDeFuncionários[],ROW()-ROW(VariaçõesDeFuncionários[[#Headers],[Abr]]),1),INDEX(PlanejamentoDeFuncionários[],,1),0),MATCH(VariaçõesDeFuncionários[[#Headers],[Abr]],RealFuncionários[#Headers],0))","v":{"v":-135,"d":"-R$ 135.00"}},{"$f":"INDEX(PlanejamentoDeFuncionários[],MATCH(INDEX(VariaçõesDeFuncionários[],ROW()-ROW(VariaçõesDeFuncionários[[#Headers],[Mai]]),1),INDEX(PlanejamentoDeFuncionários[],,1),0),MATCH(VariaçõesDeFuncionários[[#Headers],[Mai]],PlanejamentoDeFuncionários[#Headers],0))-INDEX(RealFuncionários[],MATCH(INDEX(VariaçõesDeFuncionários[],ROW()-ROW(VariaçõesDeFuncionários[[#Headers],[Mai]]),1),INDEX(PlanejamentoDeFuncionários[],,1),0),MATCH(VariaçõesDeFuncionários[[#Headers],[Mai]],RealFuncionários[#Headers],0))","v":{"v":-135,"d":"-R$ 135.00"}},{"$f":"INDEX(PlanejamentoDeFuncionários[],MATCH(INDEX(VariaçõesDeFuncionários[],ROW()-ROW(VariaçõesDeFuncionários[[#Headers],[Jun]]),1),INDEX(PlanejamentoDeFuncionários[],,1),0),MATCH(VariaçõesDeFuncionários[[#Headers],[Jun]],PlanejamentoDeFuncionários[#Headers],0))-INDEX(RealFuncionários[],MATCH(INDEX(VariaçõesDeFuncionários[],ROW()-ROW(VariaçõesDeFuncionários[[#Headers],[Jun]]),1),INDEX(PlanejamentoDeFuncionários[],,1),0),MATCH(VariaçõesDeFuncionários[[#Headers],[Jun]],RealFuncionários[#Headers],0))","v":{"v":-135,"d":"-R$ 135.00"}},{"$f":"INDEX(PlanejamentoDeFuncionários[],MATCH(INDEX(VariaçõesDeFuncionários[],ROW()-ROW(VariaçõesDeFuncionários[[#Headers],[Jul]]),1),INDEX(PlanejamentoDeFuncionários[],,1),0),MATCH(VariaçõesDeFuncionários[[#Headers],[Jul]],PlanejamentoDeFuncionários[#Headers],0))-INDEX(RealFuncionários[],MATCH(INDEX(VariaçõesDeFuncionários[],ROW()-ROW(VariaçõesDeFuncionários[[#Headers],[Jul]]),1),INDEX(PlanejamentoDeFuncionários[],,1),0),MATCH(VariaçõesDeFuncionários[[#Headers],[Jul]],RealFuncionários[#Headers],0))","v":{"v":23625,"d":"R$ 23,625.00"}},{"$f":"INDEX(PlanejamentoDeFuncionários[],MATCH(INDEX(VariaçõesDeFuncionários[],ROW()-ROW(VariaçõesDeFuncionários[[#Headers],[Ago]]),1),INDEX(PlanejamentoDeFuncionários[],,1),0),MATCH(VariaçõesDeFuncionários[[#Headers],[Ago]],PlanejamentoDeFuncionários[#Headers],0))-INDEX(RealFuncionários[],MATCH(INDEX(VariaçõesDeFuncionários[],ROW()-ROW(VariaçõesDeFuncionários[[#Headers],[Ago]]),1),INDEX(PlanejamentoDeFuncionários[],,1),0),MATCH(VariaçõesDeFuncionários[[#Headers],[Ago]],RealFuncionários[#Headers],0))","v":{"v":24948,"d":"R$ 24,948.00"}},{"$f":"INDEX(PlanejamentoDeFuncionários[],MATCH(INDEX(VariaçõesDeFuncionários[],ROW()-ROW(VariaçõesDeFuncionários[[#Headers],[Set]]),1),INDEX(PlanejamentoDeFuncionários[],,1),0),MATCH(VariaçõesDeFuncionários[[#Headers],[Set]],PlanejamentoDeFuncionários[#Headers],0))-INDEX(RealFuncionários[],MATCH(INDEX(VariaçõesDeFuncionários[],ROW()-ROW(VariaçõesDeFuncionários[[#Headers],[Set]]),1),INDEX(PlanejamentoDeFuncionários[],,1),0),MATCH(VariaçõesDeFuncionários[[#Headers],[Set]],RealFuncionários[#Headers],0))","v":{"v":24948,"d":"R$ 24,948.00"}},{"$f":"INDEX(PlanejamentoDeFuncionários[],MATCH(INDEX(VariaçõesDeFuncionários[],ROW()-ROW(VariaçõesDeFuncionários[[#Headers],[Out]]),1),INDEX(PlanejamentoDeFuncionários[],,1),0),MATCH(VariaçõesDeFuncionários[[#Headers],[Out]],PlanejamentoDeFuncionários[#Headers],0))-INDEX(RealFuncionários[],MATCH(INDEX(VariaçõesDeFuncionários[],ROW()-ROW(VariaçõesDeFuncionários[[#Headers],[Out]]),1),INDEX(PlanejamentoDeFuncionários[],,1),0),MATCH(VariaçõesDeFuncionários[[#Headers],[Out]],RealFuncionários[#Headers],0))","v":{"v":24948,"d":"R$ 24,948.00"}},{"$f":"INDEX(PlanejamentoDeFuncionários[],MATCH(INDEX(VariaçõesDeFuncionários[],ROW()-ROW(VariaçõesDeFuncionários[[#Headers],[Nov]]),1),INDEX(PlanejamentoDeFuncionários[],,1),0),MATCH(VariaçõesDeFuncionários[[#Headers],[Nov]],PlanejamentoDeFuncionários[#Headers],0))-INDEX(RealFuncionários[],MATCH(INDEX(VariaçõesDeFuncionários[],ROW()-ROW(VariaçõesDeFuncionários[[#Headers],[Nov]]),1),INDEX(PlanejamentoDeFuncionários[],,1),0),MATCH(VariaçõesDeFuncionários[[#Headers],[Nov]],RealFuncionários[#Headers],0))","v":{"v":24948,"d":"R$ 24,948.00"}},{"$f":"INDEX(PlanejamentoDeFuncionários[],MATCH(INDEX(VariaçõesDeFuncionários[],ROW()-ROW(VariaçõesDeFuncionários[[#Headers],[Dez]]),1),INDEX(PlanejamentoDeFuncionários[],,1),0),MATCH(VariaçõesDeFuncionários[[#Headers],[Dez]],PlanejamentoDeFuncionários[#Headers],0))-INDEX(RealFuncionários[],MATCH(INDEX(VariaçõesDeFuncionários[],ROW()-ROW(VariaçõesDeFuncionários[[#Headers],[Dez]]),1),INDEX(PlanejamentoDeFuncionários[],,1),0),MATCH(VariaçõesDeFuncionários[[#Headers],[Dez]],RealFuncionários[#Headers],0))","v":{"v":24948,"d":"R$ 24,948.00"}},{"$f":"SUM(VariaçõesDeFuncionários[[#This Row],[Jan]:[Dez]])","v":{"v":147960,"d":"R$ 147,960.00"}}]
[null,"Subtotal",{"$f":"SUBTOTAL(109,VariaçõesDeFuncionários[Jan])","v":{"v":0,"d":"R$ 0.00"}},{"$f":"SUBTOTAL(109,VariaçõesDeFuncionários[Fev])","v":{"v":0,"d":"R$ 0.00"}},{"$f":"SUBTOTAL(109,VariaçõesDeFuncionários[Mar])","v":{"v":0,"d":"R$ 0.00"}},{"$f":"SUBTOTAL(109,VariaçõesDeFuncionários[Abr])","v":{"v":-635,"d":"-R$ 635.00"}},{"$f":"SUBTOTAL(109,VariaçõesDeFuncionários[Mai])","v":{"v":-635,"d":"-R$ 635.00"}},{"$f":"SUBTOTAL(109,VariaçõesDeFuncionários[Jun])","v":{"v":-635,"d":"-R$ 635.00"}},{"$f":"SUBTOTAL(109,VariaçõesDeFuncionários[Jul])","v":{"v":111125,"d":"R$ 111,125.00"}},{"$f":"SUBTOTAL(109,VariaçõesDeFuncionários[Ago])","v":{"v":117348,"d":"R$ 117,348.00"}},{"$f":"SUBTOTAL(109,VariaçõesDeFuncionários[Set])","v":{"v":117348,"d":"R$ 117,348.00"}},{"$f":"SUBTOTAL(109,VariaçõesDeFuncionários[Out])","v":{"v":117348,"d":"R$ 117,348.00"}},{"$f":"SUBTOTAL(109,VariaçõesDeFuncionários[Nov])","v":{"v":117348,"d":"R$ 117,348.00"}},{"$f":"SUBTOTAL(109,VariaçõesDeFuncionários[Dez])","v":{"v":117348,"d":"R$ 117,348.00"}},{"$f":"SUBTOTAL(109,VariaçõesDeFuncionários[ANO])","v":{"v":695960,"d":"R$ 695,960.00"}}]
[]
["A variação nos Custos do escritório é calculada automaticamente na tabela Variações do escritório que começa na célula à direita. A próxima instrução está na célula A21.","Custos do escritório","Jan","Fev","Mar","Abr","Mai","Jun","Jul","Ago","Set","Out","Nov","Dez","ANO"]
[null,"Aluguel do escritório",{"$f":"INDEX(PlanejamentoDoEscritório[],MATCH(INDEX(VariaçõesDoEscritório[],ROW()-ROW(VariaçõesDoEscritório[[#Headers],[Jan]]),1),INDEX(PlanejamentoDoEscritório[],,1),0),MATCH(VariaçõesDoEscritório[[#Headers],[Jan]],PlanejamentoDoEscritório[#Headers],0))-INDEX(RealEscritório[],MATCH(INDEX(VariaçõesDoEscritório[],ROW()-ROW(VariaçõesDoEscritório[[#Headers],[Jan]]),1),INDEX(PlanejamentoDoEscritório[],,1),0),MATCH(VariaçõesDoEscritório[[#Headers],[Jan]],RealEscritório[#Headers],0))","v":{"v":0,"d":"R$ 0.00"}},{"$f":"INDEX(PlanejamentoDoEscritório[],MATCH(INDEX(VariaçõesDoEscritório[],ROW()-ROW(VariaçõesDoEscritório[[#Headers],[Fev]]),1),INDEX(PlanejamentoDoEscritório[],,1),0),MATCH(VariaçõesDoEscritório[[#Headers],[Fev]],PlanejamentoDoEscritório[#Headers],0))-INDEX(RealEscritório[],MATCH(INDEX(VariaçõesDoEscritório[],ROW()-ROW(VariaçõesDoEscritório[[#Headers],[Fev]]),1),INDEX(PlanejamentoDoEscritório[],,1),0),MATCH(VariaçõesDoEscritório[[#Headers],[Fev]],RealEscritório[#Headers],0))","v":{"v":0,"d":"R$ 0.00"}},{"$f":"INDEX(PlanejamentoDoEscritório[],MATCH(INDEX(VariaçõesDoEscritório[],ROW()-ROW(VariaçõesDoEscritório[[#Headers],[Mar]]),1),INDEX(PlanejamentoDoEscritório[],,1),0),MATCH(VariaçõesDoEscritório[[#Headers],[Mar]],PlanejamentoDoEscritório[#Headers],0))-INDEX(RealEscritório[],MATCH(INDEX(VariaçõesDoEscritório[],ROW()-ROW(VariaçõesDoEscritório[[#Headers],[Mar]]),1),INDEX(PlanejamentoDoEscritório[],,1),0),MATCH(VariaçõesDoEscritório[[#Headers],[Mar]],RealEscritório[#Headers],0))","v":{"v":0,"d":"R$ 0.00"}},{"$f":"INDEX(PlanejamentoDoEscritório[],MATCH(INDEX(VariaçõesDoEscritório[],ROW()-ROW(VariaçõesDoEscritório[[#Headers],[Abr]]),1),INDEX(PlanejamentoDoEscritório[],,1),0),MATCH(VariaçõesDoEscritório[[#Headers],[Abr]],PlanejamentoDoEscritório[#Headers],0))-INDEX(RealEscritório[],MATCH(INDEX(VariaçõesDoEscritório[],ROW()-ROW(VariaçõesDoEscritório[[#Headers],[Abr]]),1),INDEX(PlanejamentoDoEscritório[],,1),0),MATCH(VariaçõesDoEscritório[[#Headers],[Abr]],RealEscritório[#Headers],0))","v":{"v":0,"d":"R$ 0.00"}},{"$f":"INDEX(PlanejamentoDoEscritório[],MATCH(INDEX(VariaçõesDoEscritório[],ROW()-ROW(VariaçõesDoEscritório[[#Headers],[Mai]]),1),INDEX(PlanejamentoDoEscritório[],,1),0),MATCH(VariaçõesDoEscritório[[#Headers],[Mai]],PlanejamentoDoEscritório[#Headers],0))-INDEX(RealEscritório[],MATCH(INDEX(VariaçõesDoEscritório[],ROW()-ROW(VariaçõesDoEscritório[[#Headers],[Mai]]),1),INDEX(PlanejamentoDoEscritório[],,1),0),MATCH(VariaçõesDoEscritório[[#Headers],[Mai]],RealEscritório[#Headers],0))","v":{"v":0,"d":"R$ 0.00"}},{"$f":"INDEX(PlanejamentoDoEscritório[],MATCH(INDEX(VariaçõesDoEscritório[],ROW()-ROW(VariaçõesDoEscritório[[#Headers],[Jun]]),1),INDEX(PlanejamentoDoEscritório[],,1),0),MATCH(VariaçõesDoEscritório[[#Headers],[Jun]],PlanejamentoDoEscritório[#Headers],0))-INDEX(RealEscritório[],MATCH(INDEX(VariaçõesDoEscritório[],ROW()-ROW(VariaçõesDoEscritório[[#Headers],[Jun]]),1),INDEX(PlanejamentoDoEscritório[],,1),0),MATCH(VariaçõesDoEscritório[[#Headers],[Jun]],RealEscritório[#Headers],0))","v":{"v":0,"d":"R$ 0.00"}},{"$f":"INDEX(PlanejamentoDoEscritório[],MATCH(INDEX(VariaçõesDoEscritório[],ROW()-ROW(VariaçõesDoEscritório[[#Headers],[Jul]]),1),INDEX(PlanejamentoDoEscritório[],,1),0),MATCH(VariaçõesDoEscritório[[#Headers],[Jul]],PlanejamentoDoEscritório[#Headers],0))-INDEX(RealEscritório[],MATCH(INDEX(VariaçõesDoEscritório[],ROW()-ROW(VariaçõesDoEscritório[[#Headers],[Jul]]),1),INDEX(PlanejamentoDoEscritório[],,1),0),MATCH(VariaçõesDoEscritório[[#Headers],[Jul]],RealEscritório[#Headers],0))","v":{"v":9800,"d":"R$ 9,800.00"}},{"$f":"INDEX(PlanejamentoDoEscritório[],MATCH(INDEX(VariaçõesDoEscritório[],ROW()-ROW(VariaçõesDoEscritório[[#Headers],[Ago]]),1),INDEX(PlanejamentoDoEscritório[],,1),0),MATCH(VariaçõesDoEscritório[[#Headers],[Ago]],PlanejamentoDoEscritório[#Headers],0))-INDEX(RealEscritório[],MATCH(INDEX(VariaçõesDoEscritório[],ROW()-ROW(VariaçõesDoEscritório[[#Headers],[Ago]]),1),INDEX(PlanejamentoDoEscritório[],,1),0),MATCH(VariaçõesDoEscritório[[#Headers],[Ago]],RealEscritório[#Headers],0))","v":{"v":9800,"d":"R$ 9,800.00"}},{"$f":"INDEX(PlanejamentoDoEscritório[],MATCH(INDEX(VariaçõesDoEscritório[],ROW()-ROW(VariaçõesDoEscritório[[#Headers],[Set]]),1),INDEX(PlanejamentoDoEscritório[],,1),0),MATCH(VariaçõesDoEscritório[[#Headers],[Set]],PlanejamentoDoEscritório[#Headers],0))-INDEX(RealEscritório[],MATCH(INDEX(VariaçõesDoEscritório[],ROW()-ROW(VariaçõesDoEscritório[[#Headers],[Set]]),1),INDEX(PlanejamentoDoEscritório[],,1),0),MATCH(VariaçõesDoEscritório[[#Headers],[Set]],RealEscritório[#Headers],0))","v":{"v":9800,"d":"R$ 9,800.00"}},{"$f":"INDEX(PlanejamentoDoEscritório[],MATCH(INDEX(VariaçõesDoEscritório[],ROW()-ROW(VariaçõesDoEscritório[[#Headers],[Out]]),1),INDEX(PlanejamentoDoEscritório[],,1),0),MATCH(VariaçõesDoEscritório[[#Headers],[Out]],PlanejamentoDoEscritório[#Headers],0))-INDEX(RealEscritório[],MATCH(INDEX(VariaçõesDoEscritório[],ROW()-ROW(VariaçõesDoEscritório[[#Headers],[Out]]),1),INDEX(PlanejamentoDoEscritório[],,1),0),MATCH(VariaçõesDoEscritório[[#Headers],[Out]],RealEscritório[#Headers],0))","v":{"v":9800,"d":"R$ 9,800.00"}},{"$f":"INDEX(PlanejamentoDoEscritório[],MATCH(INDEX(VariaçõesDoEscritório[],ROW()-ROW(VariaçõesDoEscritório[[#Headers],[Nov]]),1),INDEX(PlanejamentoDoEscritório[],,1),0),MATCH(VariaçõesDoEscritório[[#Headers],[Nov]],PlanejamentoDoEscritório[#Headers],0))-INDEX(RealEscritório[],MATCH(INDEX(VariaçõesDoEscritório[],ROW()-ROW(VariaçõesDoEscritório[[#Headers],[Nov]]),1),INDEX(PlanejamentoDoEscritório[],,1),0),MATCH(VariaçõesDoEscritório[[#Headers],[Nov]],RealEscritório[#Headers],0))","v":{"v":9800,"d":"R$ 9,800.00"}},{"$f":"INDEX(PlanejamentoDoEscritório[],MATCH(INDEX(VariaçõesDoEscritório[],ROW()-ROW(VariaçõesDoEscritório[[#Headers],[Dez]]),1),INDEX(PlanejamentoDoEscritório[],,1),0),MATCH(VariaçõesDoEscritório[[#Headers],[Dez]],PlanejamentoDoEscritório[#Headers],0))-INDEX(RealEscritório[],MATCH(INDEX(VariaçõesDoEscritório[],ROW()-ROW(VariaçõesDoEscritório[[#Headers],[Dez]]),1),INDEX(PlanejamentoDoEscritório[],,1),0),MATCH(VariaçõesDoEscritório[[#Headers],[Dez]],RealEscritório[#Headers],0))","v":{"v":9800,"d":"R$ 9,800.00"}},{"$f":"SUM(VariaçõesDoEscritório[[#This Row],[Jan]:[Dez]])","v":{"v":58800,"d":"R$ 58,800.00"}}]
[null,"Gás",{"$f":"INDEX(PlanejamentoDoEscritório[],MATCH(INDEX(VariaçõesDoEscritório[],ROW()-ROW(VariaçõesDoEscritório[[#Headers],[Jan]]),1),INDEX(PlanejamentoDoEscritório[],,1),0),MATCH(VariaçõesDoEscritório[[#Headers],[Jan]],PlanejamentoDoEscritório[#Headers],0))-INDEX(RealEscritório[],MATCH(INDEX(VariaçõesDoEscritório[],ROW()-ROW(VariaçõesDoEscritório[[#Headers],[Jan]]),1),INDEX(PlanejamentoDoEscritório[],,1),0),MATCH(VariaçõesDoEscritório[[#Headers],[Jan]],RealEscritório[#Headers],0))","v":{"v":-4,"d":"-R$ 4.00"}},{"$f":"INDEX(PlanejamentoDoEscritório[],MATCH(INDEX(VariaçõesDoEscritório[],ROW()-ROW(VariaçõesDoEscritório[[#Headers],[Fev]]),1),INDEX(PlanejamentoDoEscritório[],,1),0),MATCH(VariaçõesDoEscritório[[#Headers],[Fev]],PlanejamentoDoEscritório[#Headers],0))-INDEX(RealEscritório[],MATCH(INDEX(VariaçõesDoEscritório[],ROW()-ROW(VariaçõesDoEscritório[[#Headers],[Fev]]),1),INDEX(PlanejamentoDoEscritório[],,1),0),MATCH(VariaçõesDoEscritório[[#Headers],[Fev]],RealEscritório[#Headers],0))","v":{"v":-30,"d":"-R$ 30.00"}},{"$f":"INDEX(PlanejamentoDoEscritório[],MATCH(INDEX(VariaçõesDoEscritório[],ROW()-ROW(VariaçõesDoEscritório[[#Headers],[Mar]]),1),INDEX(PlanejamentoDoEscritório[],,1),0),MATCH(VariaçõesDoEscritório[[#Headers],[Mar]],PlanejamentoDoEscritório[#Headers],0))-INDEX(RealEscritório[],MATCH(INDEX(VariaçõesDoEscritório[],ROW()-ROW(VariaçõesDoEscritório[[#Headers],[Mar]]),1),INDEX(PlanejamentoDoEscritório[],,1),0),MATCH(VariaçõesDoEscritório[[#Headers],[Mar]],RealEscritório[#Headers],0))","v":{"v":15,"d":"R$ 15.00"}},{"$f":"INDEX(PlanejamentoDoEscritório[],MATCH(INDEX(VariaçõesDoEscritório[],ROW()-ROW(VariaçõesDoEscritório[[#Headers],[Abr]]),1),INDEX(PlanejamentoDoEscritório[],,1),0),MATCH(VariaçõesDoEscritório[[#Headers],[Abr]],PlanejamentoDoEscritório[#Headers],0))-INDEX(RealEscritório[],MATCH(INDEX(VariaçõesDoEscritório[],ROW()-ROW(VariaçõesDoEscritório[[#Headers],[Abr]]),1),INDEX(PlanejamentoDoEscritório[],,1),0),MATCH(VariaçõesDoEscritório[[#Headers],[Abr]],RealEscritório[#Headers],0))","v":{"v":-130,"d":"-R$ 130.00"}},{"$f":"INDEX(PlanejamentoDoEscritório[],MATCH(INDEX(VariaçõesDoEscritório[],ROW()-ROW(VariaçõesDoEscritório[[#Headers],[Mai]]),1),INDEX(PlanejamentoDoEscritório[],,1),0),MATCH(VariaçõesDoEscritório[[#Headers],[Mai]],PlanejamentoDoEscritório[#Headers],0))-INDEX(RealEscritório[],MATCH(INDEX(VariaçõesDoEscritório[],ROW()-ROW(VariaçõesDoEscritório[[#Headers],[Mai]]),1),INDEX(PlanejamentoDoEscritório[],,1),0),MATCH(VariaçõesDoEscritório[[#Headers],[Mai]],RealEscritório[#Headers],0))","v":{"v":13,"d":"R$ 13.00"}},{"$f":"INDEX(PlanejamentoDoEscritório[],MATCH(INDEX(VariaçõesDoEscritório[],ROW()-ROW(VariaçõesDoEscritório[[#Headers],[Jun]]),1),INDEX(PlanejamentoDoEscritório[],,1),0),MATCH(VariaçõesDoEscritório[[#Headers],[Jun]],PlanejamentoDoEscritório[#Headers],0))-INDEX(RealEscritório[],MATCH(INDEX(VariaçõesDoEscritório[],ROW()-ROW(VariaçõesDoEscritório[[#Headers],[Jun]]),1),INDEX(PlanejamentoDoEscritório[],,1),0),MATCH(VariaçõesDoEscritório[[#Headers],[Jun]],RealEscritório[#Headers],0))","v":{"v":12,"d":"R$ 12.00"}},{"$f":"INDEX(PlanejamentoDoEscritório[],MATCH(INDEX(VariaçõesDoEscritório[],ROW()-ROW(VariaçõesDoEscritório[[#Headers],[Jul]]),1),INDEX(PlanejamentoDoEscritório[],,1),0),MATCH(VariaçõesDoEscritório[[#Headers],[Jul]],PlanejamentoDoEscritório[#Headers],0))-INDEX(RealEscritório[],MATCH(INDEX(VariaçõesDoEscritório[],ROW()-ROW(VariaçõesDoEscritório[[#Headers],[Jul]]),1),INDEX(PlanejamentoDoEscritório[],,1),0),MATCH(VariaçõesDoEscritório[[#Headers],[Jul]],RealEscritório[#Headers],0))","v":{"v":100,"d":"R$ 100.00"}},{"$f":"INDEX(PlanejamentoDoEscritório[],MATCH(INDEX(VariaçõesDoEscritório[],ROW()-ROW(VariaçõesDoEscritório[[#Headers],[Ago]]),1),INDEX(PlanejamentoDoEscritório[],,1),0),MATCH(VariaçõesDoEscritório[[#Headers],[Ago]],PlanejamentoDoEscritório[#Headers],0))-INDEX(RealEscritório[],MATCH(INDEX(VariaçõesDoEscritório[],ROW()-ROW(VariaçõesDoEscritório[[#Headers],[Ago]]),1),INDEX(PlanejamentoDoEscritório[],,1),0),MATCH(VariaçõesDoEscritório[[#Headers],[Ago]],RealEscritório[#Headers],0))","v":{"v":100,"d":"R$ 100.00"}},{"$f":"INDEX(PlanejamentoDoEscritório[],MATCH(INDEX(VariaçõesDoEscritório[],ROW()-ROW(VariaçõesDoEscritório[[#Headers],[Set]]),1),INDEX(PlanejamentoDoEscritório[],,1),0),MATCH(VariaçõesDoEscritório[[#Headers],[Set]],PlanejamentoDoEscritório[#Headers],0))-INDEX(RealEscritório[],MATCH(INDEX(VariaçõesDoEscritório[],ROW()-ROW(VariaçõesDoEscritório[[#Headers],[Set]]),1),INDEX(PlanejamentoDoEscritório[],,1),0),MATCH(VariaçõesDoEscritório[[#Headers],[Set]],RealEscritório[#Headers],0))","v":{"v":100,"d":"R$ 100.00"}},{"$f":"INDEX(PlanejamentoDoEscritório[],MATCH(INDEX(VariaçõesDoEscritório[],ROW()-ROW(VariaçõesDoEscritório[[#Headers],[Out]]),1),INDEX(PlanejamentoDoEscritório[],,1),0),MATCH(VariaçõesDoEscritório[[#Headers],[Out]],PlanejamentoDoEscritório[#Headers],0))-INDEX(RealEscritório[],MATCH(INDEX(VariaçõesDoEscritório[],ROW()-ROW(VariaçõesDoEscritório[[#Headers],[Out]]),1),INDEX(PlanejamentoDoEscritório[],,1),0),MATCH(VariaçõesDoEscritório[[#Headers],[Out]],RealEscritório[#Headers],0))","v":{"v":100,"d":"R$ 100.00"}},{"$f":"INDEX(PlanejamentoDoEscritório[],MATCH(INDEX(VariaçõesDoEscritório[],ROW()-ROW(VariaçõesDoEscritório[[#Headers],[Nov]]),1),INDEX(PlanejamentoDoEscritório[],,1),0),MATCH(VariaçõesDoEscritório[[#Headers],[Nov]],PlanejamentoDoEscritório[#Headers],0))-INDEX(RealEscritório[],MATCH(INDEX(VariaçõesDoEscritório[],ROW()-ROW(VariaçõesDoEscritório[[#Headers],[Nov]]),1),INDEX(PlanejamentoDoEscritório[],,1),0),MATCH(VariaçõesDoEscritório[[#Headers],[Nov]],RealEscritório[#Headers],0))","v":{"v":400,"d":"R$ 400.00"}},{"$f":"INDEX(PlanejamentoDoEscritório[],MATCH(INDEX(VariaçõesDoEscritório[],ROW()-ROW(VariaçõesDoEscritório[[#Headers],[Dez]]),1),INDEX(PlanejamentoDoEscritório[],,1),0),MATCH(VariaçõesDoEscritório[[#Headers],[Dez]],PlanejamentoDoEscritório[#Headers],0))-INDEX(RealEscritório[],MATCH(INDEX(VariaçõesDoEscritório[],ROW()-ROW(VariaçõesDoEscritório[[#Headers],[Dez]]),1),INDEX(PlanejamentoDoEscritório[],,1),0),MATCH(VariaçõesDoEscritório[[#Headers],[Dez]],RealEscritório[#Headers],0))","v":{"v":400,"d":"R$ 400.00"}},{"$f":"SUM(VariaçõesDoEscritório[[#This Row],[Jan]:[Dez]])","v":{"v":1076,"d":"R$ 1,076.00"}}]
[null,"Eletricidade",{"$f":"INDEX(PlanejamentoDoEscritório[],MATCH(INDEX(VariaçõesDoEscritório[],ROW()-ROW(VariaçõesDoEscritório[[#Headers],[Jan]]),1),INDEX(PlanejamentoDoEscritório[],,1),0),MATCH(VariaçõesDoEscritório[[#Headers],[Jan]],PlanejamentoDoEscritório[#Headers],0))-INDEX(RealEscritório[],MATCH(INDEX(VariaçõesDoEscritório[],ROW()-ROW(VariaçõesDoEscritório[[#Headers],[Jan]]),1),INDEX(PlanejamentoDoEscritório[],,1),0),MATCH(VariaçõesDoEscritório[[#Headers],[Jan]],RealEscritório[#Headers],0))","v":{"v":12,"d":"R$ 12.00"}},{"$f":"INDEX(PlanejamentoDoEscritório[],MATCH(INDEX(VariaçõesDoEscritório[],ROW()-ROW(VariaçõesDoEscritório[[#Headers],[Fev]]),1),INDEX(PlanejamentoDoEscritório[],,1),0),MATCH(VariaçõesDoEscritório[[#Headers],[Fev]],PlanejamentoDoEscritório[#Headers],0))-INDEX(RealEscritório[],MATCH(INDEX(VariaçõesDoEscritório[],ROW()-ROW(VariaçõesDoEscritório[[#Headers],[Fev]]),1),INDEX(PlanejamentoDoEscritório[],,1),0),MATCH(VariaçõesDoEscritório[[#Headers],[Fev]],RealEscritório[#Headers],0))","v":{"v":22,"d":"R$ 22.00"}},{"$f":"INDEX(PlanejamentoDoEscritório[],MATCH(INDEX(VariaçõesDoEscritório[],ROW()-ROW(VariaçõesDoEscritório[[#Headers],[Mar]]),1),INDEX(PlanejamentoDoEscritório[],,1),0),MATCH(VariaçõesDoEscritório[[#Headers],[Mar]],PlanejamentoDoEscritório[#Headers],0))-INDEX(RealEscritório[],MATCH(INDEX(VariaçõesDoEscritório[],ROW()-ROW(VariaçõesDoEscritório[[#Headers],[Mar]]),1),INDEX(PlanejamentoDoEscritório[],,1),0),MATCH(VariaçõesDoEscritório[[#Headers],[Mar]],RealEscritório[#Headers],0))","v":{"v":32,"d":"R$ 32.00"}},{"$f":"INDEX(PlanejamentoDoEscritório[],MATCH(INDEX(VariaçõesDoEscritório[],ROW()-ROW(VariaçõesDoEscritório[[#Headers],[Abr]]),1),INDEX(PlanejamentoDoEscritório[],,1),0),MATCH(VariaçõesDoEscritório[[#Headers],[Abr]],PlanejamentoDoEscritório[#Headers],0))-INDEX(RealEscritório[],MATCH(INDEX(VariaçõesDoEscritório[],ROW()-ROW(VariaçõesDoEscritório[[#Headers],[Abr]]),1),INDEX(PlanejamentoDoEscritório[],,1),0),MATCH(VariaçõesDoEscritório[[#Headers],[Abr]],RealEscritório[#Headers],0))","v":{"v":1,"d":"R$ 1.00"}},{"$f":"INDEX(PlanejamentoDoEscritório[],MATCH(INDEX(VariaçõesDoEscritório[],ROW()-ROW(VariaçõesDoEscritório[[#Headers],[Mai]]),1),INDEX(PlanejamentoDoEscritório[],,1),0),MATCH(VariaçõesDoEscritório[[#Headers],[Mai]],PlanejamentoDoEscritório[#Headers],0))-INDEX(RealEscritório[],MATCH(INDEX(VariaçõesDoEscritório[],ROW()-ROW(VariaçõesDoEscritório[[#Headers],[Mai]]),1),INDEX(PlanejamentoDoEscritório[],,1),0),MATCH(VariaçõesDoEscritório[[#Headers],[Mai]],RealEscritório[#Headers],0))","v":{"v":-6,"d":"-R$ 6.00"}},{"$f":"INDEX(PlanejamentoDoEscritório[],MATCH(INDEX(VariaçõesDoEscritório[],ROW()-ROW(VariaçõesDoEscritório[[#Headers],[Jun]]),1),INDEX(PlanejamentoDoEscritório[],,1),0),MATCH(VariaçõesDoEscritório[[#Headers],[Jun]],PlanejamentoDoEscritório[#Headers],0))-INDEX(RealEscritório[],MATCH(INDEX(VariaçõesDoEscritório[],ROW()-ROW(VariaçõesDoEscritório[[#Headers],[Jun]]),1),INDEX(PlanejamentoDoEscritório[],,1),0),MATCH(VariaçõesDoEscritório[[#Headers],[Jun]],RealEscritório[#Headers],0))","v":{"v":10,"d":"R$ 10.00"}},{"$f":"INDEX(PlanejamentoDoEscritório[],MATCH(INDEX(VariaçõesDoEscritório[],ROW()-ROW(VariaçõesDoEscritório[[#Headers],[Jul]]),1),INDEX(PlanejamentoDoEscritório[],,1),0),MATCH(VariaçõesDoEscritório[[#Headers],[Jul]],PlanejamentoDoEscritório[#Headers],0))-INDEX(RealEscritório[],MATCH(INDEX(VariaçõesDoEscritório[],ROW()-ROW(VariaçõesDoEscritório[[#Headers],[Jul]]),1),INDEX(PlanejamentoDoEscritório[],,1),0),MATCH(VariaçõesDoEscritório[[#Headers],[Jul]],RealEscritório[#Headers],0))","v":{"v":300,"d":"R$ 300.00"}},{"$f":"INDEX(PlanejamentoDoEscritório[],MATCH(INDEX(VariaçõesDoEscritório[],ROW()-ROW(VariaçõesDoEscritório[[#Headers],[Ago]]),1),INDEX(PlanejamentoDoEscritório[],,1),0),MATCH(VariaçõesDoEscritório[[#Headers],[Ago]],PlanejamentoDoEscritório[#Headers],0))-INDEX(RealEscritório[],MATCH(INDEX(VariaçõesDoEscritório[],ROW()-ROW(VariaçõesDoEscritório[[#Headers],[Ago]]),1),INDEX(PlanejamentoDoEscritório[],,1),0),MATCH(VariaçõesDoEscritório[[#Headers],[Ago]],RealEscritório[#Headers],0))","v":{"v":300,"d":"R$ 300.00"}},{"$f":"INDEX(PlanejamentoDoEscritório[],MATCH(INDEX(VariaçõesDoEscritório[],ROW()-ROW(VariaçõesDoEscritório[[#Headers],[Set]]),1),INDEX(PlanejamentoDoEscritório[],,1),0),MATCH(VariaçõesDoEscritório[[#Headers],[Set]],PlanejamentoDoEscritório[#Headers],0))-INDEX(RealEscritório[],MATCH(INDEX(VariaçõesDoEscritório[],ROW()-ROW(VariaçõesDoEscritório[[#Headers],[Set]]),1),INDEX(PlanejamentoDoEscritório[],,1),0),MATCH(VariaçõesDoEscritório[[#Headers],[Set]],RealEscritório[#Headers],0))","v":{"v":300,"d":"R$ 300.00"}},{"$f":"INDEX(PlanejamentoDoEscritório[],MATCH(INDEX(VariaçõesDoEscritório[],ROW()-ROW(VariaçõesDoEscritório[[#Headers],[Out]]),1),INDEX(PlanejamentoDoEscritório[],,1),0),MATCH(VariaçõesDoEscritório[[#Headers],[Out]],PlanejamentoDoEscritório[#Headers],0))-INDEX(RealEscritório[],MATCH(INDEX(VariaçõesDoEscritório[],ROW()-ROW(VariaçõesDoEscritório[[#Headers],[Out]]),1),INDEX(PlanejamentoDoEscritório[],,1),0),MATCH(VariaçõesDoEscritório[[#Headers],[Out]],RealEscritório[#Headers],0))","v":{"v":300,"d":"R$ 300.00"}},{"$f":"INDEX(PlanejamentoDoEscritório[],MATCH(INDEX(VariaçõesDoEscritório[],ROW()-ROW(VariaçõesDoEscritório[[#Headers],[Nov]]),1),INDEX(PlanejamentoDoEscritório[],,1),0),MATCH(VariaçõesDoEscritório[[#Headers],[Nov]],PlanejamentoDoEscritório[#Headers],0))-INDEX(RealEscritório[],MATCH(INDEX(VariaçõesDoEscritório[],ROW()-ROW(VariaçõesDoEscritório[[#Headers],[Nov]]),1),INDEX(PlanejamentoDoEscritório[],,1),0),MATCH(VariaçõesDoEscritório[[#Headers],[Nov]],RealEscritório[#Headers],0))","v":{"v":300,"d":"R$ 300.00"}},{"$f":"INDEX(PlanejamentoDoEscritório[],MATCH(INDEX(VariaçõesDoEscritório[],ROW()-ROW(VariaçõesDoEscritório[[#Headers],[Dez]]),1),INDEX(PlanejamentoDoEscritório[],,1),0),MATCH(VariaçõesDoEscritório[[#Headers],[Dez]],PlanejamentoDoEscritório[#Headers],0))-INDEX(RealEscritório[],MATCH(INDEX(VariaçõesDoEscritório[],ROW()-ROW(VariaçõesDoEscritório[[#Headers],[Dez]]),1),INDEX(PlanejamentoDoEscritório[],,1),0),MATCH(VariaçõesDoEscritório[[#Headers],[Dez]],RealEscritório[#Headers],0))","v":{"v":300,"d":"R$ 300.00"}},{"$f":"SUM(VariaçõesDoEscritório[[#This Row],[Jan]:[Dez]])","v":{"v":1871,"d":"R$ 1,871.00"}}]
[null,"Água",{"$f":"INDEX(PlanejamentoDoEscritório[],MATCH(INDEX(VariaçõesDoEscritório[],ROW()-ROW(VariaçõesDoEscritório[[#Headers],[Jan]]),1),INDEX(PlanejamentoDoEscritório[],,1),0),MATCH(VariaçõesDoEscritório[[#Headers],[Jan]],PlanejamentoDoEscritório[#Headers],0))-INDEX(RealEscritório[],MATCH(INDEX(VariaçõesDoEscritório[],ROW()-ROW(VariaçõesDoEscritório[[#Headers],[Jan]]),1),INDEX(PlanejamentoDoEscritório[],,1),0),MATCH(VariaçõesDoEscritório[[#Headers],[Jan]],RealEscritório[#Headers],0))","v":{"v":5,"d":"R$ 5.00"}},{"$f":"INDEX(PlanejamentoDoEscritório[],MATCH(INDEX(VariaçõesDoEscritório[],ROW()-ROW(VariaçõesDoEscritório[[#Headers],[Fev]]),1),INDEX(PlanejamentoDoEscritório[],,1),0),MATCH(VariaçõesDoEscritório[[#Headers],[Fev]],PlanejamentoDoEscritório[#Headers],0))-INDEX(RealEscritório[],MATCH(INDEX(VariaçõesDoEscritório[],ROW()-ROW(VariaçõesDoEscritório[[#Headers],[Fev]]),1),INDEX(PlanejamentoDoEscritório[],,1),0),MATCH(VariaçõesDoEscritório[[#Headers],[Fev]],RealEscritório[#Headers],0))","v":{"v":7,"d":"R$ 7.00"}},{"$f":"INDEX(PlanejamentoDoEscritório[],MATCH(INDEX(VariaçõesDoEscritório[],ROW()-ROW(VariaçõesDoEscritório[[#Headers],[Mar]]),1),INDEX(PlanejamentoDoEscritório[],,1),0),MATCH(VariaçõesDoEscritório[[#Headers],[Mar]],PlanejamentoDoEscritório[#Headers],0))-INDEX(RealEscritório[],MATCH(INDEX(VariaçõesDoEscritório[],ROW()-ROW(VariaçõesDoEscritório[[#Headers],[Mar]]),1),INDEX(PlanejamentoDoEscritório[],,1),0),MATCH(VariaçõesDoEscritório[[#Headers],[Mar]],RealEscritório[#Headers],0))","v":{"v":6,"d":"R$ 6.00"}},{"$f":"INDEX(PlanejamentoDoEscritório[],MATCH(INDEX(VariaçõesDoEscritório[],ROW()-ROW(VariaçõesDoEscritório[[#Headers],[Abr]]),1),INDEX(PlanejamentoDoEscritório[],,1),0),MATCH(VariaçõesDoEscritório[[#Headers],[Abr]],PlanejamentoDoEscritório[#Headers],0))-INDEX(RealEscritório[],MATCH(INDEX(VariaçõesDoEscritório[],ROW()-ROW(VariaçõesDoEscritório[[#Headers],[Abr]]),1),INDEX(PlanejamentoDoEscritório[],,1),0),MATCH(VariaçõesDoEscritório[[#Headers],[Abr]],RealEscritório[#Headers],0))","v":{"v":4,"d":"R$ 4.00"}},{"$f":"INDEX(PlanejamentoDoEscritório[],MATCH(INDEX(VariaçõesDoEscritório[],ROW()-ROW(VariaçõesDoEscritório[[#Headers],[Mai]]),1),INDEX(PlanejamentoDoEscritório[],,1),0),MATCH(VariaçõesDoEscritório[[#Headers],[Mai]],PlanejamentoDoEscritório[#Headers],0))-INDEX(RealEscritório[],MATCH(INDEX(VariaçõesDoEscritório[],ROW()-ROW(VariaçõesDoEscritório[[#Headers],[Mai]]),1),INDEX(PlanejamentoDoEscritório[],,1),0),MATCH(VariaçõesDoEscritório[[#Headers],[Mai]],RealEscritório[#Headers],0))","v":{"v":6,"d":"R$ 6.00"}},{"$f":"INDEX(PlanejamentoDoEscritório[],MATCH(INDEX(VariaçõesDoEscritório[],ROW()-ROW(VariaçõesDoEscritório[[#Headers],[Jun]]),1),INDEX(PlanejamentoDoEscritório[],,1),0),MATCH(VariaçõesDoEscritório[[#Headers],[Jun]],PlanejamentoDoEscritório[#Headers],0))-INDEX(RealEscritório[],MATCH(INDEX(VariaçõesDoEscritório[],ROW()-ROW(VariaçõesDoEscritório[[#Headers],[Jun]]),1),INDEX(PlanejamentoDoEscritório[],,1),0),MATCH(VariaçõesDoEscritório[[#Headers],[Jun]],RealEscritório[#Headers],0))","v":{"v":4,"d":"R$ 4.00"}},{"$f":"INDEX(PlanejamentoDoEscritório[],MATCH(INDEX(VariaçõesDoEscritório[],ROW()-ROW(VariaçõesDoEscritório[[#Headers],[Jul]]),1),INDEX(PlanejamentoDoEscritório[],,1),0),MATCH(VariaçõesDoEscritório[[#Headers],[Jul]],PlanejamentoDoEscritório[#Headers],0))-INDEX(RealEscritório[],MATCH(INDEX(VariaçõesDoEscritório[],ROW()-ROW(VariaçõesDoEscritório[[#Headers],[Jul]]),1),INDEX(PlanejamentoDoEscritório[],,1),0),MATCH(VariaçõesDoEscritório[[#Headers],[Jul]],RealEscritório[#Headers],0))","v":{"v":40,"d":"R$ 40.00"}},{"$f":"INDEX(PlanejamentoDoEscritório[],MATCH(INDEX(VariaçõesDoEscritório[],ROW()-ROW(VariaçõesDoEscritório[[#Headers],[Ago]]),1),INDEX(PlanejamentoDoEscritório[],,1),0),MATCH(VariaçõesDoEscritório[[#Headers],[Ago]],PlanejamentoDoEscritório[#Headers],0))-INDEX(RealEscritório[],MATCH(INDEX(VariaçõesDoEscritório[],ROW()-ROW(VariaçõesDoEscritório[[#Headers],[Ago]]),1),INDEX(PlanejamentoDoEscritório[],,1),0),MATCH(VariaçõesDoEscritório[[#Headers],[Ago]],RealEscritório[#Headers],0))","v":{"v":40,"d":"R$ 40.00"}},{"$f":"INDEX(PlanejamentoDoEscritório[],MATCH(INDEX(VariaçõesDoEscritório[],ROW()-ROW(VariaçõesDoEscritório[[#Headers],[Set]]),1),INDEX(PlanejamentoDoEscritório[],,1),0),MATCH(VariaçõesDoEscritório[[#Headers],[Set]],PlanejamentoDoEscritório[#Headers],0))-INDEX(RealEscritório[],MATCH(INDEX(VariaçõesDoEscritório[],ROW()-ROW(VariaçõesDoEscritório[[#Headers],[Set]]),1),INDEX(PlanejamentoDoEscritório[],,1),0),MATCH(VariaçõesDoEscritório[[#Headers],[Set]],RealEscritório[#Headers],0))","v":{"v":40,"d":"R$ 40.00"}},{"$f":"INDEX(PlanejamentoDoEscritório[],MATCH(INDEX(VariaçõesDoEscritório[],ROW()-ROW(VariaçõesDoEscritório[[#Headers],[Out]]),1),INDEX(PlanejamentoDoEscritório[],,1),0),MATCH(VariaçõesDoEscritório[[#Headers],[Out]],PlanejamentoDoEscritório[#Headers],0))-INDEX(RealEscritório[],MATCH(INDEX(VariaçõesDoEscritório[],ROW()-ROW(VariaçõesDoEscritório[[#Headers],[Out]]),1),INDEX(PlanejamentoDoEscritório[],,1),0),MATCH(VariaçõesDoEscritório[[#Headers],[Out]],RealEscritório[#Headers],0))","v":{"v":40,"d":"R$ 40.00"}},{"$f":"INDEX(PlanejamentoDoEscritório[],MATCH(INDEX(VariaçõesDoEscritório[],ROW()-ROW(VariaçõesDoEscritório[[#Headers],[Nov]]),1),INDEX(PlanejamentoDoEscritório[],,1),0),MATCH(VariaçõesDoEscritório[[#Headers],[Nov]],PlanejamentoDoEscritório[#Headers],0))-INDEX(RealEscritório[],MATCH(INDEX(VariaçõesDoEscritório[],ROW()-ROW(VariaçõesDoEscritório[[#Headers],[Nov]]),1),INDEX(PlanejamentoDoEscritório[],,1),0),MATCH(VariaçõesDoEscritório[[#Headers],[Nov]],RealEscritório[#Headers],0))","v":{"v":40,"d":"R$ 40.00"}},{"$f":"INDEX(PlanejamentoDoEscritório[],MATCH(INDEX(VariaçõesDoEscritório[],ROW()-ROW(VariaçõesDoEscritório[[#Headers],[Dez]]),1),INDEX(PlanejamentoDoEscritório[],,1),0),MATCH(VariaçõesDoEscritório[[#Headers],[Dez]],PlanejamentoDoEscritório[#Headers],0))-INDEX(RealEscritório[],MATCH(INDEX(VariaçõesDoEscritório[],ROW()-ROW(VariaçõesDoEscritório[[#Headers],[Dez]]),1),INDEX(PlanejamentoDoEscritório[],,1),0),MATCH(VariaçõesDoEscritório[[#Headers],[Dez]],RealEscritório[#Headers],0))","v":{"v":40,"d":"R$ 40.00"}},{"$f":"SUM(VariaçõesDoEscritório[[#This Row],[Jan]:[Dez]])","v":{"v":272,"d":"R$ 272.00"}}]
[null,"Telefone",{"$f":"INDEX(PlanejamentoDoEscritório[],MATCH(INDEX(VariaçõesDoEscritório[],ROW()-ROW(VariaçõesDoEscritório[[#Headers],[Jan]]),1),INDEX(PlanejamentoDoEscritório[],,1),0),MATCH(VariaçõesDoEscritório[[#Headers],[Jan]],PlanejamentoDoEscritório[#Headers],0))-INDEX(RealEscritório[],MATCH(INDEX(VariaçõesDoEscritório[],ROW()-ROW(VariaçõesDoEscritório[[#Headers],[Jan]]),1),INDEX(PlanejamentoDoEscritório[],,1),0),MATCH(VariaçõesDoEscritório[[#Headers],[Jan]],RealEscritório[#Headers],0))","v":{"v":26,"d":"R$ 26.00"}},{"$f":"INDEX(PlanejamentoDoEscritório[],MATCH(INDEX(VariaçõesDoEscritório[],ROW()-ROW(VariaçõesDoEscritório[[#Headers],[Fev]]),1),INDEX(PlanejamentoDoEscritório[],,1),0),MATCH(VariaçõesDoEscritório[[#Headers],[Fev]],PlanejamentoDoEscritório[#Headers],0))-INDEX(RealEscritório[],MATCH(INDEX(VariaçõesDoEscritório[],ROW()-ROW(VariaçõesDoEscritório[[#Headers],[Fev]]),1),INDEX(PlanejamentoDoEscritório[],,1),0),MATCH(VariaçõesDoEscritório[[#Headers],[Fev]],RealEscritório[#Headers],0))","v":{"v":15,"d":"R$ 15.00"}},{"$f":"INDEX(PlanejamentoDoEscritório[],MATCH(INDEX(VariaçõesDoEscritório[],ROW()-ROW(VariaçõesDoEscritório[[#Headers],[Mar]]),1),INDEX(PlanejamentoDoEscritório[],,1),0),MATCH(VariaçõesDoEscritório[[#Headers],[Mar]],PlanejamentoDoEscritório[#Headers],0))-INDEX(RealEscritório[],MATCH(INDEX(VariaçõesDoEscritório[],ROW()-ROW(VariaçõesDoEscritório[[#Headers],[Mar]]),1),INDEX(PlanejamentoDoEscritório[],,1),0),MATCH(VariaçõesDoEscritório[[#Headers],[Mar]],RealEscritório[#Headers],0))","v":{"v":-15,"d":"-R$ 15.00"}},{"$f":"INDEX(PlanejamentoDoEscritório[],MATCH(INDEX(VariaçõesDoEscritório[],ROW()-ROW(VariaçõesDoEscritório[[#Headers],[Abr]]),1),INDEX(PlanejamentoDoEscritório[],,1),0),MATCH(VariaçõesDoEscritório[[#Headers],[Abr]],PlanejamentoDoEscritório[#Headers],0))-INDEX(RealEscritório[],MATCH(INDEX(VariaçõesDoEscritório[],ROW()-ROW(VariaçõesDoEscritório[[#Headers],[Abr]]),1),INDEX(PlanejamentoDoEscritório[],,1),0),MATCH(VariaçõesDoEscritório[[#Headers],[Abr]],RealEscritório[#Headers],0))","v":{"v":5,"d":"R$ 5.00"}},{"$f":"INDEX(PlanejamentoDoEscritório[],MATCH(INDEX(VariaçõesDoEscritório[],ROW()-ROW(VariaçõesDoEscritório[[#Headers],[Mai]]),1),INDEX(PlanejamentoDoEscritório[],,1),0),MATCH(VariaçõesDoEscritório[[#Headers],[Mai]],PlanejamentoDoEscritório[#Headers],0))-INDEX(RealEscritório[],MATCH(INDEX(VariaçõesDoEscritório[],ROW()-ROW(VariaçõesDoEscritório[[#Headers],[Mai]]),1),INDEX(PlanejamentoDoEscritório[],,1),0),MATCH(VariaçõesDoEscritório[[#Headers],[Mai]],RealEscritório[#Headers],0))","v":{"v":5,"d":"R$ 5.00"}},{"$f":"INDEX(PlanejamentoDoEscritório[],MATCH(INDEX(VariaçõesDoEscritório[],ROW()-ROW(VariaçõesDoEscritório[[#Headers],[Jun]]),1),INDEX(PlanejamentoDoEscritório[],,1),0),MATCH(VariaçõesDoEscritório[[#Headers],[Jun]],PlanejamentoDoEscritório[#Headers],0))-INDEX(RealEscritório[],MATCH(INDEX(VariaçõesDoEscritório[],ROW()-ROW(VariaçõesDoEscritório[[#Headers],[Jun]]),1),INDEX(PlanejamentoDoEscritório[],,1),0),MATCH(VariaçõesDoEscritório[[#Headers],[Jun]],RealEscritório[#Headers],0))","v":{"v":30,"d":"R$ 30.00"}},{"$f":"INDEX(PlanejamentoDoEscritório[],MATCH(INDEX(VariaçõesDoEscritório[],ROW()-ROW(VariaçõesDoEscritório[[#Headers],[Jul]]),1),INDEX(PlanejamentoDoEscritório[],,1),0),MATCH(VariaçõesDoEscritório[[#Headers],[Jul]],PlanejamentoDoEscritório[#Headers],0))-INDEX(RealEscritório[],MATCH(INDEX(VariaçõesDoEscritório[],ROW()-ROW(VariaçõesDoEscritório[[#Headers],[Jul]]),1),INDEX(PlanejamentoDoEscritório[],,1),0),MATCH(VariaçõesDoEscritório[[#Headers],[Jul]],RealEscritório[#Headers],0))","v":{"v":250,"d":"R$ 250.00"}},{"$f":"INDEX(PlanejamentoDoEscritório[],MATCH(INDEX(VariaçõesDoEscritório[],ROW()-ROW(VariaçõesDoEscritório[[#Headers],[Ago]]),1),INDEX(PlanejamentoDoEscritório[],,1),0),MATCH(VariaçõesDoEscritório[[#Headers],[Ago]],PlanejamentoDoEscritório[#Headers],0))-INDEX(RealEscritório[],MATCH(INDEX(VariaçõesDoEscritório[],ROW()-ROW(VariaçõesDoEscritório[[#Headers],[Ago]]),1),INDEX(PlanejamentoDoEscritório[],,1),0),MATCH(VariaçõesDoEscritório[[#Headers],[Ago]],RealEscritório[#Headers],0))","v":{"v":250,"d":"R$ 250.00"}},{"$f":"INDEX(PlanejamentoDoEscritório[],MATCH(INDEX(VariaçõesDoEscritório[],ROW()-ROW(VariaçõesDoEscritório[[#Headers],[Set]]),1),INDEX(PlanejamentoDoEscritório[],,1),0),MATCH(VariaçõesDoEscritório[[#Headers],[Set]],PlanejamentoDoEscritório[#Headers],0))-INDEX(RealEscritório[],MATCH(INDEX(VariaçõesDoEscritório[],ROW()-ROW(VariaçõesDoEscritório[[#Headers],[Set]]),1),INDEX(PlanejamentoDoEscritório[],,1),0),MATCH(VariaçõesDoEscritório[[#Headers],[Set]],RealEscritório[#Headers],0))","v":{"v":250,"d":"R$ 250.00"}},{"$f":"INDEX(PlanejamentoDoEscritório[],MATCH(INDEX(VariaçõesDoEscritório[],ROW()-ROW(VariaçõesDoEscritório[[#Headers],[Out]]),1),INDEX(PlanejamentoDoEscritório[],,1),0),MATCH(VariaçõesDoEscritório[[#Headers],[Out]],PlanejamentoDoEscritório[#Headers],0))-INDEX(RealEscritório[],MATCH(INDEX(VariaçõesDoEscritório[],ROW()-ROW(VariaçõesDoEscritório[[#Headers],[Out]]),1),INDEX(PlanejamentoDoEscritório[],,1),0),MATCH(VariaçõesDoEscritório[[#Headers],[Out]],RealEscritório[#Headers],0))","v":{"v":250,"d":"R$ 250.00"}},{"$f":"INDEX(PlanejamentoDoEscritório[],MATCH(INDEX(VariaçõesDoEscritório[],ROW()-ROW(VariaçõesDoEscritório[[#Headers],[Nov]]),1),INDEX(PlanejamentoDoEscritório[],,1),0),MATCH(VariaçõesDoEscritório[[#Headers],[Nov]],PlanejamentoDoEscritório[#Headers],0))-INDEX(RealEscritório[],MATCH(INDEX(VariaçõesDoEscritório[],ROW()-ROW(VariaçõesDoEscritório[[#Headers],[Nov]]),1),INDEX(PlanejamentoDoEscritório[],,1),0),MATCH(VariaçõesDoEscritório[[#Headers],[Nov]],RealEscritório[#Headers],0))","v":{"v":250,"d":"R$ 250.00"}},{"$f":"INDEX(PlanejamentoDoEscritório[],MATCH(INDEX(VariaçõesDoEscritório[],ROW()-ROW(VariaçõesDoEscritório[[#Headers],[Dez]]),1),INDEX(PlanejamentoDoEscritório[],,1),0),MATCH(VariaçõesDoEscritório[[#Headers],[Dez]],PlanejamentoDoEscritório[#Headers],0))-INDEX(RealEscritório[],MATCH(INDEX(VariaçõesDoEscritório[],ROW()-ROW(VariaçõesDoEscritório[[#Headers],[Dez]]),1),INDEX(PlanejamentoDoEscritório[],,1),0),MATCH(VariaçõesDoEscritório[[#Headers],[Dez]],RealEscritório[#Headers],0))","v":{"v":250,"d":"R$ 250.00"}},{"$f":"SUM(VariaçõesDoEscritório[[#This Row],[Jan]:[Dez]])","v":{"v":1566,"d":"R$ 1,566.00"}}]
[null,"Acesso à Internet",{"$f":"INDEX(PlanejamentoDoEscritório[],MATCH(INDEX(VariaçõesDoEscritório[],ROW()-ROW(VariaçõesDoEscritório[[#Headers],[Jan]]),1),INDEX(PlanejamentoDoEscritório[],,1),0),MATCH(VariaçõesDoEscritório[[#Headers],[Jan]],PlanejamentoDoEscritório[#Headers],0))-INDEX(RealEscritório[],MATCH(INDEX(VariaçõesDoEscritório[],ROW()-ROW(VariaçõesDoEscritório[[#Headers],[Jan]]),1),INDEX(PlanejamentoDoEscritório[],,1),0),MATCH(VariaçõesDoEscritório[[#Headers],[Jan]],RealEscritório[#Headers],0))","v":{"v":0,"d":"R$ 0.00"}},{"$f":"INDEX(PlanejamentoDoEscritório[],MATCH(INDEX(VariaçõesDoEscritório[],ROW()-ROW(VariaçõesDoEscritório[[#Headers],[Fev]]),1),INDEX(PlanejamentoDoEscritório[],,1),0),MATCH(VariaçõesDoEscritório[[#Headers],[Fev]],PlanejamentoDoEscritório[#Headers],0))-INDEX(RealEscritório[],MATCH(INDEX(VariaçõesDoEscritório[],ROW()-ROW(VariaçõesDoEscritório[[#Headers],[Fev]]),1),INDEX(PlanejamentoDoEscritório[],,1),0),MATCH(VariaçõesDoEscritório[[#Headers],[Fev]],RealEscritório[#Headers],0))","v":{"v":0,"d":"R$ 0.00"}},{"$f":"INDEX(PlanejamentoDoEscritório[],MATCH(INDEX(VariaçõesDoEscritório[],ROW()-ROW(VariaçõesDoEscritório[[#Headers],[Mar]]),1),INDEX(PlanejamentoDoEscritório[],,1),0),MATCH(VariaçõesDoEscritório[[#Headers],[Mar]],PlanejamentoDoEscritório[#Headers],0))-INDEX(RealEscritório[],MATCH(INDEX(VariaçõesDoEscritório[],ROW()-ROW(VariaçõesDoEscritório[[#Headers],[Mar]]),1),INDEX(PlanejamentoDoEscritório[],,1),0),MATCH(VariaçõesDoEscritório[[#Headers],[Mar]],RealEscritório[#Headers],0))","v":{"v":0,"d":"R$ 0.00"}},{"$f":"INDEX(PlanejamentoDoEscritório[],MATCH(INDEX(VariaçõesDoEscritório[],ROW()-ROW(VariaçõesDoEscritório[[#Headers],[Abr]]),1),INDEX(PlanejamentoDoEscritório[],,1),0),MATCH(VariaçõesDoEscritório[[#Headers],[Abr]],PlanejamentoDoEscritório[#Headers],0))-INDEX(RealEscritório[],MATCH(INDEX(VariaçõesDoEscritório[],ROW()-ROW(VariaçõesDoEscritório[[#Headers],[Abr]]),1),INDEX(PlanejamentoDoEscritório[],,1),0),MATCH(VariaçõesDoEscritório[[#Headers],[Abr]],RealEscritório[#Headers],0))","v":{"v":0,"d":"R$ 0.00"}},{"$f":"INDEX(PlanejamentoDoEscritório[],MATCH(INDEX(VariaçõesDoEscritório[],ROW()-ROW(VariaçõesDoEscritório[[#Headers],[Mai]]),1),INDEX(PlanejamentoDoEscritório[],,1),0),MATCH(VariaçõesDoEscritório[[#Headers],[Mai]],PlanejamentoDoEscritório[#Headers],0))-INDEX(RealEscritório[],MATCH(INDEX(VariaçõesDoEscritório[],ROW()-ROW(VariaçõesDoEscritório[[#Headers],[Mai]]),1),INDEX(PlanejamentoDoEscritório[],,1),0),MATCH(VariaçõesDoEscritório[[#Headers],[Mai]],RealEscritório[#Headers],0))","v":{"v":0,"d":"R$ 0.00"}},{"$f":"INDEX(PlanejamentoDoEscritório[],MATCH(INDEX(VariaçõesDoEscritório[],ROW()-ROW(VariaçõesDoEscritório[[#Headers],[Jun]]),1),INDEX(PlanejamentoDoEscritório[],,1),0),MATCH(VariaçõesDoEscritório[[#Headers],[Jun]],PlanejamentoDoEscritório[#Headers],0))-INDEX(RealEscritório[],MATCH(INDEX(VariaçõesDoEscritório[],ROW()-ROW(VariaçõesDoEscritório[[#Headers],[Jun]]),1),INDEX(PlanejamentoDoEscritório[],,1),0),MATCH(VariaçõesDoEscritório[[#Headers],[Jun]],RealEscritório[#Headers],0))","v":{"v":0,"d":"R$ 0.00"}},{"$f":"INDEX(PlanejamentoDoEscritório[],MATCH(INDEX(VariaçõesDoEscritório[],ROW()-ROW(VariaçõesDoEscritório[[#Headers],[Jul]]),1),INDEX(PlanejamentoDoEscritório[],,1),0),MATCH(VariaçõesDoEscritório[[#Headers],[Jul]],PlanejamentoDoEscritório[#Headers],0))-INDEX(RealEscritório[],MATCH(INDEX(VariaçõesDoEscritório[],ROW()-ROW(VariaçõesDoEscritório[[#Headers],[Jul]]),1),INDEX(PlanejamentoDoEscritório[],,1),0),MATCH(VariaçõesDoEscritório[[#Headers],[Jul]],RealEscritório[#Headers],0))","v":{"v":180,"d":"R$ 180.00"}},{"$f":"INDEX(PlanejamentoDoEscritório[],MATCH(INDEX(VariaçõesDoEscritório[],ROW()-ROW(VariaçõesDoEscritório[[#Headers],[Ago]]),1),INDEX(PlanejamentoDoEscritório[],,1),0),MATCH(VariaçõesDoEscritório[[#Headers],[Ago]],PlanejamentoDoEscritório[#Headers],0))-INDEX(RealEscritório[],MATCH(INDEX(VariaçõesDoEscritório[],ROW()-ROW(VariaçõesDoEscritório[[#Headers],[Ago]]),1),INDEX(PlanejamentoDoEscritório[],,1),0),MATCH(VariaçõesDoEscritório[[#Headers],[Ago]],RealEscritório[#Headers],0))","v":{"v":180,"d":"R$ 180.00"}},{"$f":"INDEX(PlanejamentoDoEscritório[],MATCH(INDEX(VariaçõesDoEscritório[],ROW()-ROW(VariaçõesDoEscritório[[#Headers],[Set]]),1),INDEX(PlanejamentoDoEscritório[],,1),0),MATCH(VariaçõesDoEscritório[[#Headers],[Set]],PlanejamentoDoEscritório[#Headers],0))-INDEX(RealEscritório[],MATCH(INDEX(VariaçõesDoEscritório[],ROW()-ROW(VariaçõesDoEscritório[[#Headers],[Set]]),1),INDEX(PlanejamentoDoEscritório[],,1),0),MATCH(VariaçõesDoEscritório[[#Headers],[Set]],RealEscritório[#Headers],0))","v":{"v":180,"d":"R$ 180.00"}},{"$f":"INDEX(PlanejamentoDoEscritório[],MATCH(INDEX(VariaçõesDoEscritório[],ROW()-ROW(VariaçõesDoEscritório[[#Headers],[Out]]),1),INDEX(PlanejamentoDoEscritório[],,1),0),MATCH(VariaçõesDoEscritório[[#Headers],[Out]],PlanejamentoDoEscritório[#Headers],0))-INDEX(RealEscritório[],MATCH(INDEX(VariaçõesDoEscritório[],ROW()-ROW(VariaçõesDoEscritório[[#Headers],[Out]]),1),INDEX(PlanejamentoDoEscritório[],,1),0),MATCH(VariaçõesDoEscritório[[#Headers],[Out]],RealEscritório[#Headers],0))","v":{"v":180,"d":"R$ 180.00"}},{"$f":"INDEX(PlanejamentoDoEscritório[],MATCH(INDEX(VariaçõesDoEscritório[],ROW()-ROW(VariaçõesDoEscritório[[#Headers],[Nov]]),1),INDEX(PlanejamentoDoEscritório[],,1),0),MATCH(VariaçõesDoEscritório[[#Headers],[Nov]],PlanejamentoDoEscritório[#Headers],0))-INDEX(RealEscritório[],MATCH(INDEX(VariaçõesDoEscritório[],ROW()-ROW(VariaçõesDoEscritório[[#Headers],[Nov]]),1),INDEX(PlanejamentoDoEscritório[],,1),0),MATCH(VariaçõesDoEscritório[[#Headers],[Nov]],RealEscritório[#Headers],0))","v":{"v":180,"d":"R$ 180.00"}},{"$f":"INDEX(PlanejamentoDoEscritório[],MATCH(INDEX(VariaçõesDoEscritório[],ROW()-ROW(VariaçõesDoEscritório[[#Headers],[Dez]]),1),INDEX(PlanejamentoDoEscritório[],,1),0),MATCH(VariaçõesDoEscritório[[#Headers],[Dez]],PlanejamentoDoEscritório[#Headers],0))-INDEX(RealEscritório[],MATCH(INDEX(VariaçõesDoEscritório[],ROW()-ROW(VariaçõesDoEscritório[[#Headers],[Dez]]),1),INDEX(PlanejamentoDoEscritório[],,1),0),MATCH(VariaçõesDoEscritório[[#Headers],[Dez]],RealEscritório[#Headers],0))","v":{"v":180,"d":"R$ 180.00"}},{"$f":"SUM(VariaçõesDoEscritório[[#This Row],[Jan]:[Dez]])","v":{"v":1080,"d":"R$ 1,080.00"}}]
[null,"Material de escritório",{"$f":"INDEX(PlanejamentoDoEscritório[],MATCH(INDEX(VariaçõesDoEscritório[],ROW()-ROW(VariaçõesDoEscritório[[#Headers],[Jan]]),1),INDEX(PlanejamentoDoEscritório[],,1),0),MATCH(VariaçõesDoEscritório[[#Headers],[Jan]],PlanejamentoDoEscritório[#Headers],0))-INDEX(RealEscritório[],MATCH(INDEX(VariaçõesDoEscritório[],ROW()-ROW(VariaçõesDoEscritório[[#Headers],[Jan]]),1),INDEX(PlanejamentoDoEscritório[],,1),0),MATCH(VariaçõesDoEscritório[[#Headers],[Jan]],RealEscritório[#Headers],0))","v":{"v":-56,"d":"-R$ 56.00"}},{"$f":"INDEX(PlanejamentoDoEscritório[],MATCH(INDEX(VariaçõesDoEscritório[],ROW()-ROW(VariaçõesDoEscritório[[#Headers],[Fev]]),1),INDEX(PlanejamentoDoEscritório[],,1),0),MATCH(VariaçõesDoEscritório[[#Headers],[Fev]],PlanejamentoDoEscritório[#Headers],0))-INDEX(RealEscritório[],MATCH(INDEX(VariaçõesDoEscritório[],ROW()-ROW(VariaçõesDoEscritório[[#Headers],[Fev]]),1),INDEX(PlanejamentoDoEscritório[],,1),0),MATCH(VariaçõesDoEscritório[[#Headers],[Fev]],RealEscritório[#Headers],0))","v":{"v":58,"d":"R$ 58.00"}},{"$f":"INDEX(PlanejamentoDoEscritório[],MATCH(INDEX(VariaçõesDoEscritório[],ROW()-ROW(VariaçõesDoEscritório[[#Headers],[Mar]]),1),INDEX(PlanejamentoDoEscritório[],,1),0),MATCH(VariaçõesDoEscritório[[#Headers],[Mar]],PlanejamentoDoEscritório[#Headers],0))-INDEX(RealEscritório[],MATCH(INDEX(VariaçõesDoEscritório[],ROW()-ROW(VariaçõesDoEscritório[[#Headers],[Mar]]),1),INDEX(PlanejamentoDoEscritório[],,1),0),MATCH(VariaçõesDoEscritório[[#Headers],[Mar]],RealEscritório[#Headers],0))","v":{"v":40,"d":"R$ 40.00"}},{"$f":"INDEX(PlanejamentoDoEscritório[],MATCH(INDEX(VariaçõesDoEscritório[],ROW()-ROW(VariaçõesDoEscritório[[#Headers],[Abr]]),1),INDEX(PlanejamentoDoEscritório[],,1),0),MATCH(VariaçõesDoEscritório[[#Headers],[Abr]],PlanejamentoDoEscritório[#Headers],0))-INDEX(RealEscritório[],MATCH(INDEX(VariaçõesDoEscritório[],ROW()-ROW(VariaçõesDoEscritório[[#Headers],[Abr]]),1),INDEX(PlanejamentoDoEscritório[],,1),0),MATCH(VariaçõesDoEscritório[[#Headers],[Abr]],RealEscritório[#Headers],0))","v":{"v":-21,"d":"-R$ 21.00"}},{"$f":"INDEX(PlanejamentoDoEscritório[],MATCH(INDEX(VariaçõesDoEscritório[],ROW()-ROW(VariaçõesDoEscritório[[#Headers],[Mai]]),1),INDEX(PlanejamentoDoEscritório[],,1),0),MATCH(VariaçõesDoEscritório[[#Headers],[Mai]],PlanejamentoDoEscritório[#Headers],0))-INDEX(RealEscritório[],MATCH(INDEX(VariaçõesDoEscritório[],ROW()-ROW(VariaçõesDoEscritório[[#Headers],[Mai]]),1),INDEX(PlanejamentoDoEscritório[],,1),0),MATCH(VariaçõesDoEscritório[[#Headers],[Mai]],RealEscritório[#Headers],0))","v":{"v":-56,"d":"-R$ 56.00"}},{"$f":"INDEX(PlanejamentoDoEscritório[],MATCH(INDEX(VariaçõesDoEscritório[],ROW()-ROW(VariaçõesDoEscritório[[#Headers],[Jun]]),1),INDEX(PlanejamentoDoEscritório[],,1),0),MATCH(VariaçõesDoEscritório[[#Headers],[Jun]],PlanejamentoDoEscritório[#Headers],0))-INDEX(RealEscritório[],MATCH(INDEX(VariaçõesDoEscritório[],ROW()-ROW(VariaçõesDoEscritório[[#Headers],[Jun]]),1),INDEX(PlanejamentoDoEscritório[],,1),0),MATCH(VariaçõesDoEscritório[[#Headers],[Jun]],RealEscritório[#Headers],0))","v":{"v":-40,"d":"-R$ 40.00"}},{"$f":"INDEX(PlanejamentoDoEscritório[],MATCH(INDEX(VariaçõesDoEscritório[],ROW()-ROW(VariaçõesDoEscritório[[#Headers],[Jul]]),1),INDEX(PlanejamentoDoEscritório[],,1),0),MATCH(VariaçõesDoEscritório[[#Headers],[Jul]],PlanejamentoDoEscritório[#Headers],0))-INDEX(RealEscritório[],MATCH(INDEX(VariaçõesDoEscritório[],ROW()-ROW(VariaçõesDoEscritório[[#Headers],[Jul]]),1),INDEX(PlanejamentoDoEscritório[],,1),0),MATCH(VariaçõesDoEscritório[[#Headers],[Jul]],RealEscritório[#Headers],0))","v":{"v":200,"d":"R$ 200.00"}},{"$f":"INDEX(PlanejamentoDoEscritório[],MATCH(INDEX(VariaçõesDoEscritório[],ROW()-ROW(VariaçõesDoEscritório[[#Headers],[Ago]]),1),INDEX(PlanejamentoDoEscritório[],,1),0),MATCH(VariaçõesDoEscritório[[#Headers],[Ago]],PlanejamentoDoEscritório[#Headers],0))-INDEX(RealEscritório[],MATCH(INDEX(VariaçõesDoEscritório[],ROW()-ROW(VariaçõesDoEscritório[[#Headers],[Ago]]),1),INDEX(PlanejamentoDoEscritório[],,1),0),MATCH(VariaçõesDoEscritório[[#Headers],[Ago]],RealEscritório[#Headers],0))","v":{"v":200,"d":"R$ 200.00"}},{"$f":"INDEX(PlanejamentoDoEscritório[],MATCH(INDEX(VariaçõesDoEscritório[],ROW()-ROW(VariaçõesDoEscritório[[#Headers],[Set]]),1),INDEX(PlanejamentoDoEscritório[],,1),0),MATCH(VariaçõesDoEscritório[[#Headers],[Set]],PlanejamentoDoEscritório[#Headers],0))-INDEX(RealEscritório[],MATCH(INDEX(VariaçõesDoEscritório[],ROW()-ROW(VariaçõesDoEscritório[[#Headers],[Set]]),1),INDEX(PlanejamentoDoEscritório[],,1),0),MATCH(VariaçõesDoEscritório[[#Headers],[Set]],RealEscritório[#Headers],0))","v":{"v":200,"d":"R$ 200.00"}},{"$f":"INDEX(PlanejamentoDoEscritório[],MATCH(INDEX(VariaçõesDoEscritório[],ROW()-ROW(VariaçõesDoEscritório[[#Headers],[Out]]),1),INDEX(PlanejamentoDoEscritório[],,1),0),MATCH(VariaçõesDoEscritório[[#Headers],[Out]],PlanejamentoDoEscritório[#Headers],0))-INDEX(RealEscritório[],MATCH(INDEX(VariaçõesDoEscritório[],ROW()-ROW(VariaçõesDoEscritório[[#Headers],[Out]]),1),INDEX(PlanejamentoDoEscritório[],,1),0),MATCH(VariaçõesDoEscritório[[#Headers],[Out]],RealEscritório[#Headers],0))","v":{"v":200,"d":"R$ 200.00"}},{"$f":"INDEX(PlanejamentoDoEscritório[],MATCH(INDEX(VariaçõesDoEscritório[],ROW()-ROW(VariaçõesDoEscritório[[#Headers],[Nov]]),1),INDEX(PlanejamentoDoEscritório[],,1),0),MATCH(VariaçõesDoEscritório[[#Headers],[Nov]],PlanejamentoDoEscritório[#Headers],0))-INDEX(RealEscritório[],MATCH(INDEX(VariaçõesDoEscritório[],ROW()-ROW(VariaçõesDoEscritório[[#Headers],[Nov]]),1),INDEX(PlanejamentoDoEscritório[],,1),0),MATCH(VariaçõesDoEscritório[[#Headers],[Nov]],RealEscritório[#Headers],0))","v":{"v":200,"d":"R$ 200.00"}},{"$f":"INDEX(PlanejamentoDoEscritório[],MATCH(INDEX(VariaçõesDoEscritório[],ROW()-ROW(VariaçõesDoEscritório[[#Headers],[Dez]]),1),INDEX(PlanejamentoDoEscritório[],,1),0),MATCH(VariaçõesDoEscritório[[#Headers],[Dez]],PlanejamentoDoEscritório[#Headers],0))-INDEX(RealEscritório[],MATCH(INDEX(VariaçõesDoEscritório[],ROW()-ROW(VariaçõesDoEscritório[[#Headers],[Dez]]),1),INDEX(PlanejamentoDoEscritório[],,1),0),MATCH(VariaçõesDoEscritório[[#Headers],[Dez]],RealEscritório[#Headers],0))","v":{"v":200,"d":"R$ 200.00"}},{"$f":"SUM(VariaçõesDoEscritório[[#This Row],[Jan]:[Dez]])","v":{"v":1125,"d":"R$ 1,125.00"}}]
[null,"Segurança",{"$f":"INDEX(PlanejamentoDoEscritório[],MATCH(INDEX(VariaçõesDoEscritório[],ROW()-ROW(VariaçõesDoEscritório[[#Headers],[Jan]]),1),INDEX(PlanejamentoDoEscritório[],,1),0),MATCH(VariaçõesDoEscritório[[#Headers],[Jan]],PlanejamentoDoEscritório[#Headers],0))-INDEX(RealEscritório[],MATCH(INDEX(VariaçõesDoEscritório[],ROW()-ROW(VariaçõesDoEscritório[[#Headers],[Jan]]),1),INDEX(PlanejamentoDoEscritório[],,1),0),MATCH(VariaçõesDoEscritório[[#Headers],[Jan]],RealEscritório[#Headers],0))","v":{"v":0,"d":"R$ 0.00"}},{"$f":"INDEX(PlanejamentoDoEscritório[],MATCH(INDEX(VariaçõesDoEscritório[],ROW()-ROW(VariaçõesDoEscritório[[#Headers],[Fev]]),1),INDEX(PlanejamentoDoEscritório[],,1),0),MATCH(VariaçõesDoEscritório[[#Headers],[Fev]],PlanejamentoDoEscritório[#Headers],0))-INDEX(RealEscritório[],MATCH(INDEX(VariaçõesDoEscritório[],ROW()-ROW(VariaçõesDoEscritório[[#Headers],[Fev]]),1),INDEX(PlanejamentoDoEscritório[],,1),0),MATCH(VariaçõesDoEscritório[[#Headers],[Fev]],RealEscritório[#Headers],0))","v":{"v":0,"d":"R$ 0.00"}},{"$f":"INDEX(PlanejamentoDoEscritório[],MATCH(INDEX(VariaçõesDoEscritório[],ROW()-ROW(VariaçõesDoEscritório[[#Headers],[Mar]]),1),INDEX(PlanejamentoDoEscritório[],,1),0),MATCH(VariaçõesDoEscritório[[#Headers],[Mar]],PlanejamentoDoEscritório[#Headers],0))-INDEX(RealEscritório[],MATCH(INDEX(VariaçõesDoEscritório[],ROW()-ROW(VariaçõesDoEscritório[[#Headers],[Mar]]),1),INDEX(PlanejamentoDoEscritório[],,1),0),MATCH(VariaçõesDoEscritório[[#Headers],[Mar]],RealEscritório[#Headers],0))","v":{"v":0,"d":"R$ 0.00"}},{"$f":"INDEX(PlanejamentoDoEscritório[],MATCH(INDEX(VariaçõesDoEscritório[],ROW()-ROW(VariaçõesDoEscritório[[#Headers],[Abr]]),1),INDEX(PlanejamentoDoEscritório[],,1),0),MATCH(VariaçõesDoEscritório[[#Headers],[Abr]],PlanejamentoDoEscritório[#Headers],0))-INDEX(RealEscritório[],MATCH(INDEX(VariaçõesDoEscritório[],ROW()-ROW(VariaçõesDoEscritório[[#Headers],[Abr]]),1),INDEX(PlanejamentoDoEscritório[],,1),0),MATCH(VariaçõesDoEscritório[[#Headers],[Abr]],RealEscritório[#Headers],0))","v":{"v":0,"d":"R$ 0.00"}},{"$f":"INDEX(PlanejamentoDoEscritório[],MATCH(INDEX(VariaçõesDoEscritório[],ROW()-ROW(VariaçõesDoEscritório[[#Headers],[Mai]]),1),INDEX(PlanejamentoDoEscritório[],,1),0),MATCH(VariaçõesDoEscritório[[#Headers],[Mai]],PlanejamentoDoEscritório[#Headers],0))-INDEX(RealEscritório[],MATCH(INDEX(VariaçõesDoEscritório[],ROW()-ROW(VariaçõesDoEscritório[[#Headers],[Mai]]),1),INDEX(PlanejamentoDoEscritório[],,1),0),MATCH(VariaçõesDoEscritório[[#Headers],[Mai]],RealEscritório[#Headers],0))","v":{"v":0,"d":"R$ 0.00"}},{"$f":"INDEX(PlanejamentoDoEscritório[],MATCH(INDEX(VariaçõesDoEscritório[],ROW()-ROW(VariaçõesDoEscritório[[#Headers],[Jun]]),1),INDEX(PlanejamentoDoEscritório[],,1),0),MATCH(VariaçõesDoEscritório[[#Headers],[Jun]],PlanejamentoDoEscritório[#Headers],0))-INDEX(RealEscritório[],MATCH(INDEX(VariaçõesDoEscritório[],ROW()-ROW(VariaçõesDoEscritório[[#Headers],[Jun]]),1),INDEX(PlanejamentoDoEscritório[],,1),0),MATCH(VariaçõesDoEscritório[[#Headers],[Jun]],RealEscritório[#Headers],0))","v":{"v":0,"d":"R$ 0.00"}},{"$f":"INDEX(PlanejamentoDoEscritório[],MATCH(INDEX(VariaçõesDoEscritório[],ROW()-ROW(VariaçõesDoEscritório[[#Headers],[Jul]]),1),INDEX(PlanejamentoDoEscritório[],,1),0),MATCH(VariaçõesDoEscritório[[#Headers],[Jul]],PlanejamentoDoEscritório[#Headers],0))-INDEX(RealEscritório[],MATCH(INDEX(VariaçõesDoEscritório[],ROW()-ROW(VariaçõesDoEscritório[[#Headers],[Jul]]),1),INDEX(PlanejamentoDoEscritório[],,1),0),MATCH(VariaçõesDoEscritório[[#Headers],[Jul]],RealEscritório[#Headers],0))","v":{"v":600,"d":"R$ 600.00"}},{"$f":"INDEX(PlanejamentoDoEscritório[],MATCH(INDEX(VariaçõesDoEscritório[],ROW()-ROW(VariaçõesDoEscritório[[#Headers],[Ago]]),1),INDEX(PlanejamentoDoEscritório[],,1),0),MATCH(VariaçõesDoEscritório[[#Headers],[Ago]],PlanejamentoDoEscritório[#Headers],0))-INDEX(RealEscritório[],MATCH(INDEX(VariaçõesDoEscritório[],ROW()-ROW(VariaçõesDoEscritório[[#Headers],[Ago]]),1),INDEX(PlanejamentoDoEscritório[],,1),0),MATCH(VariaçõesDoEscritório[[#Headers],[Ago]],RealEscritório[#Headers],0))","v":{"v":600,"d":"R$ 600.00"}},{"$f":"INDEX(PlanejamentoDoEscritório[],MATCH(INDEX(VariaçõesDoEscritório[],ROW()-ROW(VariaçõesDoEscritório[[#Headers],[Set]]),1),INDEX(PlanejamentoDoEscritório[],,1),0),MATCH(VariaçõesDoEscritório[[#Headers],[Set]],PlanejamentoDoEscritório[#Headers],0))-INDEX(RealEscritório[],MATCH(INDEX(VariaçõesDoEscritório[],ROW()-ROW(VariaçõesDoEscritório[[#Headers],[Set]]),1),INDEX(PlanejamentoDoEscritório[],,1),0),MATCH(VariaçõesDoEscritório[[#Headers],[Set]],RealEscritório[#Headers],0))","v":{"v":600,"d":"R$ 600.00"}},{"$f":"INDEX(PlanejamentoDoEscritório[],MATCH(INDEX(VariaçõesDoEscritório[],ROW()-ROW(VariaçõesDoEscritório[[#Headers],[Out]]),1),INDEX(PlanejamentoDoEscritório[],,1),0),MATCH(VariaçõesDoEscritório[[#Headers],[Out]],PlanejamentoDoEscritório[#Headers],0))-INDEX(RealEscritório[],MATCH(INDEX(VariaçõesDoEscritório[],ROW()-ROW(VariaçõesDoEscritório[[#Headers],[Out]]),1),INDEX(PlanejamentoDoEscritório[],,1),0),MATCH(VariaçõesDoEscritório[[#Headers],[Out]],RealEscritório[#Headers],0))","v":{"v":600,"d":"R$ 600.00"}},{"$f":"INDEX(PlanejamentoDoEscritório[],MATCH(INDEX(VariaçõesDoEscritório[],ROW()-ROW(VariaçõesDoEscritório[[#Headers],[Nov]]),1),INDEX(PlanejamentoDoEscritório[],,1),0),MATCH(VariaçõesDoEscritório[[#Headers],[Nov]],PlanejamentoDoEscritório[#Headers],0))-INDEX(RealEscritório[],MATCH(INDEX(VariaçõesDoEscritório[],ROW()-ROW(VariaçõesDoEscritório[[#Headers],[Nov]]),1),INDEX(PlanejamentoDoEscritório[],,1),0),MATCH(VariaçõesDoEscritório[[#Headers],[Nov]],RealEscritório[#Headers],0))","v":{"v":600,"d":"R$ 600.00"}},{"$f":"INDEX(PlanejamentoDoEscritório[],MATCH(INDEX(VariaçõesDoEscritório[],ROW()-ROW(VariaçõesDoEscritório[[#Headers],[Dez]]),1),INDEX(PlanejamentoDoEscritório[],,1),0),MATCH(VariaçõesDoEscritório[[#Headers],[Dez]],PlanejamentoDoEscritório[#Headers],0))-INDEX(RealEscritório[],MATCH(INDEX(VariaçõesDoEscritório[],ROW()-ROW(VariaçõesDoEscritório[[#Headers],[Dez]]),1),INDEX(PlanejamentoDoEscritório[],,1),0),MATCH(VariaçõesDoEscritório[[#Headers],[Dez]],RealEscritório[#Headers],0))","v":{"v":600,"d":"R$ 600.00"}},{"$f":"SUM(VariaçõesDoEscritório[[#This Row],[Jan]:[Dez]])","v":{"v":3600,"d":"R$ 3,600.00"}}]
[null,"Subtotal",{"$f":"SUBTOTAL(109,VariaçõesDoEscritório[Jan])","v":{"v":-17,"d":"-R$ 17.00"}},{"$f":"SUBTOTAL(109,VariaçõesDoEscritório[Fev])","v":{"v":72,"d":"R$ 72.00"}},{"$f":"SUBTOTAL(109,VariaçõesDoEscritório[Mar])","v":{"v":78,"d":"R$ 78.00"}},{"$f":"SUBTOTAL(109,VariaçõesDoEscritório[Abr])","v":{"v":-141,"d":"-R$ 141.00"}},{"$f":"SUBTOTAL(109,VariaçõesDoEscritório[Mai])","v":{"v":-38,"d":"-R$ 38.00"}},{"$f":"SUBTOTAL(109,VariaçõesDoEscritório[Jun])","v":{"v":16,"d":"R$ 16.00"}},{"$f":"SUBTOTAL(109,VariaçõesDoEscritório[Jul])","v":{"v":11470,"d":"R$ 11,470.00"}},{"$f":"SUBTOTAL(109,VariaçõesDoEscritório[Ago])","v":{"v":11470,"d":"R$ 11,470.00"}},{"$f":"SUBTOTAL(109,VariaçõesDoEscritório[Set])","v":{"v":11470,"d":"R$ 11,470.00"}},{"$f":"SUBTOTAL(109,VariaçõesDoEscritório[Out])","v":{"v":11470,"d":"R$ 11,470.00"}},{"$f":"SUBTOTAL(109,VariaçõesDoEscritório[Nov])","v":{"v":11770,"d":"R$ 11,770.00"}},{"$f":"SUBTOTAL(109,VariaçõesDoEscritório[Dez])","v":{"v":11770,"d":"R$ 11,770.00"}},{"$f":"SUBTOTAL(109,VariaçõesDoEscritório[ANO])","v":{"v":69390,"d":"R$ 69,390.00"}}]
[]
["A variação nos Custos de marketing é calculada automaticamente na tabela Variações de marketing que começa na célula à direita. A próxima instrução está na célula A30.","Custos de marketing","Jan","Fev","Mar","Abr","Mai","Jun","Jul","Ago","Set","Out","Nov","Dez","ANO"]
[null,"Hospedagem de site",{"$f":"INDEX(PlanejamentoDeMarketing[],MATCH(INDEX(VariaçõesDeMarketing[],ROW()-ROW(VariaçõesDeMarketing[[#Headers],[Jan]]),1),INDEX(PlanejamentoDeMarketing[],,1),0),MATCH(VariaçõesDeMarketing[[#Headers],[Jan]],PlanejamentoDeMarketing[#Headers],0))-INDEX(RealMarketing[],MATCH(INDEX(VariaçõesDeMarketing[],ROW()-ROW(VariaçõesDeMarketing[[#Headers],[Jan]]),1),INDEX(PlanejamentoDeMarketing[],,1),0),MATCH(VariaçõesDeMarketing[[#Headers],[Jan]],RealMarketing[#Headers],0))","v":{"v":0,"d":"R$ 0.00"}},{"$f":"INDEX(PlanejamentoDeMarketing[],MATCH(INDEX(VariaçõesDeMarketing[],ROW()-ROW(VariaçõesDeMarketing[[#Headers],[Fev]]),1),INDEX(PlanejamentoDeMarketing[],,1),0),MATCH(VariaçõesDeMarketing[[#Headers],[Fev]],PlanejamentoDeMarketing[#Headers],0))-INDEX(RealMarketing[],MATCH(INDEX(VariaçõesDeMarketing[],ROW()-ROW(VariaçõesDeMarketing[[#Headers],[Fev]]),1),INDEX(PlanejamentoDeMarketing[],,1),0),MATCH(VariaçõesDeMarketing[[#Headers],[Fev]],RealMarketing[#Headers],0))","v":{"v":0,"d":"R$ 0.00"}},{"$f":"INDEX(PlanejamentoDeMarketing[],MATCH(INDEX(VariaçõesDeMarketing[],ROW()-ROW(VariaçõesDeMarketing[[#Headers],[Mar]]),1),INDEX(PlanejamentoDeMarketing[],,1),0),MATCH(VariaçõesDeMarketing[[#Headers],[Mar]],PlanejamentoDeMarketing[#Headers],0))-INDEX(RealMarketing[],MATCH(INDEX(VariaçõesDeMarketing[],ROW()-ROW(VariaçõesDeMarketing[[#Headers],[Mar]]),1),INDEX(PlanejamentoDeMarketing[],,1),0),MATCH(VariaçõesDeMarketing[[#Headers],[Mar]],RealMarketing[#Headers],0))","v":{"v":0,"d":"R$ 0.00"}},{"$f":"INDEX(PlanejamentoDeMarketing[],MATCH(INDEX(VariaçõesDeMarketing[],ROW()-ROW(VariaçõesDeMarketing[[#Headers],[Abr]]),1),INDEX(PlanejamentoDeMarketing[],,1),0),MATCH(VariaçõesDeMarketing[[#Headers],[Abr]],PlanejamentoDeMarketing[#Headers],0))-INDEX(RealMarketing[],MATCH(INDEX(VariaçõesDeMarketing[],ROW()-ROW(VariaçõesDeMarketing[[#Headers],[Abr]]),1),INDEX(PlanejamentoDeMarketing[],,1),0),MATCH(VariaçõesDeMarketing[[#Headers],[Abr]],RealMarketing[#Headers],0))","v":{"v":0,"d":"R$ 0.00"}},{"$f":"INDEX(PlanejamentoDeMarketing[],MATCH(INDEX(VariaçõesDeMarketing[],ROW()-ROW(VariaçõesDeMarketing[[#Headers],[Mai]]),1),INDEX(PlanejamentoDeMarketing[],,1),0),MATCH(VariaçõesDeMarketing[[#Headers],[Mai]],PlanejamentoDeMarketing[#Headers],0))-INDEX(RealMarketing[],MATCH(INDEX(VariaçõesDeMarketing[],ROW()-ROW(VariaçõesDeMarketing[[#Headers],[Mai]]),1),INDEX(PlanejamentoDeMarketing[],,1),0),MATCH(VariaçõesDeMarketing[[#Headers],[Mai]],RealMarketing[#Headers],0))","v":{"v":0,"d":"R$ 0.00"}},{"$f":"INDEX(PlanejamentoDeMarketing[],MATCH(INDEX(VariaçõesDeMarketing[],ROW()-ROW(VariaçõesDeMarketing[[#Headers],[Jun]]),1),INDEX(PlanejamentoDeMarketing[],,1),0),MATCH(VariaçõesDeMarketing[[#Headers],[Jun]],PlanejamentoDeMarketing[#Headers],0))-INDEX(RealMarketing[],MATCH(INDEX(VariaçõesDeMarketing[],ROW()-ROW(VariaçõesDeMarketing[[#Headers],[Jun]]),1),INDEX(PlanejamentoDeMarketing[],,1),0),MATCH(VariaçõesDeMarketing[[#Headers],[Jun]],RealMarketing[#Headers],0))","v":{"v":0,"d":"R$ 0.00"}},{"$f":"INDEX(PlanejamentoDeMarketing[],MATCH(INDEX(VariaçõesDeMarketing[],ROW()-ROW(VariaçõesDeMarketing[[#Headers],[Jul]]),1),INDEX(PlanejamentoDeMarketing[],,1),0),MATCH(VariaçõesDeMarketing[[#Headers],[Jul]],PlanejamentoDeMarketing[#Headers],0))-INDEX(RealMarketing[],MATCH(INDEX(VariaçõesDeMarketing[],ROW()-ROW(VariaçõesDeMarketing[[#Headers],[Jul]]),1),INDEX(PlanejamentoDeMarketing[],,1),0),MATCH(VariaçõesDeMarketing[[#Headers],[Jul]],RealMarketing[#Headers],0))","v":{"v":500,"d":"R$ 500.00"}},{"$f":"INDEX(PlanejamentoDeMarketing[],MATCH(INDEX(VariaçõesDeMarketing[],ROW()-ROW(VariaçõesDeMarketing[[#Headers],[Ago]]),1),INDEX(PlanejamentoDeMarketing[],,1),0),MATCH(VariaçõesDeMarketing[[#Headers],[Ago]],PlanejamentoDeMarketing[#Headers],0))-INDEX(RealMarketing[],MATCH(INDEX(VariaçõesDeMarketing[],ROW()-ROW(VariaçõesDeMarketing[[#Headers],[Ago]]),1),INDEX(PlanejamentoDeMarketing[],,1),0),MATCH(VariaçõesDeMarketing[[#Headers],[Ago]],RealMarketing[#Headers],0))","v":{"v":500,"d":"R$ 500.00"}},{"$f":"INDEX(PlanejamentoDeMarketing[],MATCH(INDEX(VariaçõesDeMarketing[],ROW()-ROW(VariaçõesDeMarketing[[#Headers],[Set]]),1),INDEX(PlanejamentoDeMarketing[],,1),0),MATCH(VariaçõesDeMarketing[[#Headers],[Set]],PlanejamentoDeMarketing[#Headers],0))-INDEX(RealMarketing[],MATCH(INDEX(VariaçõesDeMarketing[],ROW()-ROW(VariaçõesDeMarketing[[#Headers],[Set]]),1),INDEX(PlanejamentoDeMarketing[],,1),0),MATCH(VariaçõesDeMarketing[[#Headers],[Set]],RealMarketing[#Headers],0))","v":{"v":500,"d":"R$ 500.00"}},{"$f":"INDEX(PlanejamentoDeMarketing[],MATCH(INDEX(VariaçõesDeMarketing[],ROW()-ROW(VariaçõesDeMarketing[[#Headers],[Out]]),1),INDEX(PlanejamentoDeMarketing[],,1),0),MATCH(VariaçõesDeMarketing[[#Headers],[Out]],PlanejamentoDeMarketing[#Headers],0))-INDEX(RealMarketing[],MATCH(INDEX(VariaçõesDeMarketing[],ROW()-ROW(VariaçõesDeMarketing[[#Headers],[Out]]),1),INDEX(PlanejamentoDeMarketing[],,1),0),MATCH(VariaçõesDeMarketing[[#Headers],[Out]],RealMarketing[#Headers],0))","v":{"v":500,"d":"R$ 500.00"}},{"$f":"INDEX(PlanejamentoDeMarketing[],MATCH(INDEX(VariaçõesDeMarketing[],ROW()-ROW(VariaçõesDeMarketing[[#Headers],[Nov]]),1),INDEX(PlanejamentoDeMarketing[],,1),0),MATCH(VariaçõesDeMarketing[[#Headers],[Nov]],PlanejamentoDeMarketing[#Headers],0))-INDEX(RealMarketing[],MATCH(INDEX(VariaçõesDeMarketing[],ROW()-ROW(VariaçõesDeMarketing[[#Headers],[Nov]]),1),INDEX(PlanejamentoDeMarketing[],,1),0),MATCH(VariaçõesDeMarketing[[#Headers],[Nov]],RealMarketing[#Headers],0))","v":{"v":500,"d":"R$ 500.00"}},{"$f":"INDEX(PlanejamentoDeMarketing[],MATCH(INDEX(VariaçõesDeMarketing[],ROW()-ROW(VariaçõesDeMarketing[[#Headers],[Dez]]),1),INDEX(PlanejamentoDeMarketing[],,1),0),MATCH(VariaçõesDeMarketing[[#Headers],[Dez]],PlanejamentoDeMarketing[#Headers],0))-INDEX(RealMarketing[],MATCH(INDEX(VariaçõesDeMarketing[],ROW()-ROW(VariaçõesDeMarketing[[#Headers],[Dez]]),1),INDEX(PlanejamentoDeMarketing[],,1),0),MATCH(VariaçõesDeMarketing[[#Headers],[Dez]],RealMarketing[#Headers],0))","v":{"v":500,"d":"R$ 500.00"}},{"$f":"SUM(VariaçõesDeMarketing[[#This Row],[Jan]:[Dez]])","v":{"v":3000,"d":"R$ 3,000.00"}}]
[null,"Atualizações do site",{"$f":"INDEX(PlanejamentoDeMarketing[],MATCH(INDEX(VariaçõesDeMarketing[],ROW()-ROW(VariaçõesDeMarketing[[#Headers],[Jan]]),1),INDEX(PlanejamentoDeMarketing[],,1),0),MATCH(VariaçõesDeMarketing[[#Headers],[Jan]],PlanejamentoDeMarketing[#Headers],0))-INDEX(RealMarketing[],MATCH(INDEX(VariaçõesDeMarketing[],ROW()-ROW(VariaçõesDeMarketing[[#Headers],[Jan]]),1),INDEX(PlanejamentoDeMarketing[],,1),0),MATCH(VariaçõesDeMarketing[[#Headers],[Jan]],RealMarketing[#Headers],0))","v":{"v":0,"d":"R$ 0.00"}},{"$f":"INDEX(PlanejamentoDeMarketing[],MATCH(INDEX(VariaçõesDeMarketing[],ROW()-ROW(VariaçõesDeMarketing[[#Headers],[Fev]]),1),INDEX(PlanejamentoDeMarketing[],,1),0),MATCH(VariaçõesDeMarketing[[#Headers],[Fev]],PlanejamentoDeMarketing[#Headers],0))-INDEX(RealMarketing[],MATCH(INDEX(VariaçõesDeMarketing[],ROW()-ROW(VariaçõesDeMarketing[[#Headers],[Fev]]),1),INDEX(PlanejamentoDeMarketing[],,1),0),MATCH(VariaçõesDeMarketing[[#Headers],[Fev]],RealMarketing[#Headers],0))","v":{"v":0,"d":"R$ 0.00"}},{"$f":"INDEX(PlanejamentoDeMarketing[],MATCH(INDEX(VariaçõesDeMarketing[],ROW()-ROW(VariaçõesDeMarketing[[#Headers],[Mar]]),1),INDEX(PlanejamentoDeMarketing[],,1),0),MATCH(VariaçõesDeMarketing[[#Headers],[Mar]],PlanejamentoDeMarketing[#Headers],0))-INDEX(RealMarketing[],MATCH(INDEX(VariaçõesDeMarketing[],ROW()-ROW(VariaçõesDeMarketing[[#Headers],[Mar]]),1),INDEX(PlanejamentoDeMarketing[],,1),0),MATCH(VariaçõesDeMarketing[[#Headers],[Mar]],RealMarketing[#Headers],0))","v":{"v":0,"d":"R$ 0.00"}},{"$f":"INDEX(PlanejamentoDeMarketing[],MATCH(INDEX(VariaçõesDeMarketing[],ROW()-ROW(VariaçõesDeMarketing[[#Headers],[Abr]]),1),INDEX(PlanejamentoDeMarketing[],,1),0),MATCH(VariaçõesDeMarketing[[#Headers],[Abr]],PlanejamentoDeMarketing[#Headers],0))-INDEX(RealMarketing[],MATCH(INDEX(VariaçõesDeMarketing[],ROW()-ROW(VariaçõesDeMarketing[[#Headers],[Abr]]),1),INDEX(PlanejamentoDeMarketing[],,1),0),MATCH(VariaçõesDeMarketing[[#Headers],[Abr]],RealMarketing[#Headers],0))","v":{"v":0,"d":"R$ 0.00"}},{"$f":"INDEX(PlanejamentoDeMarketing[],MATCH(INDEX(VariaçõesDeMarketing[],ROW()-ROW(VariaçõesDeMarketing[[#Headers],[Mai]]),1),INDEX(PlanejamentoDeMarketing[],,1),0),MATCH(VariaçõesDeMarketing[[#Headers],[Mai]],PlanejamentoDeMarketing[#Headers],0))-INDEX(RealMarketing[],MATCH(INDEX(VariaçõesDeMarketing[],ROW()-ROW(VariaçõesDeMarketing[[#Headers],[Mai]]),1),INDEX(PlanejamentoDeMarketing[],,1),0),MATCH(VariaçõesDeMarketing[[#Headers],[Mai]],RealMarketing[#Headers],0))","v":{"v":0,"d":"R$ 0.00"}},{"$f":"INDEX(PlanejamentoDeMarketing[],MATCH(INDEX(VariaçõesDeMarketing[],ROW()-ROW(VariaçõesDeMarketing[[#Headers],[Jun]]),1),INDEX(PlanejamentoDeMarketing[],,1),0),MATCH(VariaçõesDeMarketing[[#Headers],[Jun]],PlanejamentoDeMarketing[#Headers],0))-INDEX(RealMarketing[],MATCH(INDEX(VariaçõesDeMarketing[],ROW()-ROW(VariaçõesDeMarketing[[#Headers],[Jun]]),1),INDEX(PlanejamentoDeMarketing[],,1),0),MATCH(VariaçõesDeMarketing[[#Headers],[Jun]],RealMarketing[#Headers],0))","v":{"v":-500,"d":"-R$ 500.00"}},{"$f":"INDEX(PlanejamentoDeMarketing[],MATCH(INDEX(VariaçõesDeMarketing[],ROW()-ROW(VariaçõesDeMarketing[[#Headers],[Jul]]),1),INDEX(PlanejamentoDeMarketing[],,1),0),MATCH(VariaçõesDeMarketing[[#Headers],[Jul]],PlanejamentoDeMarketing[#Headers],0))-INDEX(RealMarketing[],MATCH(INDEX(VariaçõesDeMarketing[],ROW()-ROW(VariaçõesDeMarketing[[#Headers],[Jul]]),1),INDEX(PlanejamentoDeMarketing[],,1),0),MATCH(VariaçõesDeMarketing[[#Headers],[Jul]],RealMarketing[#Headers],0))","v":{"v":200,"d":"R$ 200.00"}},{"$f":"INDEX(PlanejamentoDeMarketing[],MATCH(INDEX(VariaçõesDeMarketing[],ROW()-ROW(VariaçõesDeMarketing[[#Headers],[Ago]]),1),INDEX(PlanejamentoDeMarketing[],,1),0),MATCH(VariaçõesDeMarketing[[#Headers],[Ago]],PlanejamentoDeMarketing[#Headers],0))-INDEX(RealMarketing[],MATCH(INDEX(VariaçõesDeMarketing[],ROW()-ROW(VariaçõesDeMarketing[[#Headers],[Ago]]),1),INDEX(PlanejamentoDeMarketing[],,1),0),MATCH(VariaçõesDeMarketing[[#Headers],[Ago]],RealMarketing[#Headers],0))","v":{"v":200,"d":"R$ 200.00"}},{"$f":"INDEX(PlanejamentoDeMarketing[],MATCH(INDEX(VariaçõesDeMarketing[],ROW()-ROW(VariaçõesDeMarketing[[#Headers],[Set]]),1),INDEX(PlanejamentoDeMarketing[],,1),0),MATCH(VariaçõesDeMarketing[[#Headers],[Set]],PlanejamentoDeMarketing[#Headers],0))-INDEX(RealMarketing[],MATCH(INDEX(VariaçõesDeMarketing[],ROW()-ROW(VariaçõesDeMarketing[[#Headers],[Set]]),1),INDEX(PlanejamentoDeMarketing[],,1),0),MATCH(VariaçõesDeMarketing[[#Headers],[Set]],RealMarketing[#Headers],0))","v":{"v":200,"d":"R$ 200.00"}},{"$f":"INDEX(PlanejamentoDeMarketing[],MATCH(INDEX(VariaçõesDeMarketing[],ROW()-ROW(VariaçõesDeMarketing[[#Headers],[Out]]),1),INDEX(PlanejamentoDeMarketing[],,1),0),MATCH(VariaçõesDeMarketing[[#Headers],[Out]],PlanejamentoDeMarketing[#Headers],0))-INDEX(RealMarketing[],MATCH(INDEX(VariaçõesDeMarketing[],ROW()-ROW(VariaçõesDeMarketing[[#Headers],[Out]]),1),INDEX(PlanejamentoDeMarketing[],,1),0),MATCH(VariaçõesDeMarketing[[#Headers],[Out]],RealMarketing[#Headers],0))","v":{"v":200,"d":"R$ 200.00"}},{"$f":"INDEX(PlanejamentoDeMarketing[],MATCH(INDEX(VariaçõesDeMarketing[],ROW()-ROW(VariaçõesDeMarketing[[#Headers],[Nov]]),1),INDEX(PlanejamentoDeMarketing[],,1),0),MATCH(VariaçõesDeMarketing[[#Headers],[Nov]],PlanejamentoDeMarketing[#Headers],0))-INDEX(RealMarketing[],MATCH(INDEX(VariaçõesDeMarketing[],ROW()-ROW(VariaçõesDeMarketing[[#Headers],[Nov]]),1),INDEX(PlanejamentoDeMarketing[],,1),0),MATCH(VariaçõesDeMarketing[[#Headers],[Nov]],RealMarketing[#Headers],0))","v":{"v":200,"d":"R$ 200.00"}},{"$f":"INDEX(PlanejamentoDeMarketing[],MATCH(INDEX(VariaçõesDeMarketing[],ROW()-ROW(VariaçõesDeMarketing[[#Headers],[Dez]]),1),INDEX(PlanejamentoDeMarketing[],,1),0),MATCH(VariaçõesDeMarketing[[#Headers],[Dez]],PlanejamentoDeMarketing[#Headers],0))-INDEX(RealMarketing[],MATCH(INDEX(VariaçõesDeMarketing[],ROW()-ROW(VariaçõesDeMarketing[[#Headers],[Dez]]),1),INDEX(PlanejamentoDeMarketing[],,1),0),MATCH(VariaçõesDeMarketing[[#Headers],[Dez]],RealMarketing[#Headers],0))","v":{"v":1000,"d":"R$ 1,000.00"}},{"$f":"SUM(VariaçõesDeMarketing[[#This Row],[Jan]:[Dez]])","v":{"v":1500,"d":"R$ 1,500.00"}}]
[null,"Preparação de materiais de referência",{"$f":"INDEX(PlanejamentoDeMarketing[],MATCH(INDEX(VariaçõesDeMarketing[],ROW()-ROW(VariaçõesDeMarketing[[#Headers],[Jan]]),1),INDEX(PlanejamentoDeMarketing[],,1),0),MATCH(VariaçõesDeMarketing[[#Headers],[Jan]],PlanejamentoDeMarketing[#Headers],0))-INDEX(RealMarketing[],MATCH(INDEX(VariaçõesDeMarketing[],ROW()-ROW(VariaçõesDeMarketing[[#Headers],[Jan]]),1),INDEX(PlanejamentoDeMarketing[],,1),0),MATCH(VariaçõesDeMarketing[[#Headers],[Jan]],RealMarketing[#Headers],0))","v":{"v":200,"d":"R$ 200.00"}},{"$f":"INDEX(PlanejamentoDeMarketing[],MATCH(INDEX(VariaçõesDeMarketing[],ROW()-ROW(VariaçõesDeMarketing[[#Headers],[Fev]]),1),INDEX(PlanejamentoDeMarketing[],,1),0),MATCH(VariaçõesDeMarketing[[#Headers],[Fev]],PlanejamentoDeMarketing[#Headers],0))-INDEX(RealMarketing[],MATCH(INDEX(VariaçõesDeMarketing[],ROW()-ROW(VariaçõesDeMarketing[[#Headers],[Fev]]),1),INDEX(PlanejamentoDeMarketing[],,1),0),MATCH(VariaçõesDeMarketing[[#Headers],[Fev]],RealMarketing[#Headers],0))","v":{"v":0,"d":"R$ 0.00"}},{"$f":"INDEX(PlanejamentoDeMarketing[],MATCH(INDEX(VariaçõesDeMarketing[],ROW()-ROW(VariaçõesDeMarketing[[#Headers],[Mar]]),1),INDEX(PlanejamentoDeMarketing[],,1),0),MATCH(VariaçõesDeMarketing[[#Headers],[Mar]],PlanejamentoDeMarketing[#Headers],0))-INDEX(RealMarketing[],MATCH(INDEX(VariaçõesDeMarketing[],ROW()-ROW(VariaçõesDeMarketing[[#Headers],[Mar]]),1),INDEX(PlanejamentoDeMarketing[],,1),0),MATCH(VariaçõesDeMarketing[[#Headers],[Mar]],RealMarketing[#Headers],0))","v":{"v":0,"d":"R$ 0.00"}},{"$f":"INDEX(PlanejamentoDeMarketing[],MATCH(INDEX(VariaçõesDeMarketing[],ROW()-ROW(VariaçõesDeMarketing[[#Headers],[Abr]]),1),INDEX(PlanejamentoDeMarketing[],,1),0),MATCH(VariaçõesDeMarketing[[#Headers],[Abr]],PlanejamentoDeMarketing[#Headers],0))-INDEX(RealMarketing[],MATCH(INDEX(VariaçõesDeMarketing[],ROW()-ROW(VariaçõesDeMarketing[[#Headers],[Abr]]),1),INDEX(PlanejamentoDeMarketing[],,1),0),MATCH(VariaçõesDeMarketing[[#Headers],[Abr]],RealMarketing[#Headers],0))","v":{"v":-500,"d":"-R$ 500.00"}},{"$f":"INDEX(PlanejamentoDeMarketing[],MATCH(INDEX(VariaçõesDeMarketing[],ROW()-ROW(VariaçõesDeMarketing[[#Headers],[Mai]]),1),INDEX(PlanejamentoDeMarketing[],,1),0),MATCH(VariaçõesDeMarketing[[#Headers],[Mai]],PlanejamentoDeMarketing[#Headers],0))-INDEX(RealMarketing[],MATCH(INDEX(VariaçõesDeMarketing[],ROW()-ROW(VariaçõesDeMarketing[[#Headers],[Mai]]),1),INDEX(PlanejamentoDeMarketing[],,1),0),MATCH(VariaçõesDeMarketing[[#Headers],[Mai]],RealMarketing[#Headers],0))","v":{"v":0,"d":"R$ 0.00"}},{"$f":"INDEX(PlanejamentoDeMarketing[],MATCH(INDEX(VariaçõesDeMarketing[],ROW()-ROW(VariaçõesDeMarketing[[#Headers],[Jun]]),1),INDEX(PlanejamentoDeMarketing[],,1),0),MATCH(VariaçõesDeMarketing[[#Headers],[Jun]],PlanejamentoDeMarketing[#Headers],0))-INDEX(RealMarketing[],MATCH(INDEX(VariaçõesDeMarketing[],ROW()-ROW(VariaçõesDeMarketing[[#Headers],[Jun]]),1),INDEX(PlanejamentoDeMarketing[],,1),0),MATCH(VariaçõesDeMarketing[[#Headers],[Jun]],RealMarketing[#Headers],0))","v":{"v":0,"d":"R$ 0.00"}},{"$f":"INDEX(PlanejamentoDeMarketing[],MATCH(INDEX(VariaçõesDeMarketing[],ROW()-ROW(VariaçõesDeMarketing[[#Headers],[Jul]]),1),INDEX(PlanejamentoDeMarketing[],,1),0),MATCH(VariaçõesDeMarketing[[#Headers],[Jul]],PlanejamentoDeMarketing[#Headers],0))-INDEX(RealMarketing[],MATCH(INDEX(VariaçõesDeMarketing[],ROW()-ROW(VariaçõesDeMarketing[[#Headers],[Jul]]),1),INDEX(PlanejamentoDeMarketing[],,1),0),MATCH(VariaçõesDeMarketing[[#Headers],[Jul]],RealMarketing[#Headers],0))","v":{"v":5000,"d":"R$ 5,000.00"}},{"$f":"INDEX(PlanejamentoDeMarketing[],MATCH(INDEX(VariaçõesDeMarketing[],ROW()-ROW(VariaçõesDeMarketing[[#Headers],[Ago]]),1),INDEX(PlanejamentoDeMarketing[],,1),0),MATCH(VariaçõesDeMarketing[[#Headers],[Ago]],PlanejamentoDeMarketing[#Headers],0))-INDEX(RealMarketing[],MATCH(INDEX(VariaçõesDeMarketing[],ROW()-ROW(VariaçõesDeMarketing[[#Headers],[Ago]]),1),INDEX(PlanejamentoDeMarketing[],,1),0),MATCH(VariaçõesDeMarketing[[#Headers],[Ago]],RealMarketing[#Headers],0))","v":{"v":0,"d":"R$ 0.00"}},{"$f":"INDEX(PlanejamentoDeMarketing[],MATCH(INDEX(VariaçõesDeMarketing[],ROW()-ROW(VariaçõesDeMarketing[[#Headers],[Set]]),1),INDEX(PlanejamentoDeMarketing[],,1),0),MATCH(VariaçõesDeMarketing[[#Headers],[Set]],PlanejamentoDeMarketing[#Headers],0))-INDEX(RealMarketing[],MATCH(INDEX(VariaçõesDeMarketing[],ROW()-ROW(VariaçõesDeMarketing[[#Headers],[Set]]),1),INDEX(PlanejamentoDeMarketing[],,1),0),MATCH(VariaçõesDeMarketing[[#Headers],[Set]],RealMarketing[#Headers],0))","v":{"v":0,"d":"R$ 0.00"}},{"$f":"INDEX(PlanejamentoDeMarketing[],MATCH(INDEX(VariaçõesDeMarketing[],ROW()-ROW(VariaçõesDeMarketing[[#Headers],[Out]]),1),INDEX(PlanejamentoDeMarketing[],,1),0),MATCH(VariaçõesDeMarketing[[#Headers],[Out]],PlanejamentoDeMarketing[#Headers],0))-INDEX(RealMarketing[],MATCH(INDEX(VariaçõesDeMarketing[],ROW()-ROW(VariaçõesDeMarketing[[#Headers],[Out]]),1),INDEX(PlanejamentoDeMarketing[],,1),0),MATCH(VariaçõesDeMarketing[[#Headers],[Out]],RealMarketing[#Headers],0))","v":{"v":5000,"d":"R$ 5,000.00"}},{"$f":"INDEX(PlanejamentoDeMarketing[],MATCH(INDEX(VariaçõesDeMarketing[],ROW()-ROW(VariaçõesDeMarketing[[#Headers],[Nov]]),1),INDEX(PlanejamentoDeMarketing[],,1),0),MATCH(VariaçõesDeMarketing[[#Headers],[Nov]],PlanejamentoDeMarketing[#Headers],0))-INDEX(RealMarketing[],MATCH(INDEX(VariaçõesDeMarketing[],ROW()-ROW(VariaçõesDeMarketing[[#Headers],[Nov]]),1),INDEX(PlanejamentoDeMarketing[],,1),0),MATCH(VariaçõesDeMarketing[[#Headers],[Nov]],RealMarketing[#Headers],0))","v":{"v":0,"d":"R$ 0.00"}},{"$f":"INDEX(PlanejamentoDeMarketing[],MATCH(INDEX(VariaçõesDeMarketing[],ROW()-ROW(VariaçõesDeMarketing[[#Headers],[Dez]]),1),INDEX(PlanejamentoDeMarketing[],,1),0),MATCH(VariaçõesDeMarketing[[#Headers],[Dez]],PlanejamentoDeMarketing[#Headers],0))-INDEX(RealMarketing[],MATCH(INDEX(VariaçõesDeMarketing[],ROW()-ROW(VariaçõesDeMarketing[[#Headers],[Dez]]),1),INDEX(PlanejamentoDeMarketing[],,1),0),MATCH(VariaçõesDeMarketing[[#Headers],[Dez]],RealMarketing[#Headers],0))","v":{"v":0,"d":"R$ 0.00"}},{"$f":"SUM(VariaçõesDeMarketing[[#This Row],[Jan]:[Dez]])","v":{"v":9700,"d":"R$ 9,700.00"}}]
[null,"Impressão de materiais de referência",{"$f":"INDEX(PlanejamentoDeMarketing[],MATCH(INDEX(VariaçõesDeMarketing[],ROW()-ROW(VariaçõesDeMarketing[[#Headers],[Jan]]),1),INDEX(PlanejamentoDeMarketing[],,1),0),MATCH(VariaçõesDeMarketing[[#Headers],[Jan]],PlanejamentoDeMarketing[#Headers],0))-INDEX(RealMarketing[],MATCH(INDEX(VariaçõesDeMarketing[],ROW()-ROW(VariaçõesDeMarketing[[#Headers],[Jan]]),1),INDEX(PlanejamentoDeMarketing[],,1),0),MATCH(VariaçõesDeMarketing[[#Headers],[Jan]],RealMarketing[#Headers],0))","v":{"v":100,"d":"R$ 100.00"}},{"$f":"INDEX(PlanejamentoDeMarketing[],MATCH(INDEX(VariaçõesDeMarketing[],ROW()-ROW(VariaçõesDeMarketing[[#Headers],[Fev]]),1),INDEX(PlanejamentoDeMarketing[],,1),0),MATCH(VariaçõesDeMarketing[[#Headers],[Fev]],PlanejamentoDeMarketing[#Headers],0))-INDEX(RealMarketing[],MATCH(INDEX(VariaçõesDeMarketing[],ROW()-ROW(VariaçõesDeMarketing[[#Headers],[Fev]]),1),INDEX(PlanejamentoDeMarketing[],,1),0),MATCH(VariaçõesDeMarketing[[#Headers],[Fev]],RealMarketing[#Headers],0))","v":{"v":-300,"d":"-R$ 300.00"}},{"$f":"INDEX(PlanejamentoDeMarketing[],MATCH(INDEX(VariaçõesDeMarketing[],ROW()-ROW(VariaçõesDeMarketing[[#Headers],[Mar]]),1),INDEX(PlanejamentoDeMarketing[],,1),0),MATCH(VariaçõesDeMarketing[[#Headers],[Mar]],PlanejamentoDeMarketing[#Headers],0))-INDEX(RealMarketing[],MATCH(INDEX(VariaçõesDeMarketing[],ROW()-ROW(VariaçõesDeMarketing[[#Headers],[Mar]]),1),INDEX(PlanejamentoDeMarketing[],,1),0),MATCH(VariaçõesDeMarketing[[#Headers],[Mar]],RealMarketing[#Headers],0))","v":{"v":100,"d":"R$ 100.00"}},{"$f":"INDEX(PlanejamentoDeMarketing[],MATCH(INDEX(VariaçõesDeMarketing[],ROW()-ROW(VariaçõesDeMarketing[[#Headers],[Abr]]),1),INDEX(PlanejamentoDeMarketing[],,1),0),MATCH(VariaçõesDeMarketing[[#Headers],[Abr]],PlanejamentoDeMarketing[#Headers],0))-INDEX(RealMarketing[],MATCH(INDEX(VariaçõesDeMarketing[],ROW()-ROW(VariaçõesDeMarketing[[#Headers],[Abr]]),1),INDEX(PlanejamentoDeMarketing[],,1),0),MATCH(VariaçõesDeMarketing[[#Headers],[Abr]],RealMarketing[#Headers],0))","v":{"v":100,"d":"R$ 100.00"}},{"$f":"INDEX(PlanejamentoDeMarketing[],MATCH(INDEX(VariaçõesDeMarketing[],ROW()-ROW(VariaçõesDeMarketing[[#Headers],[Mai]]),1),INDEX(PlanejamentoDeMarketing[],,1),0),MATCH(VariaçõesDeMarketing[[#Headers],[Mai]],PlanejamentoDeMarketing[#Headers],0))-INDEX(RealMarketing[],MATCH(INDEX(VariaçõesDeMarketing[],ROW()-ROW(VariaçõesDeMarketing[[#Headers],[Mai]]),1),INDEX(PlanejamentoDeMarketing[],,1),0),MATCH(VariaçõesDeMarketing[[#Headers],[Mai]],RealMarketing[#Headers],0))","v":{"v":-400,"d":"-R$ 400.00"}},{"$f":"INDEX(PlanejamentoDeMarketing[],MATCH(INDEX(VariaçõesDeMarketing[],ROW()-ROW(VariaçõesDeMarketing[[#Headers],[Jun]]),1),INDEX(PlanejamentoDeMarketing[],,1),0),MATCH(VariaçõesDeMarketing[[#Headers],[Jun]],PlanejamentoDeMarketing[#Headers],0))-INDEX(RealMarketing[],MATCH(INDEX(VariaçõesDeMarketing[],ROW()-ROW(VariaçõesDeMarketing[[#Headers],[Jun]]),1),INDEX(PlanejamentoDeMarketing[],,1),0),MATCH(VariaçõesDeMarketing[[#Headers],[Jun]],RealMarketing[#Headers],0))","v":{"v":20,"d":"R$ 20.00"}},{"$f":"INDEX(PlanejamentoDeMarketing[],MATCH(INDEX(VariaçõesDeMarketing[],ROW()-ROW(VariaçõesDeMarketing[[#Headers],[Jul]]),1),INDEX(PlanejamentoDeMarketing[],,1),0),MATCH(VariaçõesDeMarketing[[#Headers],[Jul]],PlanejamentoDeMarketing[#Headers],0))-INDEX(RealMarketing[],MATCH(INDEX(VariaçõesDeMarketing[],ROW()-ROW(VariaçõesDeMarketing[[#Headers],[Jul]]),1),INDEX(PlanejamentoDeMarketing[],,1),0),MATCH(VariaçõesDeMarketing[[#Headers],[Jul]],RealMarketing[#Headers],0))","v":{"v":200,"d":"R$ 200.00"}},{"$f":"INDEX(PlanejamentoDeMarketing[],MATCH(INDEX(VariaçõesDeMarketing[],ROW()-ROW(VariaçõesDeMarketing[[#Headers],[Ago]]),1),INDEX(PlanejamentoDeMarketing[],,1),0),MATCH(VariaçõesDeMarketing[[#Headers],[Ago]],PlanejamentoDeMarketing[#Headers],0))-INDEX(RealMarketing[],MATCH(INDEX(VariaçõesDeMarketing[],ROW()-ROW(VariaçõesDeMarketing[[#Headers],[Ago]]),1),INDEX(PlanejamentoDeMarketing[],,1),0),MATCH(VariaçõesDeMarketing[[#Headers],[Ago]],RealMarketing[#Headers],0))","v":{"v":200,"d":"R$ 200.00"}},{"$f":"INDEX(PlanejamentoDeMarketing[],MATCH(INDEX(VariaçõesDeMarketing[],ROW()-ROW(VariaçõesDeMarketing[[#Headers],[Set]]),1),INDEX(PlanejamentoDeMarketing[],,1),0),MATCH(VariaçõesDeMarketing[[#Headers],[Set]],PlanejamentoDeMarketing[#Headers],0))-INDEX(RealMarketing[],MATCH(INDEX(VariaçõesDeMarketing[],ROW()-ROW(VariaçõesDeMarketing[[#Headers],[Set]]),1),INDEX(PlanejamentoDeMarketing[],,1),0),MATCH(VariaçõesDeMarketing[[#Headers],[Set]],RealMarketing[#Headers],0))","v":{"v":200,"d":"R$ 200.00"}},{"$f":"INDEX(PlanejamentoDeMarketing[],MATCH(INDEX(VariaçõesDeMarketing[],ROW()-ROW(VariaçõesDeMarketing[[#Headers],[Out]]),1),INDEX(PlanejamentoDeMarketing[],,1),0),MATCH(VariaçõesDeMarketing[[#Headers],[Out]],PlanejamentoDeMarketing[#Headers],0))-INDEX(RealMarketing[],MATCH(INDEX(VariaçõesDeMarketing[],ROW()-ROW(VariaçõesDeMarketing[[#Headers],[Out]]),1),INDEX(PlanejamentoDeMarketing[],,1),0),MATCH(VariaçõesDeMarketing[[#Headers],[Out]],RealMarketing[#Headers],0))","v":{"v":200,"d":"R$ 200.00"}},{"$f":"INDEX(PlanejamentoDeMarketing[],MATCH(INDEX(VariaçõesDeMarketing[],ROW()-ROW(VariaçõesDeMarketing[[#Headers],[Nov]]),1),INDEX(PlanejamentoDeMarketing[],,1),0),MATCH(VariaçõesDeMarketing[[#Headers],[Nov]],PlanejamentoDeMarketing[#Headers],0))-INDEX(RealMarketing[],MATCH(INDEX(VariaçõesDeMarketing[],ROW()-ROW(VariaçõesDeMarketing[[#Headers],[Nov]]),1),INDEX(PlanejamentoDeMarketing[],,1),0),MATCH(VariaçõesDeMarketing[[#Headers],[Nov]],RealMarketing[#Headers],0))","v":{"v":200,"d":"R$ 200.00"}},{"$f":"INDEX(PlanejamentoDeMarketing[],MATCH(INDEX(VariaçõesDeMarketing[],ROW()-ROW(VariaçõesDeMarketing[[#Headers],[Dez]]),1),INDEX(PlanejamentoDeMarketing[],,1),0),MATCH(VariaçõesDeMarketing[[#Headers],[Dez]],PlanejamentoDeMarketing[#Headers],0))-INDEX(RealMarketing[],MATCH(INDEX(VariaçõesDeMarketing[],ROW()-ROW(VariaçõesDeMarketing[[#Headers],[Dez]]),1),INDEX(PlanejamentoDeMarketing[],,1),0),MATCH(VariaçõesDeMarketing[[#Headers],[Dez]],RealMarketing[#Headers],0))","v":{"v":200,"d":"R$ 200.00"}},{"$f":"SUM(VariaçõesDeMarketing[[#This Row],[Jan]:[Dez]])","v":{"v":820,"d":"R$ 820.00"}}]
[null,"Eventos de marketing",{"$f":"INDEX(PlanejamentoDeMarketing[],MATCH(INDEX(VariaçõesDeMarketing[],ROW()-ROW(VariaçõesDeMarketing[[#Headers],[Jan]]),1),INDEX(PlanejamentoDeMarketing[],,1),0),MATCH(VariaçõesDeMarketing[[#Headers],[Jan]],PlanejamentoDeMarketing[#Headers],0))-INDEX(RealMarketing[],MATCH(INDEX(VariaçõesDeMarketing[],ROW()-ROW(VariaçõesDeMarketing[[#Headers],[Jan]]),1),INDEX(PlanejamentoDeMarketing[],,1),0),MATCH(VariaçõesDeMarketing[[#Headers],[Jan]],RealMarketing[#Headers],0))","v":{"v":200,"d":"R$ 200.00"}},{"$f":"INDEX(PlanejamentoDeMarketing[],MATCH(INDEX(VariaçõesDeMarketing[],ROW()-ROW(VariaçõesDeMarketing[[#Headers],[Fev]]),1),INDEX(PlanejamentoDeMarketing[],,1),0),MATCH(VariaçõesDeMarketing[[#Headers],[Fev]],PlanejamentoDeMarketing[#Headers],0))-INDEX(RealMarketing[],MATCH(INDEX(VariaçõesDeMarketing[],ROW()-ROW(VariaçõesDeMarketing[[#Headers],[Fev]]),1),INDEX(PlanejamentoDeMarketing[],,1),0),MATCH(VariaçõesDeMarketing[[#Headers],[Fev]],RealMarketing[#Headers],0))","v":{"v":-200,"d":"-R$ 200.00"}},{"$f":"INDEX(PlanejamentoDeMarketing[],MATCH(INDEX(VariaçõesDeMarketing[],ROW()-ROW(VariaçõesDeMarketing[[#Headers],[Mar]]),1),INDEX(PlanejamentoDeMarketing[],,1),0),MATCH(VariaçõesDeMarketing[[#Headers],[Mar]],PlanejamentoDeMarketing[#Headers],0))-INDEX(RealMarketing[],MATCH(INDEX(VariaçõesDeMarketing[],ROW()-ROW(VariaçõesDeMarketing[[#Headers],[Mar]]),1),INDEX(PlanejamentoDeMarketing[],,1),0),MATCH(VariaçõesDeMarketing[[#Headers],[Mar]],RealMarketing[#Headers],0))","v":{"v":-200,"d":"-R$ 200.00"}},{"$f":"INDEX(PlanejamentoDeMarketing[],MATCH(INDEX(VariaçõesDeMarketing[],ROW()-ROW(VariaçõesDeMarketing[[#Headers],[Abr]]),1),INDEX(PlanejamentoDeMarketing[],,1),0),MATCH(VariaçõesDeMarketing[[#Headers],[Abr]],PlanejamentoDeMarketing[#Headers],0))-INDEX(RealMarketing[],MATCH(INDEX(VariaçõesDeMarketing[],ROW()-ROW(VariaçõesDeMarketing[[#Headers],[Abr]]),1),INDEX(PlanejamentoDeMarketing[],,1),0),MATCH(VariaçõesDeMarketing[[#Headers],[Abr]],RealMarketing[#Headers],0))","v":{"v":300,"d":"R$ 300.00"}},{"$f":"INDEX(PlanejamentoDeMarketing[],MATCH(INDEX(VariaçõesDeMarketing[],ROW()-ROW(VariaçõesDeMarketing[[#Headers],[Mai]]),1),INDEX(PlanejamentoDeMarketing[],,1),0),MATCH(VariaçõesDeMarketing[[#Headers],[Mai]],PlanejamentoDeMarketing[#Headers],0))-INDEX(RealMarketing[],MATCH(INDEX(VariaçõesDeMarketing[],ROW()-ROW(VariaçõesDeMarketing[[#Headers],[Mai]]),1),INDEX(PlanejamentoDeMarketing[],,1),0),MATCH(VariaçõesDeMarketing[[#Headers],[Mai]],RealMarketing[#Headers],0))","v":{"v":500,"d":"R$ 500.00"}},{"$f":"INDEX(PlanejamentoDeMarketing[],MATCH(INDEX(VariaçõesDeMarketing[],ROW()-ROW(VariaçõesDeMarketing[[#Headers],[Jun]]),1),INDEX(PlanejamentoDeMarketing[],,1),0),MATCH(VariaçõesDeMarketing[[#Headers],[Jun]],PlanejamentoDeMarketing[#Headers],0))-INDEX(RealMarketing[],MATCH(INDEX(VariaçõesDeMarketing[],ROW()-ROW(VariaçõesDeMarketing[[#Headers],[Jun]]),1),INDEX(PlanejamentoDeMarketing[],,1),0),MATCH(VariaçõesDeMarketing[[#Headers],[Jun]],RealMarketing[#Headers],0))","v":{"v":-300,"d":"-R$ 300.00"}},{"$f":"INDEX(PlanejamentoDeMarketing[],MATCH(INDEX(VariaçõesDeMarketing[],ROW()-ROW(VariaçõesDeMarketing[[#Headers],[Jul]]),1),INDEX(PlanejamentoDeMarketing[],,1),0),MATCH(VariaçõesDeMarketing[[#Headers],[Jul]],PlanejamentoDeMarketing[#Headers],0))-INDEX(RealMarketing[],MATCH(INDEX(VariaçõesDeMarketing[],ROW()-ROW(VariaçõesDeMarketing[[#Headers],[Jul]]),1),INDEX(PlanejamentoDeMarketing[],,1),0),MATCH(VariaçõesDeMarketing[[#Headers],[Jul]],RealMarketing[#Headers],0))","v":{"v":2000,"d":"R$ 2,000.00"}},{"$f":"INDEX(PlanejamentoDeMarketing[],MATCH(INDEX(VariaçõesDeMarketing[],ROW()-ROW(VariaçõesDeMarketing[[#Headers],[Ago]]),1),INDEX(PlanejamentoDeMarketing[],,1),0),MATCH(VariaçõesDeMarketing[[#Headers],[Ago]],PlanejamentoDeMarketing[#Headers],0))-INDEX(RealMarketing[],MATCH(INDEX(VariaçõesDeMarketing[],ROW()-ROW(VariaçõesDeMarketing[[#Headers],[Ago]]),1),INDEX(PlanejamentoDeMarketing[],,1),0),MATCH(VariaçõesDeMarketing[[#Headers],[Ago]],RealMarketing[#Headers],0))","v":{"v":5000,"d":"R$ 5,000.00"}},{"$f":"INDEX(PlanejamentoDeMarketing[],MATCH(INDEX(VariaçõesDeMarketing[],ROW()-ROW(VariaçõesDeMarketing[[#Headers],[Set]]),1),INDEX(PlanejamentoDeMarketing[],,1),0),MATCH(VariaçõesDeMarketing[[#Headers],[Set]],PlanejamentoDeMarketing[#Headers],0))-INDEX(RealMarketing[],MATCH(INDEX(VariaçõesDeMarketing[],ROW()-ROW(VariaçõesDeMarketing[[#Headers],[Set]]),1),INDEX(PlanejamentoDeMarketing[],,1),0),MATCH(VariaçõesDeMarketing[[#Headers],[Set]],RealMarketing[#Headers],0))","v":{"v":2000,"d":"R$ 2,000.00"}},{"$f":"INDEX(PlanejamentoDeMarketing[],MATCH(INDEX(VariaçõesDeMarketing[],ROW()-ROW(VariaçõesDeMarketing[[#Headers],[Out]]),1),INDEX(PlanejamentoDeMarketing[],,1),0),MATCH(VariaçõesDeMarketing[[#Headers],[Out]],PlanejamentoDeMarketing[#Headers],0))-INDEX(RealMarketing[],MATCH(INDEX(VariaçõesDeMarketing[],ROW()-ROW(VariaçõesDeMarketing[[#Headers],[Out]]),1),INDEX(PlanejamentoDeMarketing[],,1),0),MATCH(VariaçõesDeMarketing[[#Headers],[Out]],RealMarketing[#Headers],0))","v":{"v":2000,"d":"R$ 2,000.00"}},{"$f":"INDEX(PlanejamentoDeMarketing[],MATCH(INDEX(VariaçõesDeMarketing[],ROW()-ROW(VariaçõesDeMarketing[[#Headers],[Nov]]),1),INDEX(PlanejamentoDeMarketing[],,1),0),MATCH(VariaçõesDeMarketing[[#Headers],[Nov]],PlanejamentoDeMarketing[#Headers],0))-INDEX(RealMarketing[],MATCH(INDEX(VariaçõesDeMarketing[],ROW()-ROW(VariaçõesDeMarketing[[#Headers],[Nov]]),1),INDEX(PlanejamentoDeMarketing[],,1),0),MATCH(VariaçõesDeMarketing[[#Headers],[Nov]],RealMarketing[#Headers],0))","v":{"v":2000,"d":"R$ 2,000.00"}},{"$f":"INDEX(PlanejamentoDeMarketing[],MATCH(INDEX(VariaçõesDeMarketing[],ROW()-ROW(VariaçõesDeMarketing[[#Headers],[Dez]]),1),INDEX(PlanejamentoDeMarketing[],,1),0),MATCH(VariaçõesDeMarketing[[#Headers],[Dez]],PlanejamentoDeMarketing[#Headers],0))-INDEX(RealMarketing[],MATCH(INDEX(VariaçõesDeMarketing[],ROW()-ROW(VariaçõesDeMarketing[[#Headers],[Dez]]),1),INDEX(PlanejamentoDeMarketing[],,1),0),MATCH(VariaçõesDeMarketing[[#Headers],[Dez]],RealMarketing[#Headers],0))","v":{"v":5000,"d":"R$ 5,000.00"}},{"$f":"SUM(VariaçõesDeMarketing[[#This Row],[Jan]:[Dez]])","v":{"v":18300,"d":"R$ 18,300.00"}}]
[null,"Despesas diversas",{"$f":"INDEX(PlanejamentoDeMarketing[],MATCH(INDEX(VariaçõesDeMarketing[],ROW()-ROW(VariaçõesDeMarketing[[#Headers],[Jan]]),1),INDEX(PlanejamentoDeMarketing[],,1),0),MATCH(VariaçõesDeMarketing[[#Headers],[Jan]],PlanejamentoDeMarketing[#Headers],0))-INDEX(RealMarketing[],MATCH(INDEX(VariaçõesDeMarketing[],ROW()-ROW(VariaçõesDeMarketing[[#Headers],[Jan]]),1),INDEX(PlanejamentoDeMarketing[],,1),0),MATCH(VariaçõesDeMarketing[[#Headers],[Jan]],RealMarketing[#Headers],0))","v":{"v":55,"d":"R$ 55.00"}},{"$f":"INDEX(PlanejamentoDeMarketing[],MATCH(INDEX(VariaçõesDeMarketing[],ROW()-ROW(VariaçõesDeMarketing[[#Headers],[Fev]]),1),INDEX(PlanejamentoDeMarketing[],,1),0),MATCH(VariaçõesDeMarketing[[#Headers],[Fev]],PlanejamentoDeMarketing[#Headers],0))-INDEX(RealMarketing[],MATCH(INDEX(VariaçõesDeMarketing[],ROW()-ROW(VariaçõesDeMarketing[[#Headers],[Fev]]),1),INDEX(PlanejamentoDeMarketing[],,1),0),MATCH(VariaçõesDeMarketing[[#Headers],[Fev]],RealMarketing[#Headers],0))","v":{"v":44,"d":"R$ 44.00"}},{"$f":"INDEX(PlanejamentoDeMarketing[],MATCH(INDEX(VariaçõesDeMarketing[],ROW()-ROW(VariaçõesDeMarketing[[#Headers],[Mar]]),1),INDEX(PlanejamentoDeMarketing[],,1),0),MATCH(VariaçõesDeMarketing[[#Headers],[Mar]],PlanejamentoDeMarketing[#Headers],0))-INDEX(RealMarketing[],MATCH(INDEX(VariaçõesDeMarketing[],ROW()-ROW(VariaçõesDeMarketing[[#Headers],[Mar]]),1),INDEX(PlanejamentoDeMarketing[],,1),0),MATCH(VariaçõesDeMarketing[[#Headers],[Mar]],RealMarketing[#Headers],0))","v":{"v":77,"d":"R$ 77.00"}},{"$f":"INDEX(PlanejamentoDeMarketing[],MATCH(INDEX(VariaçõesDeMarketing[],ROW()-ROW(VariaçõesDeMarketing[[#Headers],[Abr]]),1),INDEX(PlanejamentoDeMarketing[],,1),0),MATCH(VariaçõesDeMarketing[[#Headers],[Abr]],PlanejamentoDeMarketing[#Headers],0))-INDEX(RealMarketing[],MATCH(INDEX(VariaçõesDeMarketing[],ROW()-ROW(VariaçõesDeMarketing[[#Headers],[Abr]]),1),INDEX(PlanejamentoDeMarketing[],,1),0),MATCH(VariaçõesDeMarketing[[#Headers],[Abr]],RealMarketing[#Headers],0))","v":{"v":-23,"d":"-R$ 23.00"}},{"$f":"INDEX(PlanejamentoDeMarketing[],MATCH(INDEX(VariaçõesDeMarketing[],ROW()-ROW(VariaçõesDeMarketing[[#Headers],[Mai]]),1),INDEX(PlanejamentoDeMarketing[],,1),0),MATCH(VariaçõesDeMarketing[[#Headers],[Mai]],PlanejamentoDeMarketing[#Headers],0))-INDEX(RealMarketing[],MATCH(INDEX(VariaçõesDeMarketing[],ROW()-ROW(VariaçõesDeMarketing[[#Headers],[Mai]]),1),INDEX(PlanejamentoDeMarketing[],,1),0),MATCH(VariaçõesDeMarketing[[#Headers],[Mai]],RealMarketing[#Headers],0))","v":{"v":13,"d":"R$ 13.00"}},{"$f":"INDEX(PlanejamentoDeMarketing[],MATCH(INDEX(VariaçõesDeMarketing[],ROW()-ROW(VariaçõesDeMarketing[[#Headers],[Jun]]),1),INDEX(PlanejamentoDeMarketing[],,1),0),MATCH(VariaçõesDeMarketing[[#Headers],[Jun]],PlanejamentoDeMarketing[#Headers],0))-INDEX(RealMarketing[],MATCH(INDEX(VariaçõesDeMarketing[],ROW()-ROW(VariaçõesDeMarketing[[#Headers],[Jun]]),1),INDEX(PlanejamentoDeMarketing[],,1),0),MATCH(VariaçõesDeMarketing[[#Headers],[Jun]],RealMarketing[#Headers],0))","v":{"v":-45,"d":"-R$ 45.00"}},{"$f":"INDEX(PlanejamentoDeMarketing[],MATCH(INDEX(VariaçõesDeMarketing[],ROW()-ROW(VariaçõesDeMarketing[[#Headers],[Jul]]),1),INDEX(PlanejamentoDeMarketing[],,1),0),MATCH(VariaçõesDeMarketing[[#Headers],[Jul]],PlanejamentoDeMarketing[#Headers],0))-INDEX(RealMarketing[],MATCH(INDEX(VariaçõesDeMarketing[],ROW()-ROW(VariaçõesDeMarketing[[#Headers],[Jul]]),1),INDEX(PlanejamentoDeMarketing[],,1),0),MATCH(VariaçõesDeMarketing[[#Headers],[Jul]],RealMarketing[#Headers],0))","v":{"v":200,"d":"R$ 200.00"}},{"$f":"INDEX(PlanejamentoDeMarketing[],MATCH(INDEX(VariaçõesDeMarketing[],ROW()-ROW(VariaçõesDeMarketing[[#Headers],[Ago]]),1),INDEX(PlanejamentoDeMarketing[],,1),0),MATCH(VariaçõesDeMarketing[[#Headers],[Ago]],PlanejamentoDeMarketing[#Headers],0))-INDEX(RealMarketing[],MATCH(INDEX(VariaçõesDeMarketing[],ROW()-ROW(VariaçõesDeMarketing[[#Headers],[Ago]]),1),INDEX(PlanejamentoDeMarketing[],,1),0),MATCH(VariaçõesDeMarketing[[#Headers],[Ago]],RealMarketing[#Headers],0))","v":{"v":200,"d":"R$ 200.00"}},{"$f":"INDEX(PlanejamentoDeMarketing[],MATCH(INDEX(VariaçõesDeMarketing[],ROW()-ROW(VariaçõesDeMarketing[[#Headers],[Set]]),1),INDEX(PlanejamentoDeMarketing[],,1),0),MATCH(VariaçõesDeMarketing[[#Headers],[Set]],PlanejamentoDeMarketing[#Headers],0))-INDEX(RealMarketing[],MATCH(INDEX(VariaçõesDeMarketing[],ROW()-ROW(VariaçõesDeMarketing[[#Headers],[Set]]),1),INDEX(PlanejamentoDeMarketing[],,1),0),MATCH(VariaçõesDeMarketing[[#Headers],[Set]],RealMarketing[#Headers],0))","v":{"v":200,"d":"R$ 200.00"}},{"$f":"INDEX(PlanejamentoDeMarketing[],MATCH(INDEX(VariaçõesDeMarketing[],ROW()-ROW(VariaçõesDeMarketing[[#Headers],[Out]]),1),INDEX(PlanejamentoDeMarketing[],,1),0),MATCH(VariaçõesDeMarketing[[#Headers],[Out]],PlanejamentoDeMarketing[#Headers],0))-INDEX(RealMarketing[],MATCH(INDEX(VariaçõesDeMarketing[],ROW()-ROW(VariaçõesDeMarketing[[#Headers],[Out]]),1),INDEX(PlanejamentoDeMarketing[],,1),0),MATCH(VariaçõesDeMarketing[[#Headers],[Out]],RealMarketing[#Headers],0))","v":{"v":200,"d":"R$ 200.00"}},{"$f":"INDEX(PlanejamentoDeMarketing[],MATCH(INDEX(VariaçõesDeMarketing[],ROW()-ROW(VariaçõesDeMarketing[[#Headers],[Nov]]),1),INDEX(PlanejamentoDeMarketing[],,1),0),MATCH(VariaçõesDeMarketing[[#Headers],[Nov]],PlanejamentoDeMarketing[#Headers],0))-INDEX(RealMarketing[],MATCH(INDEX(VariaçõesDeMarketing[],ROW()-ROW(VariaçõesDeMarketing[[#Headers],[Nov]]),1),INDEX(PlanejamentoDeMarketing[],,1),0),MATCH(VariaçõesDeMarketing[[#Headers],[Nov]],RealMarketing[#Headers],0))","v":{"v":200,"d":"R$ 200.00"}},{"$f":"INDEX(PlanejamentoDeMarketing[],MATCH(INDEX(VariaçõesDeMarketing[],ROW()-ROW(VariaçõesDeMarketing[[#Headers],[Dez]]),1),INDEX(PlanejamentoDeMarketing[],,1),0),MATCH(VariaçõesDeMarketing[[#Headers],[Dez]],PlanejamentoDeMarketing[#Headers],0))-INDEX(RealMarketing[],MATCH(INDEX(VariaçõesDeMarketing[],ROW()-ROW(VariaçõesDeMarketing[[#Headers],[Dez]]),1),INDEX(PlanejamentoDeMarketing[],,1),0),MATCH(VariaçõesDeMarketing[[#Headers],[Dez]],RealMarketing[#Headers],0))","v":{"v":200,"d":"R$ 200.00"}},{"$f":"SUM(VariaçõesDeMarketing[[#This Row],[Jan]:[Dez]])","v":{"v":1321,"d":"R$ 1,321.00"}}]
[null,"Subtotal",{"$f":"SUBTOTAL(109,VariaçõesDeMarketing[Jan])","v":{"v":555,"d":"R$ 555.00"}},{"$f":"SUBTOTAL(109,VariaçõesDeMarketing[Fev])","v":{"v":-456,"d":"-R$ 456.00"}},{"$f":"SUBTOTAL(109,VariaçõesDeMarketing[Mar])","v":{"v":-23,"d":"-R$ 23.00"}},{"$f":"SUBTOTAL(109,VariaçõesDeMarketing[Abr])","v":{"v":-123,"d":"-R$ 123.00"}},{"$f":"SUBTOTAL(109,VariaçõesDeMarketing[Mai])","v":{"v":113,"d":"R$ 113.00"}},{"$f":"SUBTOTAL(109,VariaçõesDeMarketing[Jun])","v":{"v":-825,"d":"-R$ 825.00"}},{"$f":"SUBTOTAL(109,VariaçõesDeMarketing[Jul])","v":{"v":8100,"d":"R$ 8,100.00"}},{"$f":"SUBTOTAL(109,VariaçõesDeMarketing[Ago])","v":{"v":6100,"d":"R$ 6,100.00"}},{"$f":"SUBTOTAL(109,VariaçõesDeMarketing[Set])","v":{"v":3100,"d":"R$ 3,100.00"}},{"$f":"SUBTOTAL(109,VariaçõesDeMarketing[Out])","v":{"v":8100,"d":"R$ 8,100.00"}},{"$f":"SUBTOTAL(109,VariaçõesDeMarketing[Nov])","v":{"v":3100,"d":"R$ 3,100.00"}},{"$f":"SUBTOTAL(109,VariaçõesDeMarketing[Dez])","v":{"v":6900,"d":"R$ 6,900.00"}},{"$f":"SUBTOTAL(109,VariaçõesDeMarketing[ANO])","v":{"v":34641,"d":"R$ 34,641.00"}}]
[]
["A variação nos Custos com viagens ou treinamentos é calculada automaticamente na tabela Variações de viagens e treinamentos, que começa na célula à direita. A próxima instrução está na célula A35.","Viagem/Treinamento","Jan","Fev","Mar","Abr","Mai","Jun","Jul","Ago","Set","Out","Nov","Dez","ANO"]
[null,"Sessões de treinamento",{"$f":"INDEX(PlanejamentoViagemETreinamento[],MATCH(INDEX(VariaçõesDeViagensETreinamentos[],ROW()-ROW(VariaçõesDeViagensETreinamentos[[#Headers],[Jan]]),1),INDEX(PlanejamentoViagemETreinamento[],,1),0),MATCH(VariaçõesDeViagensETreinamentos[[#Headers],[Jan]],PlanejamentoViagemETreinamento[#Headers],0))-INDEX(RealViagemETreinamento[],MATCH(INDEX(VariaçõesDeViagensETreinamentos[],ROW()-ROW(VariaçõesDeViagensETreinamentos[[#Headers],[Jan]]),1),INDEX(PlanejamentoViagemETreinamento[],,1),0),MATCH(VariaçõesDeViagensETreinamentos[[#Headers],[Jan]],RealViagemETreinamento[#Headers],0))","v":{"v":400,"d":"R$ 400.00"}},{"$f":"INDEX(PlanejamentoViagemETreinamento[],MATCH(INDEX(VariaçõesDeViagensETreinamentos[],ROW()-ROW(VariaçõesDeViagensETreinamentos[[#Headers],[Fev]]),1),INDEX(PlanejamentoViagemETreinamento[],,1),0),MATCH(VariaçõesDeViagensETreinamentos[[#Headers],[Fev]],PlanejamentoViagemETreinamento[#Headers],0))-INDEX(RealViagemETreinamento[],MATCH(INDEX(VariaçõesDeViagensETreinamentos[],ROW()-ROW(VariaçõesDeViagensETreinamentos[[#Headers],[Fev]]),1),INDEX(PlanejamentoViagemETreinamento[],,1),0),MATCH(VariaçõesDeViagensETreinamentos[[#Headers],[Fev]],RealViagemETreinamento[#Headers],0))","v":{"v":-400,"d":"-R$ 400.00"}},{"$f":"INDEX(PlanejamentoViagemETreinamento[],MATCH(INDEX(VariaçõesDeViagensETreinamentos[],ROW()-ROW(VariaçõesDeViagensETreinamentos[[#Headers],[Mar]]),1),INDEX(PlanejamentoViagemETreinamento[],,1),0),MATCH(VariaçõesDeViagensETreinamentos[[#Headers],[Mar]],PlanejamentoViagemETreinamento[#Headers],0))-INDEX(RealViagemETreinamento[],MATCH(INDEX(VariaçõesDeViagensETreinamentos[],ROW()-ROW(VariaçõesDeViagensETreinamentos[[#Headers],[Mar]]),1),INDEX(PlanejamentoViagemETreinamento[],,1),0),MATCH(VariaçõesDeViagensETreinamentos[[#Headers],[Mar]],RealViagemETreinamento[#Headers],0))","v":{"v":600,"d":"R$ 600.00"}},{"$f":"INDEX(PlanejamentoViagemETreinamento[],MATCH(INDEX(VariaçõesDeViagensETreinamentos[],ROW()-ROW(VariaçõesDeViagensETreinamentos[[#Headers],[Abr]]),1),INDEX(PlanejamentoViagemETreinamento[],,1),0),MATCH(VariaçõesDeViagensETreinamentos[[#Headers],[Abr]],PlanejamentoViagemETreinamento[#Headers],0))-INDEX(RealViagemETreinamento[],MATCH(INDEX(VariaçõesDeViagensETreinamentos[],ROW()-ROW(VariaçõesDeViagensETreinamentos[[#Headers],[Abr]]),1),INDEX(PlanejamentoViagemETreinamento[],,1),0),MATCH(VariaçõesDeViagensETreinamentos[[#Headers],[Abr]],RealViagemETreinamento[#Headers],0))","v":{"v":400,"d":"R$ 400.00"}},{"$f":"INDEX(PlanejamentoViagemETreinamento[],MATCH(INDEX(VariaçõesDeViagensETreinamentos[],ROW()-ROW(VariaçõesDeViagensETreinamentos[[#Headers],[Mai]]),1),INDEX(PlanejamentoViagemETreinamento[],,1),0),MATCH(VariaçõesDeViagensETreinamentos[[#Headers],[Mai]],PlanejamentoViagemETreinamento[#Headers],0))-INDEX(RealViagemETreinamento[],MATCH(INDEX(VariaçõesDeViagensETreinamentos[],ROW()-ROW(VariaçõesDeViagensETreinamentos[[#Headers],[Mai]]),1),INDEX(PlanejamentoViagemETreinamento[],,1),0),MATCH(VariaçõesDeViagensETreinamentos[[#Headers],[Mai]],RealViagemETreinamento[#Headers],0))","v":{"v":800,"d":"R$ 800.00"}},{"$f":"INDEX(PlanejamentoViagemETreinamento[],MATCH(INDEX(VariaçõesDeViagensETreinamentos[],ROW()-ROW(VariaçõesDeViagensETreinamentos[[#Headers],[Jun]]),1),INDEX(PlanejamentoViagemETreinamento[],,1),0),MATCH(VariaçõesDeViagensETreinamentos[[#Headers],[Jun]],PlanejamentoViagemETreinamento[#Headers],0))-INDEX(RealViagemETreinamento[],MATCH(INDEX(VariaçõesDeViagensETreinamentos[],ROW()-ROW(VariaçõesDeViagensETreinamentos[[#Headers],[Jun]]),1),INDEX(PlanejamentoViagemETreinamento[],,1),0),MATCH(VariaçõesDeViagensETreinamentos[[#Headers],[Jun]],RealViagemETreinamento[#Headers],0))","v":{"v":-800,"d":"-R$ 800.00"}},{"$f":"INDEX(PlanejamentoViagemETreinamento[],MATCH(INDEX(VariaçõesDeViagensETreinamentos[],ROW()-ROW(VariaçõesDeViagensETreinamentos[[#Headers],[Jul]]),1),INDEX(PlanejamentoViagemETreinamento[],,1),0),MATCH(VariaçõesDeViagensETreinamentos[[#Headers],[Jul]],PlanejamentoViagemETreinamento[#Headers],0))-INDEX(RealViagemETreinamento[],MATCH(INDEX(VariaçõesDeViagensETreinamentos[],ROW()-ROW(VariaçõesDeViagensETreinamentos[[#Headers],[Jul]]),1),INDEX(PlanejamentoViagemETreinamento[],,1),0),MATCH(VariaçõesDeViagensETreinamentos[[#Headers],[Jul]],RealViagemETreinamento[#Headers],0))","v":{"v":2000,"d":"R$ 2,000.00"}},{"$f":"INDEX(PlanejamentoViagemETreinamento[],MATCH(INDEX(VariaçõesDeViagensETreinamentos[],ROW()-ROW(VariaçõesDeViagensETreinamentos[[#Headers],[Ago]]),1),INDEX(PlanejamentoViagemETreinamento[],,1),0),MATCH(VariaçõesDeViagensETreinamentos[[#Headers],[Ago]],PlanejamentoViagemETreinamento[#Headers],0))-INDEX(RealViagemETreinamento[],MATCH(INDEX(VariaçõesDeViagensETreinamentos[],ROW()-ROW(VariaçõesDeViagensETreinamentos[[#Headers],[Ago]]),1),INDEX(PlanejamentoViagemETreinamento[],,1),0),MATCH(VariaçõesDeViagensETreinamentos[[#Headers],[Ago]],RealViagemETreinamento[#Headers],0))","v":{"v":2000,"d":"R$ 2,000.00"}},{"$f":"INDEX(PlanejamentoViagemETreinamento[],MATCH(INDEX(VariaçõesDeViagensETreinamentos[],ROW()-ROW(VariaçõesDeViagensETreinamentos[[#Headers],[Set]]),1),INDEX(PlanejamentoViagemETreinamento[],,1),0),MATCH(VariaçõesDeViagensETreinamentos[[#Headers],[Set]],PlanejamentoViagemETreinamento[#Headers],0))-INDEX(RealViagemETreinamento[],MATCH(INDEX(VariaçõesDeViagensETreinamentos[],ROW()-ROW(VariaçõesDeViagensETreinamentos[[#Headers],[Set]]),1),INDEX(PlanejamentoViagemETreinamento[],,1),0),MATCH(VariaçõesDeViagensETreinamentos[[#Headers],[Set]],RealViagemETreinamento[#Headers],0))","v":{"v":2000,"d":"R$ 2,000.00"}},{"$f":"INDEX(PlanejamentoViagemETreinamento[],MATCH(INDEX(VariaçõesDeViagensETreinamentos[],ROW()-ROW(VariaçõesDeViagensETreinamentos[[#Headers],[Out]]),1),INDEX(PlanejamentoViagemETreinamento[],,1),0),MATCH(VariaçõesDeViagensETreinamentos[[#Headers],[Out]],PlanejamentoViagemETreinamento[#Headers],0))-INDEX(RealViagemETreinamento[],MATCH(INDEX(VariaçõesDeViagensETreinamentos[],ROW()-ROW(VariaçõesDeViagensETreinamentos[[#Headers],[Out]]),1),INDEX(PlanejamentoViagemETreinamento[],,1),0),MATCH(VariaçõesDeViagensETreinamentos[[#Headers],[Out]],RealViagemETreinamento[#Headers],0))","v":{"v":2000,"d":"R$ 2,000.00"}},{"$f":"INDEX(PlanejamentoViagemETreinamento[],MATCH(INDEX(VariaçõesDeViagensETreinamentos[],ROW()-ROW(VariaçõesDeViagensETreinamentos[[#Headers],[Nov]]),1),INDEX(PlanejamentoViagemETreinamento[],,1),0),MATCH(VariaçõesDeViagensETreinamentos[[#Headers],[Nov]],PlanejamentoViagemETreinamento[#Headers],0))-INDEX(RealViagemETreinamento[],MATCH(INDEX(VariaçõesDeViagensETreinamentos[],ROW()-ROW(VariaçõesDeViagensETreinamentos[[#Headers],[Nov]]),1),INDEX(PlanejamentoViagemETreinamento[],,1),0),MATCH(VariaçõesDeViagensETreinamentos[[#Headers],[Nov]],RealViagemETreinamento[#Headers],0))","v":{"v":2000,"d":"R$ 2,000.00"}},{"$f":"INDEX(PlanejamentoViagemETreinamento[],MATCH(INDEX(VariaçõesDeViagensETreinamentos[],ROW()-ROW(VariaçõesDeViagensETreinamentos[[#Headers],[Dez]]),1),INDEX(PlanejamentoViagemETreinamento[],,1),0),MATCH(VariaçõesDeViagensETreinamentos[[#Headers],[Dez]],PlanejamentoViagemETreinamento[#Headers],0))-INDEX(RealViagemETreinamento[],MATCH(INDEX(VariaçõesDeViagensETreinamentos[],ROW()-ROW(VariaçõesDeViagensETreinamentos[[#Headers],[Dez]]),1),INDEX(PlanejamentoViagemETreinamento[],,1),0),MATCH(VariaçõesDeViagensETreinamentos[[#Headers],[Dez]],RealViagemETreinamento[#Headers],0))","v":{"v":2000,"d":"R$ 2,000.00"}},{"$f":"SUM(VariaçõesDeViagensETreinamentos[[#This Row],[Jan]:[Dez]])","v":{"v":13000,"d":"R$ 13,000.00"}}]
[null,"Custos com viagens para treinamento",{"$f":"INDEX(PlanejamentoViagemETreinamento[],MATCH(INDEX(VariaçõesDeViagensETreinamentos[],ROW()-ROW(VariaçõesDeViagensETreinamentos[[#Headers],[Jan]]),1),INDEX(PlanejamentoViagemETreinamento[],,1),0),MATCH(VariaçõesDeViagensETreinamentos[[#Headers],[Jan]],PlanejamentoViagemETreinamento[#Headers],0))-INDEX(RealViagemETreinamento[],MATCH(INDEX(VariaçõesDeViagensETreinamentos[],ROW()-ROW(VariaçõesDeViagensETreinamentos[[#Headers],[Jan]]),1),INDEX(PlanejamentoViagemETreinamento[],,1),0),MATCH(VariaçõesDeViagensETreinamentos[[#Headers],[Jan]],RealViagemETreinamento[#Headers],0))","v":{"v":800,"d":"R$ 800.00"}},{"$f":"INDEX(PlanejamentoViagemETreinamento[],MATCH(INDEX(VariaçõesDeViagensETreinamentos[],ROW()-ROW(VariaçõesDeViagensETreinamentos[[#Headers],[Fev]]),1),INDEX(PlanejamentoViagemETreinamento[],,1),0),MATCH(VariaçõesDeViagensETreinamentos[[#Headers],[Fev]],PlanejamentoViagemETreinamento[#Headers],0))-INDEX(RealViagemETreinamento[],MATCH(INDEX(VariaçõesDeViagensETreinamentos[],ROW()-ROW(VariaçõesDeViagensETreinamentos[[#Headers],[Fev]]),1),INDEX(PlanejamentoViagemETreinamento[],,1),0),MATCH(VariaçõesDeViagensETreinamentos[[#Headers],[Fev]],RealViagemETreinamento[#Headers],0))","v":{"v":-200,"d":"-R$ 200.00"}},{"$f":"INDEX(PlanejamentoViagemETreinamento[],MATCH(INDEX(VariaçõesDeViagensETreinamentos[],ROW()-ROW(VariaçõesDeViagensETreinamentos[[#Headers],[Mar]]),1),INDEX(PlanejamentoViagemETreinamento[],,1),0),MATCH(VariaçõesDeViagensETreinamentos[[#Headers],[Mar]],PlanejamentoViagemETreinamento[#Headers],0))-INDEX(RealViagemETreinamento[],MATCH(INDEX(VariaçõesDeViagensETreinamentos[],ROW()-ROW(VariaçõesDeViagensETreinamentos[[#Headers],[Mar]]),1),INDEX(PlanejamentoViagemETreinamento[],,1),0),MATCH(VariaçõesDeViagensETreinamentos[[#Headers],[Mar]],RealViagemETreinamento[#Headers],0))","v":{"v":600,"d":"R$ 600.00"}},{"$f":"INDEX(PlanejamentoViagemETreinamento[],MATCH(INDEX(VariaçõesDeViagensETreinamentos[],ROW()-ROW(VariaçõesDeViagensETreinamentos[[#Headers],[Abr]]),1),INDEX(PlanejamentoViagemETreinamento[],,1),0),MATCH(VariaçõesDeViagensETreinamentos[[#Headers],[Abr]],PlanejamentoViagemETreinamento[#Headers],0))-INDEX(RealViagemETreinamento[],MATCH(INDEX(VariaçõesDeViagensETreinamentos[],ROW()-ROW(VariaçõesDeViagensETreinamentos[[#Headers],[Abr]]),1),INDEX(PlanejamentoViagemETreinamento[],,1),0),MATCH(VariaçõesDeViagensETreinamentos[[#Headers],[Abr]],RealViagemETreinamento[#Headers],0))","v":{"v":800,"d":"R$ 800.00"}},{"$f":"INDEX(PlanejamentoViagemETreinamento[],MATCH(INDEX(VariaçõesDeViagensETreinamentos[],ROW()-ROW(VariaçõesDeViagensETreinamentos[[#Headers],[Mai]]),1),INDEX(PlanejamentoViagemETreinamento[],,1),0),MATCH(VariaçõesDeViagensETreinamentos[[#Headers],[Mai]],PlanejamentoViagemETreinamento[#Headers],0))-INDEX(RealViagemETreinamento[],MATCH(INDEX(VariaçõesDeViagensETreinamentos[],ROW()-ROW(VariaçõesDeViagensETreinamentos[[#Headers],[Mai]]),1),INDEX(PlanejamentoViagemETreinamento[],,1),0),MATCH(VariaçõesDeViagensETreinamentos[[#Headers],[Mai]],RealViagemETreinamento[#Headers],0))","v":{"v":1200,"d":"R$ 1,200.00"}},{"$f":"INDEX(PlanejamentoViagemETreinamento[],MATCH(INDEX(VariaçõesDeViagensETreinamentos[],ROW()-ROW(VariaçõesDeViagensETreinamentos[[#Headers],[Jun]]),1),INDEX(PlanejamentoViagemETreinamento[],,1),0),MATCH(VariaçõesDeViagensETreinamentos[[#Headers],[Jun]],PlanejamentoViagemETreinamento[#Headers],0))-INDEX(RealViagemETreinamento[],MATCH(INDEX(VariaçõesDeViagensETreinamentos[],ROW()-ROW(VariaçõesDeViagensETreinamentos[[#Headers],[Jun]]),1),INDEX(PlanejamentoViagemETreinamento[],,1),0),MATCH(VariaçõesDeViagensETreinamentos[[#Headers],[Jun]],RealViagemETreinamento[#Headers],0))","v":{"v":-1500,"d":"-R$ 1,500.00"}},{"$f":"INDEX(PlanejamentoViagemETreinamento[],MATCH(INDEX(VariaçõesDeViagensETreinamentos[],ROW()-ROW(VariaçõesDeViagensETreinamentos[[#Headers],[Jul]]),1),INDEX(PlanejamentoViagemETreinamento[],,1),0),MATCH(VariaçõesDeViagensETreinamentos[[#Headers],[Jul]],PlanejamentoViagemETreinamento[#Headers],0))-INDEX(RealViagemETreinamento[],MATCH(INDEX(VariaçõesDeViagensETreinamentos[],ROW()-ROW(VariaçõesDeViagensETreinamentos[[#Headers],[Jul]]),1),INDEX(PlanejamentoViagemETreinamento[],,1),0),MATCH(VariaçõesDeViagensETreinamentos[[#Headers],[Jul]],RealViagemETreinamento[#Headers],0))","v":{"v":2000,"d":"R$ 2,000.00"}},{"$f":"INDEX(PlanejamentoViagemETreinamento[],MATCH(INDEX(VariaçõesDeViagensETreinamentos[],ROW()-ROW(VariaçõesDeViagensETreinamentos[[#Headers],[Ago]]),1),INDEX(PlanejamentoViagemETreinamento[],,1),0),MATCH(VariaçõesDeViagensETreinamentos[[#Headers],[Ago]],PlanejamentoViagemETreinamento[#Headers],0))-INDEX(RealViagemETreinamento[],MATCH(INDEX(VariaçõesDeViagensETreinamentos[],ROW()-ROW(VariaçõesDeViagensETreinamentos[[#Headers],[Ago]]),1),INDEX(PlanejamentoViagemETreinamento[],,1),0),MATCH(VariaçõesDeViagensETreinamentos[[#Headers],[Ago]],RealViagemETreinamento[#Headers],0))","v":{"v":2000,"d":"R$ 2,000.00"}},{"$f":"INDEX(PlanejamentoViagemETreinamento[],MATCH(INDEX(VariaçõesDeViagensETreinamentos[],ROW()-ROW(VariaçõesDeViagensETreinamentos[[#Headers],[Set]]),1),INDEX(PlanejamentoViagemETreinamento[],,1),0),MATCH(VariaçõesDeViagensETreinamentos[[#Headers],[Set]],PlanejamentoViagemETreinamento[#Headers],0))-INDEX(RealViagemETreinamento[],MATCH(INDEX(VariaçõesDeViagensETreinamentos[],ROW()-ROW(VariaçõesDeViagensETreinamentos[[#Headers],[Set]]),1),INDEX(PlanejamentoViagemETreinamento[],,1),0),MATCH(VariaçõesDeViagensETreinamentos[[#Headers],[Set]],RealViagemETreinamento[#Headers],0))","v":{"v":2000,"d":"R$ 2,000.00"}},{"$f":"INDEX(PlanejamentoViagemETreinamento[],MATCH(INDEX(VariaçõesDeViagensETreinamentos[],ROW()-ROW(VariaçõesDeViagensETreinamentos[[#Headers],[Out]]),1),INDEX(PlanejamentoViagemETreinamento[],,1),0),MATCH(VariaçõesDeViagensETreinamentos[[#Headers],[Out]],PlanejamentoViagemETreinamento[#Headers],0))-INDEX(RealViagemETreinamento[],MATCH(INDEX(VariaçõesDeViagensETreinamentos[],ROW()-ROW(VariaçõesDeViagensETreinamentos[[#Headers],[Out]]),1),INDEX(PlanejamentoViagemETreinamento[],,1),0),MATCH(VariaçõesDeViagensETreinamentos[[#Headers],[Out]],RealViagemETreinamento[#Headers],0))","v":{"v":2000,"d":"R$ 2,000.00"}},{"$f":"INDEX(PlanejamentoViagemETreinamento[],MATCH(INDEX(VariaçõesDeViagensETreinamentos[],ROW()-ROW(VariaçõesDeViagensETreinamentos[[#Headers],[Nov]]),1),INDEX(PlanejamentoViagemETreinamento[],,1),0),MATCH(VariaçõesDeViagensETreinamentos[[#Headers],[Nov]],PlanejamentoViagemETreinamento[#Headers],0))-INDEX(RealViagemETreinamento[],MATCH(INDEX(VariaçõesDeViagensETreinamentos[],ROW()-ROW(VariaçõesDeViagensETreinamentos[[#Headers],[Nov]]),1),INDEX(PlanejamentoViagemETreinamento[],,1),0),MATCH(VariaçõesDeViagensETreinamentos[[#Headers],[Nov]],RealViagemETreinamento[#Headers],0))","v":{"v":2000,"d":"R$ 2,000.00"}},{"$f":"INDEX(PlanejamentoViagemETreinamento[],MATCH(INDEX(VariaçõesDeViagensETreinamentos[],ROW()-ROW(VariaçõesDeViagensETreinamentos[[#Headers],[Dez]]),1),INDEX(PlanejamentoViagemETreinamento[],,1),0),MATCH(VariaçõesDeViagensETreinamentos[[#Headers],[Dez]],PlanejamentoViagemETreinamento[#Headers],0))-INDEX(RealViagemETreinamento[],MATCH(INDEX(VariaçõesDeViagensETreinamentos[],ROW()-ROW(VariaçõesDeViagensETreinamentos[[#Headers],[Dez]]),1),INDEX(PlanejamentoViagemETreinamento[],,1),0),MATCH(VariaçõesDeViagensETreinamentos[[#Headers],[Dez]],RealViagemETreinamento[#Headers],0))","v":{"v":2000,"d":"R$ 2,000.00"}},{"$f":"SUM(VariaçõesDeViagensETreinamentos[[#This Row],[Jan]:[Dez]])","v":{"v":13700,"d":"R$ 13,700.00"}}]
[null,"Subtotal",{"$f":"SUBTOTAL(109,VariaçõesDeViagensETreinamentos[Jan])","v":{"v":1200,"d":"R$ 1,200.00"}},{"$f":"SUBTOTAL(109,VariaçõesDeViagensETreinamentos[Fev])","v":{"v":-600,"d":"-R$ 600.00"}},{"$f":"SUBTOTAL(109,VariaçõesDeViagensETreinamentos[Mar])","v":{"v":1200,"d":"R$ 1,200.00"}},{"$f":"SUBTOTAL(109,VariaçõesDeViagensETreinamentos[Abr])","v":{"v":1200,"d":"R$ 1,200.00"}},{"$f":"SUBTOTAL(109,VariaçõesDeViagensETreinamentos[Mai])","v":{"v":2000,"d":"R$ 2,000.00"}},{"$f":"SUBTOTAL(109,VariaçõesDeViagensETreinamentos[Jun])","v":{"v":-2300,"d":"-R$ 2,300.00"}},{"$f":"SUBTOTAL(109,VariaçõesDeViagensETreinamentos[Jul])","v":{"v":4000,"d":"R$ 4,000.00"}},{"$f":"SUBTOTAL(109,VariaçõesDeViagensETreinamentos[Ago])","v":{"v":4000,"d":"R$ 4,000.00"}},{"$f":"SUBTOTAL(109,VariaçõesDeViagensETreinamentos[Set])","v":{"v":4000,"d":"R$ 4,000.00"}},{"$f":"SUBTOTAL(109,VariaçõesDeViagensETreinamentos[Out])","v":{"v":4000,"d":"R$ 4,000.00"}},{"$f":"SUBTOTAL(109,VariaçõesDeViagensETreinamentos[Nov])","v":{"v":4000,"d":"R$ 4,000.00"}},{"$f":"SUBTOTAL(109,VariaçõesDeViagensETreinamentos[Dez])","v":{"v":4000,"d":"R$ 4,000.00"}},{"$f":"SUBTOTAL(109,VariaçõesDeViagensETreinamentos[ANO])","v":{"v":26700,"d":"R$ 26,700.00"}}]
[]
["A Variações de despesas é calculada automaticamente na tabela Variações totais que começa na célula à direita.","TOTAIS","Jan","Fev","Mar","Abr","Mai","Jun","Jul","Ago","Set","Out","Nov","Dez","Ano"]
[null,"Despesas mensais reais",{"$f":"VariaçõesDeViagensETreinamentos[[#Totals],[Jan]]+VariaçõesDeMarketing[[#Totals],[Jan]]+VariaçõesDoEscritório[[#Totals],[Jan]]+VariaçõesDeFuncionários[[#Totals],[Jan]]","v":{"v":1738,"d":"R$ 1,738.00"}},{"$f":"VariaçõesDeViagensETreinamentos[[#Totals],[Fev]]+VariaçõesDeMarketing[[#Totals],[Fev]]+VariaçõesDoEscritório[[#Totals],[Fev]]+VariaçõesDeFuncionários[[#Totals],[Fev]]","v":{"v":-984,"d":"-R$ 984.00"}},{"$f":"VariaçõesDeViagensETreinamentos[[#Totals],[Mar]]+VariaçõesDeMarketing[[#Totals],[Mar]]+VariaçõesDoEscritório[[#Totals],[Mar]]+VariaçõesDeFuncionários[[#Totals],[Mar]]","v":{"v":1255,"d":"R$ 1,255.00"}},{"$f":"VariaçõesDeViagensETreinamentos[[#Totals],[Abr]]+VariaçõesDeMarketing[[#Totals],[Abr]]+VariaçõesDoEscritório[[#Totals],[Abr]]+VariaçõesDeFuncionários[[#Totals],[Abr]]","v":{"v":301,"d":"R$ 301.00"}},{"$f":"VariaçõesDeViagensETreinamentos[[#Totals],[Mai]]+VariaçõesDeMarketing[[#Totals],[Mai]]+VariaçõesDoEscritório[[#Totals],[Mai]]+VariaçõesDeFuncionários[[#Totals],[Mai]]","v":{"v":1440,"d":"R$ 1,440.00"}},{"$f":"VariaçõesDeViagensETreinamentos[[#Totals],[Jun]]+VariaçõesDeMarketing[[#Totals],[Jun]]+VariaçõesDoEscritório[[#Totals],[Jun]]+VariaçõesDeFuncionários[[#Totals],[Jun]]","v":{"v":-3744,"d":"-R$ 3,744.00"}},{"$f":"VariaçõesDeViagensETreinamentos[[#Totals],[Jul]]+VariaçõesDeMarketing[[#Totals],[Jul]]+VariaçõesDoEscritório[[#Totals],[Jul]]+VariaçõesDeFuncionários[[#Totals],[Jul]]","v":{"v":134695,"d":"R$ 134,695.00"}},{"$f":"VariaçõesDeViagensETreinamentos[[#Totals],[Ago]]+VariaçõesDeMarketing[[#Totals],[Ago]]+VariaçõesDoEscritório[[#Totals],[Ago]]+VariaçõesDeFuncionários[[#Totals],[Ago]]","v":{"v":138918,"d":"R$ 138,918.00"}},{"$f":"VariaçõesDeViagensETreinamentos[[#Totals],[Set]]+VariaçõesDeMarketing[[#Totals],[Set]]+VariaçõesDoEscritório[[#Totals],[Set]]+VariaçõesDeFuncionários[[#Totals],[Set]]","v":{"v":135918,"d":"R$ 135,918.00"}},{"$f":"VariaçõesDeViagensETreinamentos[[#Totals],[Out]]+VariaçõesDeMarketing[[#Totals],[Out]]+VariaçõesDoEscritório[[#Totals],[Out]]+VariaçõesDeFuncionários[[#Totals],[Out]]","v":{"v":140918,"d":"R$ 140,918.00"}},{"$f":"VariaçõesDeViagensETreinamentos[[#Totals],[Nov]]+VariaçõesDeMarketing[[#Totals],[Nov]]+VariaçõesDoEscritório[[#Totals],[Nov]]+VariaçõesDeFuncionários[[#Totals],[Nov]]","v":{"v":136218,"d":"R$ 136,218.00"}},{"$f":"VariaçõesDeViagensETreinamentos[[#Totals],[Dez]]+VariaçõesDeMarketing[[#Totals],[Dez]]+VariaçõesDoEscritório[[#Totals],[Dez]]+VariaçõesDeFuncionários[[#Totals],[Dez]]","v":{"v":140018,"d":"R$ 140,018.00"}},{"$f":"VariaçõesDeViagensETreinamentos[[#Totals],[ANO]]+VariaçõesDeMarketing[[#Totals],[ANO]]+VariaçõesDoEscritório[[#Totals],[ANO]]+VariaçõesDeFuncionários[[#Totals],[ANO]]","v":{"v":826691,"d":"R$ 826,691.00"}}]
[null,"TOTAL Despesas reais",{"$f":"SUM($C$36:C36)","v":{"v":1738,"d":"R$ 1,738.00"}},{"$f":"SUM($C$36:D36)","v":{"v":754,"d":"R$ 754.00"}},{"$f":"SUM($C$36:E36)","v":{"v":2009,"d":"R$ 2,009.00"}},{"$f":"SUM($C$36:F36)","v":{"v":2310,"d":"R$ 2,310.00"}},{"$f":"SUM($C$36:G36)","v":{"v":3750,"d":"R$ 3,750.00"}},{"$f":"SUM($C$36:H36)","v":{"v":6,"d":"R$ 6.00"}},{"$f":"SUM($C$36:I36)","v":{"v":134701,"d":"R$ 134,701.00"}},{"$f":"SUM($C$36:J36)","v":{"v":273619,"d":"R$ 273,619.00"}},{"$f":"SUM($C$36:K36)","v":{"v":409537,"d":"R$ 409,537.00"}},{"$f":"SUM($C$36:L36)","v":{"v":550455,"d":"R$ 550,455.00"}},{"$f":"SUM($C$36:M36)","v":{"v":686673,"d":"R$ 686,673.00"}},{"$f":"SUM($C$36:N36)","v":{"v":826691,"d":"R$ 826,691.00"}}]

{"sheet":"ANÁLISE DE DESPESAS","index":4,"n_rows":14,"n_cols":16,"rows_kept":14,"merged":[[1,1,2,3],[1,5,1,6],[2,4,2,6],[11,1,11,2],[11,3,11,5],[13,1,36,5]]}
["As Despesas anuais planejadas e reais, as Variações de despesas e a Porcentagem de variação são atualizadas automaticamente para cada Categoria de despesa nesta planilha. Instruções úteis sobre como usar esta planilha estão nas células desta coluna. Pressione Seta para baixo para começar. ",{"$nulls":5}," ",{"$nulls":8}," "]
["O Nome da empresa é atualizado automaticamente na célula à direita. Insira o logotipo na célula F2.",{"$f":"'DESPESAS PLANEJADAS'!B2:D3","v":"Nome da empresa"},{"$nulls":3},"O espaço reservado para o logotipo está nesta célula."]
["O título desta planilha está na célula E3. A próxima instrução está na célula A5.",{"$nulls":3},{"$f":"título_da_planilha","v":"Estimativas detalhadas de despesas"}]
[]
["As Despesas planejadas, as Despesas reais, as Variações de despesas e a Porcentagem de variação são calculadas automaticamente na tabela Análise, que começa na célula à direita. A próxima instrução está na célula A12.","Categoria de despesas","Despesas planejadas","Despesas reais","Variações de despesas","Porcentagem de variação"]
[null,"Custos com funcionários",{"$f":"PlanejamentoDeFuncionários[[#Totals],[ANO]]","v":{"v":1355090,"d":"R$ 1,355,090.00"}},{"$f":"RealFuncionários[[#Totals],[ANO]]","v":{"v":659130,"d":"R$ 659,130.00"}},{"$f":"C6-D6","v":{"v":695960,"d":"R$ 695,960.00"}},{"$f":"E6/C6","v":{"v":0.5135895032802249,"d":"51%"}}]
[null,{"$f":"'DESPESAS PLANEJADAS'!B10","v":"Custos do escritório"},{"$f":"PlanejamentoDoEscritório[[#Totals],[ANO]]","v":{"v":138740,"d":"R$ 138,740.00"}},{"$f":"RealEscritório[[#Totals],[ANO]]","v":{"v":69350,"d":"R$ 69,350.00"}},{"$f":"C7-D7","v":{"v":69390,"d":"R$ 69,390.00"}},{"$f":"E7/C7","v":{"v":0.5001441545336601,"d":"50%"}}]
[null,{"$f":"'DESPESAS PLANEJADAS'!B21","v":"Custos de marketing"},{"$f":"PlanejamentoDeMarketing[[#Totals],[ANO]]","v":{"v":67800,"d":"R$ 67,800.00"}},{"$f":"RealMarketing[[#Totals],[ANO]]","v":{"v":33159,"d":"R$ 33,159.00"}},{"$f":"C8-D8","v":{"v":34641,"d":"R$ 34,641.00"}},{"$f":"E8/C8","v":{"v":0.510929203539823,"d":"51%"}}]
[null,{"$f":"'DESPESAS PLANEJADAS'!B30","v":"Viagem/Treinamento"},{"$f":"PlanejamentoViagemETreinamento[[#Totals],[ANO]]","v":{"v":48000,"d":"R$ 48,000.00"}},{"$f":"RealViagemETreinamento[[#Totals],[ANO]]","v":{"v":21300,"d":"R$ 21,300.00"}},{"$f":"C9-D9","v":{"v":26700,"d":"R$ 26,700.00"}},{"$f":"E9/C9","v":{"v":0.55625,"d":"56%"}}]
[null,{"$f":"'DESPESAS PLANEJADAS'!B35","v":"TOTAIS"},{"$f":"'DESPESAS PLANEJADAS'!O36","v":{"v":1609630,"d":"R$ 1,609,630.00"}},{"$f":"'DESPESAS REAIS'!O36","v":{"v":782939,"d":"R$ 782,939.00"}},{"$f":"C10-D10","v":{"v":826691,"d":"R$ 826,691.00"}},{"$f":"E10/C10","v":{"v":0.5135907009685455,"d":"51%"}}]
[]
["O gráfico de pizza Despesas planejadas está na célula à direita e o gráfico Despesas reais, na célula D12. A próxima instrução está na célula A14.","O gráfico de pizza mostrando as despesas planejadas nas várias categorias está nesta célula.",null,"O gráfico de pizza mostrando as despesas reais nas várias categorias está nesta célula."]
[]
["O gráfico mostrando as Despesas mensais planejadas, as Despesas mensais reais e as Variação nas despesas mensais está na célula à direita."]